{"text_format":"1","workbook":"xlsx","n_sheets":9,"sheets":["мужчины б.","женщины б.","мужчины ск.","женщины ск.","мужчины тр.","женщины тр.","разряды м.","разряды ж.","Лист1"],"not_rendered":{"charts":0,"images":0,"macros":0,"external_links":0,"defined_names":7,"comments":0,"pivot_tables":0},"unopened":[],"bounds":{"document_bytes":16777216,"sheet_cells":100000,"rows_first":2000,"rows_last":500,"rows_between":2000,"halvings":0,"cell_chars":16384,"cell_head_chars":4096},"cells_cut":0,"cells_raw":0,"read":"whole","date_system":"1900"}

{"sheet":"мужчины б.","index":0,"n_rows":67,"n_cols":10,"rows_kept":67,"cut":false,"hidden":false,"merged":[[3,4,4,4],[0,0,0,9],[1,0,1,9],[2,0,2,2],[2,9,4,9],[3,0,4,0],[3,1,4,1],[3,2,4,2],[3,3,4,3]]}
["Текущий рейтинг"]
["Мужчины, болдеринг"]
["на 9.03.2015 года",null,null,null,null,"КРБ-2013","ЧРБ-2014","КРБ-2014","ЧРБ-2015","общий рез-т"]
["№","Фамилия, Имя","Команда","г.р.","Подтвержденный разряд","Пинск","Минск","Пинск","Минск"]
[null,null,null,null,null,"22-25.11","21-23.02","22-23.11","27.02-1.03"]
[1,"Клюжев Александр",{"$f":"VLOOKUP(B6:B67,'разряды м.'!$A$5:$AB$205,2,FALSE)","v":"Гомельская обл."},{"$f":"VLOOKUP(B6:B67,'разряды м.'!$A$5:$AB$205,3,FALSE)","v":1997},{"$f":"VLOOKUP(B:B,'разряды м.'!$A$5:$AB$205,28,FALSE)","v":"МС"},91.2,82.9,45.5,80,{"$f":"SUM(F6:I6)","v":299.60000000000002}]
[2,"Никифоровец Максим",{"$f":"VLOOKUP(B7:B68,'разряды м.'!$A$5:$AB$205,2,FALSE)","v":"Минск"},{"$f":"VLOOKUP(B7:B68,'разряды м.'!$A$5:$AB$205,3,FALSE)","v":1997},{"$f":"VLOOKUP(B:B,'разряды м.'!$A$5:$AB$205,28,FALSE)","v":"КМС"},59.3,66.3,null,64,189.6]
[3,"Никифоровец Андрей",{"$f":"VLOOKUP(B8:B69,'разряды м.'!$A$5:$AB$205,2,FALSE)","v":"Минск"},{"$f":"VLOOKUP(B8:B69,'разряды м.'!$A$5:$AB$205,3,FALSE)","v":1974},{"$f":"VLOOKUP(B:B,'разряды м.'!$A$5:$AB$205,28,FALSE)","v":"МС"},73,null,70,37.6,180.6]
[4,"Волосович Дмитрий",{"$f":"VLOOKUP(B9:B70,'разряды м.'!$A$5:$AB$205,2,FALSE)","v":"Гомельская обл."},{"$f":"VLOOKUP(B9:B70,'разряды м.'!$A$5:$AB$205,3,FALSE)","v":1995},{"$f":"VLOOKUP(B:B,'разряды м.'!$A$5:$AB$205,28,FALSE)","v":"КМС"},50.2,45.6,null,52,147.80000000000001]
[5,"Драбинко Артур",{"$f":"VLOOKUP(B10:B71,'разряды м.'!$A$5:$AB$205,2,FALSE)","v":"Бобруйск"},{"$f":"VLOOKUP(B10:B71,'разряды м.'!$A$5:$AB$205,3,FALSE)","v":1994},{"$f":"VLOOKUP(B:B,'разряды м.'!$A$5:$AB$205,28,FALSE)","v":"КМС"},20.100000000000001,42.3,56,null,118.4]
[6,"Никоноров Дмитрий",{"$f":"VLOOKUP(B11:B72,'разряды м.'!$A$5:$AB$205,2,FALSE)","v":"Пуховичский р-н"},{"$f":"VLOOKUP(B11:B72,'разряды м.'!$A$5:$AB$205,3,FALSE)","v":1997},{"$f":"VLOOKUP(B:B,'разряды м.'!$A$5:$AB$205,28,FALSE)","v":"КМС"},33.700000000000003,28.2,null,40.799999999999997,102.7]
[7,"Тарасенко Владислав",{"$f":"VLOOKUP(B12:B73,'разряды м.'!$A$5:$AB$205,2,FALSE)","v":"Пуховичский р-н"},{"$f":"VLOOKUP(B12:B73,'разряды м.'!$A$5:$AB$205,3,FALSE)","v":1995},{"$f":"VLOOKUP(B:B,'разряды м.'!$A$5:$AB$205,28,FALSE)","v":"КМС"},39.200000000000003,53.9,null,null,93.1]
[8,"Яцыно Павел",{"$f":"VLOOKUP(B13:B74,'разряды м.'!$A$5:$AB$205,2,FALSE)","v":"Витебск"},{"$f":"VLOOKUP(B13:B74,'разряды м.'!$A$5:$AB$205,3,FALSE)","v":1986},{"$f":"VLOOKUP(B:B,'разряды м.'!$A$5:$AB$205,28,FALSE)","v":"КМС"},36.5,19.2,18.2,17.600000000000001,91.5]
[9,"Максименя Денис",{"$f":"VLOOKUP(B14:B75,'разряды м.'!$A$5:$AB$205,2,FALSE)","v":"Минск"},{"$f":"VLOOKUP(B14:B75,'разряды м.'!$A$5:$AB$205,3,FALSE)","v":1996},{"$f":"VLOOKUP(B:B,'разряды м.'!$A$5:$AB$205,28,FALSE)","v":"КМС"},22.8,33.200000000000003,30.1,null,86.1]
[10,"Логунов Никита",{"$f":"VLOOKUP(B15:B76,'разряды м.'!$A$5:$AB$205,2,FALSE)","v":"ДЮСШ «Омега» Гом."},{"$f":"VLOOKUP(B15:B76,'разряды м.'!$A$5:$AB$205,3,FALSE)","v":1999},{"$f":"VLOOKUP(B:B,'разряды м.'!$A$5:$AB$205,28,FALSE)","v":"КМС"},46.5,35.700000000000003,null,null,82.2]
[11,"Федотов Сергей",{"$f":"VLOOKUP(B16:B77,'разряды м.'!$A$5:$AB$205,2,FALSE)","v":"Бобруйск"},{"$f":"VLOOKUP(B16:B77,'разряды м.'!$A$5:$AB$205,3,FALSE)","v":1990},{"$f":"VLOOKUP(B:B,'разряды м.'!$A$5:$AB$205,28,FALSE)","v":"КМС"},null,39,38.5,null,77.5]
[12,"Дюбенков Дмитрий",{"$f":"VLOOKUP(B17:B78,'разряды м.'!$A$5:$AB$205,2,FALSE)","v":"Гомельская обл."},{"$f":"VLOOKUP(B17:B78,'разряды м.'!$A$5:$AB$205,3,FALSE)","v":1992},{"$f":"VLOOKUP(B:B,'разряды м.'!$A$5:$AB$205,28,FALSE)","v":"КМС"},16.399999999999999,14.9,null,44,75.3]
[13,"Пахомов Александр",{"$f":"VLOOKUP(B18:B79,'разряды м.'!$A$5:$AB$205,2,FALSE)","v":"Бобруйск"},{"$f":"VLOOKUP(B18:B79,'разряды м.'!$A$5:$AB$205,3,FALSE)","v":1983},{"$f":"VLOOKUP(B:B,'разряды м.'!$A$5:$AB$205,28,FALSE)","v":"КМС"},28.3,19.899999999999999,23.8,null,72]
[14,"Морозов Юрий",{"$f":"VLOOKUP(B19:B80,'разряды м.'!$A$5:$AB$205,2,FALSE)","v":"Хан-Тенгри"},{"$f":"VLOOKUP(B19:B80,'разряды м.'!$A$5:$AB$205,3,FALSE)","v":1992},{"$f":"VLOOKUP(B:B,'разряды м.'!$A$5:$AB$205,28,FALSE)","v":"КМС"},22.8,23.2,null,24.8,70.8]
[15,"Малаховский Александр",{"$f":"VLOOKUP(B20:B81,'разряды м.'!$A$5:$AB$205,2,FALSE)","v":"Хан-Тенгри"},{"$f":"VLOOKUP(B20:B81,'разряды м.'!$A$5:$AB$205,3,FALSE)","v":1985},{"$f":"VLOOKUP(B:B,'разряды м.'!$A$5:$AB$205,28,FALSE)","v":1},31,null,null,32,63]
[16,"Караваев Дмитрий",{"$f":"VLOOKUP(B21:B82,'разряды м.'!$A$5:$AB$205,2,FALSE)","v":"Гомельская обл."},{"$f":"VLOOKUP(B21:B82,'разряды м.'!$A$5:$AB$205,3,FALSE)","v":1993},{"$f":"VLOOKUP(B:B,'разряды м.'!$A$5:$AB$205,28,FALSE)","v":"КМС"},12.8,25.7,null,19.2,57.7]
[17,"Изидеров Никита",{"$f":"VLOOKUP(B22:B83,'разряды м.'!$A$5:$AB$205,2,FALSE)","v":"Полоцк"},{"$f":"VLOOKUP(B22:B83,'разряды м.'!$A$5:$AB$205,3,FALSE)","v":1994},{"$f":"VLOOKUP(B:B,'разряды м.'!$A$5:$AB$205,28,FALSE)","v":"КМС"},null,21.6,35.700000000000003,null,57.300000000000004]
[18,"Соковых Евгений",{"$f":"VLOOKUP(B23:B84,'разряды м.'!$A$5:$AB$205,2,FALSE)","v":"Хан-Тенгри"},{"$f":"VLOOKUP(B23:B84,'разряды м.'!$A$5:$AB$205,3,FALSE)","v":1988},{"$f":"VLOOKUP(B:B,'разряды м.'!$A$5:$AB$205,28,FALSE)","v":"КМС"},25.5,16.600000000000001,null,12.8,54.900000000000006]
[19,"Демешко Александр",{"$f":"VLOOKUP(B24:B85,'разряды м.'!$A$5:$AB$205,2,FALSE)","v":"Хан-Тенгри"},{"$f":"VLOOKUP(B24:B85,'разряды м.'!$A$5:$AB$205,3,FALSE)","v":1994},{"$f":"VLOOKUP(B:B,'разряды м.'!$A$5:$AB$205,28,FALSE)","v":1},18.2,null,null,34.4,52.599999999999994]
[20,"Грибовский Павел",{"$f":"VLOOKUP(B25:B86,'разряды м.'!$A$5:$AB$205,2,FALSE)","v":"Бобруйск"},{"$f":"VLOOKUP(B25:B86,'разряды м.'!$A$5:$AB$205,3,FALSE)","v":1885},{"$f":"VLOOKUP(B:B,'разряды м.'!$A$5:$AB$205,28,FALSE)","v":"КМС"},null,30.7,19.600000000000001,null,50.3]
[21,"Саунин Кирилл",{"$f":"VLOOKUP(B26:B87,'разряды м.'!$A$5:$AB$205,2,FALSE)","v":"Пинск"},{"$f":"VLOOKUP(B26:B87,'разряды м.'!$A$5:$AB$205,3,FALSE)","v":1989},{"$f":"VLOOKUP(B:B,'разряды м.'!$A$5:$AB$205,28,FALSE)","v":1},null,null,28,20.8,48.8]
[22,"Денисман Юрий",{"$f":"VLOOKUP(B27:B88,'разряды м.'!$A$5:$AB$205,2,FALSE)","v":"MinskOnsight Мн."},{"$f":"VLOOKUP(B27:B88,'разряды м.'!$A$5:$AB$205,3,FALSE)","v":1982},{"$f":"VLOOKUP(B:B,'разряды м.'!$A$5:$AB$205,28,FALSE)","v":"КМС"},42.9,0.8,4.2,null,47.9]
[23,"Буйленков Павел",{"$f":"VLOOKUP(B28:B89,'разряды м.'!$A$5:$AB$205,2,FALSE)","v":"Гомельская обл."},{"$f":"VLOOKUP(B28:B89,'разряды м.'!$A$5:$AB$205,3,FALSE)","v":1993},{"$f":"VLOOKUP(B:B,'разряды м.'!$A$5:$AB$205,28,FALSE)","v":"КМС"},9.1,6.6,null,29.6,45.3]
[24,"Вальковский Владимир",{"$f":"VLOOKUP(B29:B90,'разряды м.'!$A$5:$AB$205,2,FALSE)","v":"ГОЦТиКДиМ Гомель"},{"$f":"VLOOKUP(B29:B90,'разряды м.'!$A$5:$AB$205,3,FALSE)","v":1992},{"$f":"VLOOKUP(B:B,'разряды м.'!$A$5:$AB$205,28,FALSE)","v":"КМС"},null,13.3,25.9,null,39.200000000000003]
[25,"Добрянский Александр",{"$f":"VLOOKUP(B30:B91,'разряды м.'!$A$5:$AB$205,2,FALSE)","v":"Шклов"},{"$f":"VLOOKUP(B30:B91,'разряды м.'!$A$5:$AB$205,3,FALSE)","v":1994},{"$f":"VLOOKUP(B:B,'разряды м.'!$A$5:$AB$205,28,FALSE)","v":1},null,null,32.9,null,32.9]
[26,"Голубев Сергей",{"$f":"VLOOKUP(B31:B92,'разряды м.'!$A$5:$AB$205,2,FALSE)","v":"MinskOnsight Мн."},{"$f":"VLOOKUP(B31:B92,'разряды м.'!$A$5:$AB$205,3,FALSE)","v":1985},{"$f":"VLOOKUP(B:B,'разряды м.'!$A$5:$AB$205,28,FALSE)","v":2},10.9,null,21.7,null,32.6]
[27,"Липский Кирилл",{"$f":"VLOOKUP(B32:B88,'разряды м.'!$A$5:$AB$205,2,FALSE)","v":"Минск"},{"$f":"VLOOKUP(B32:B88,'разряды м.'!$A$5:$AB$205,3,FALSE)","v":1986},{"$f":"VLOOKUP(B:B,'разряды м.'!$A$5:$AB$205,28,FALSE)","v":2},null,null,7.7,22.4,30.099999999999998]
[28,"Свито Иван",{"$f":"VLOOKUP(B33:B94,'разряды м.'!$A$5:$AB$205,2,FALSE)","v":"Хан-Тенгри"},{"$f":"VLOOKUP(B33:B94,'разряды м.'!$A$5:$AB$205,3,FALSE)","v":1982},{"$f":"VLOOKUP(B:B,'разряды м.'!$A$5:$AB$205,28,FALSE)","v":1},null,2.5,16.8,10,29.3]
[29,"Яковлев Юрий",{"$f":"VLOOKUP(B34:B89,'разряды м.'!$A$5:$AB$205,2,FALSE)","v":"Хан-Тенгри"},{"$f":"VLOOKUP(B34:B89,'разряды м.'!$A$5:$AB$205,3,FALSE)","v":1986},{"$f":"VLOOKUP(B:B,'разряды м.'!$A$5:$AB$205,28,FALSE)","v":2},null,null,null,27.2,27.2]
[30,"Давыдов Денис",{"$f":"VLOOKUP(B35:B91,'разряды м.'!$A$5:$AB$205,2,FALSE)","v":"Минск"},{"$f":"VLOOKUP(B35:B91,'разряды м.'!$A$5:$AB$205,3,FALSE)","v":2000},{"$f":"VLOOKUP(B:B,'разряды м.'!$A$5:$AB$205,28,FALSE)","v":1},null,null,10.5,14.4,24.9]
[31,"Винчевский Максим",{"$f":"VLOOKUP(B36:B97,'разряды м.'!$A$5:$AB$205,2,FALSE)","v":"Хан-Тенгри"},{"$f":"VLOOKUP(B36:B97,'разряды м.'!$A$5:$AB$205,3,FALSE)","v":1991},{"$f":"VLOOKUP(B:B,'разряды м.'!$A$5:$AB$205,28,FALSE)","v":2},null,null,15.4,6.4,21.8]
[32,"Ченуша Алексей",{"$f":"VLOOKUP(B37:B93,'разряды м.'!$A$5:$AB$205,2,FALSE)","v":"Хан-Тенгри"},{"$f":"VLOOKUP(B37:B93,'разряды м.'!$A$5:$AB$205,3,FALSE)","v":1969},{"$f":"VLOOKUP(B:B,'разряды м.'!$A$5:$AB$205,28,FALSE)","v":1},1.4,null,null,16,17.399999999999999]
[33,"Бессер Родион",{"$f":"VLOOKUP(B38:B99,'разряды м.'!$A$5:$AB$205,2,FALSE)","v":"MinskOnsight Мн."},{"$f":"VLOOKUP(B38:B99,'разряды м.'!$A$5:$AB$205,3,FALSE)","v":1981},{"$f":"VLOOKUP(B:B,'разряды м.'!$A$5:$AB$205,28,FALSE)","v":1},6.8,10,null,null,{"$f":"SUM(F38:I38)","v":16.8}]
[34,"Максименя Александр",{"$f":"VLOOKUP(B39:B95,'разряды м.'!$A$5:$AB$205,2,FALSE)","v":"Хан-Тенгри"},{"$f":"VLOOKUP(B39:B95,'разряды м.'!$A$5:$AB$205,3,FALSE)","v":1975},{"$f":"VLOOKUP(B:B,'разряды м.'!$A$5:$AB$205,28,FALSE)","v":1},6.8,3.3,null,6.4,16.5]
[35,"Ложкин Денис",{"$f":"VLOOKUP(B40:B101,'разряды м.'!$A$5:$AB$205,2,FALSE)","v":"MinskOnsight Мн."},{"$f":"VLOOKUP(B40:B101,'разряды м.'!$A$5:$AB$205,3,FALSE)","v":1983},{"$f":"VLOOKUP(B:B,'разряды м.'!$A$5:$AB$205,28,FALSE)","v":1},null,5.8,10.5,null,16.3]
[36,"Стариков Павел",{"$f":"VLOOKUP(B41:B102,'разряды м.'!$A$5:$AB$205,2,FALSE)","v":"С/к «Торпедо»  Мг."},{"$f":"VLOOKUP(B41:B102,'разряды м.'!$A$5:$AB$205,3,FALSE)","v":1996},{"$f":"VLOOKUP(B:B,'разряды м.'!$A$5:$AB$205,28,FALSE)","v":2},14.6,null,null,null,14.6]
[37,"Иванов Александр",{"$f":"VLOOKUP(B42:B103,'разряды м.'!$A$5:$AB$205,2,FALSE)","v":"Минск"},{"$f":"VLOOKUP(B42:B103,'разряды м.'!$A$5:$AB$205,3,FALSE)","v":1992},{"$f":"VLOOKUP(B:B,'разряды м.'!$A$5:$AB$205,28,FALSE)","v":2},null,null,14,null,14]
[38,"Дудянов Евгений ",{"$f":"VLOOKUP(B43:B99,'разряды м.'!$A$5:$AB$205,2,FALSE)","v":"ГОЦТиКДиМ Гомель"},{"$f":"VLOOKUP(B43:B99,'разряды м.'!$A$5:$AB$205,3,FALSE)","v":1996},{"$f":"VLOOKUP(B:B,'разряды м.'!$A$5:$AB$205,28,FALSE)","v":3},null,null,6.3,6.4,12.7]
[39,"Киселев Евгений",{"$f":"VLOOKUP(B44:B102,'разряды м.'!$A$5:$AB$205,2,FALSE)","v":"Шклов"},{"$f":"VLOOKUP(B44:B102,'разряды м.'!$A$5:$AB$205,3,FALSE)","v":1999},{"$f":"VLOOKUP(B:B,'разряды м.'!$A$5:$AB$205,28,FALSE)","v":1},null,null,12.6,null,12.6]
[40,"Пуйто Антон",{"$f":"VLOOKUP(B45:B102,'разряды м.'!$A$5:$AB$205,2,FALSE)","v":"ГОЦТиКДиМ Гомель"},{"$f":"VLOOKUP(B45:B102,'разряды м.'!$A$5:$AB$205,3,FALSE)","v":1998},{"$f":"VLOOKUP(B:B,'разряды м.'!$A$5:$AB$205,28,FALSE)","v":1},4.5999999999999996,null,7.7,null,12.3]
[41,"Гутиков Роман",{"$f":"VLOOKUP(B46:B102,'разряды м.'!$A$5:$AB$205,2,FALSE)","v":"Орша"},{"$f":"VLOOKUP(B46:B102,'разряды м.'!$A$5:$AB$205,3,FALSE)","v":1989},{"$f":"VLOOKUP(B:B,'разряды м.'!$A$5:$AB$205,28,FALSE)","v":1},6.8,5,null,null,11.8]
[42,"Пристромов Антон",{"$f":"VLOOKUP(B47:B103,'разряды м.'!$A$5:$AB$205,2,FALSE)","v":"ДЮСШ «Омега» Гом."},{"$f":"VLOOKUP(B47:B103,'разряды м.'!$A$5:$AB$205,3,FALSE)","v":1988},{"$f":"VLOOKUP(B:B,'разряды м.'!$A$5:$AB$205,28,FALSE)","v":"КМС"},null,11.6,null,null,11.6]
[43,"Зюзин Иван",{"$f":"VLOOKUP(B48:B104,'разряды м.'!$A$5:$AB$205,2,FALSE)","v":"Минск"},{"$f":"VLOOKUP(B48:B104,'разряды м.'!$A$5:$AB$205,3,FALSE)","v":2001},{"$f":"VLOOKUP(B:B,'разряды м.'!$A$5:$AB$205,28,FALSE)","v":1},null,null,null,10,10]
[44,"Остроухов Егор",{"$f":"VLOOKUP(B49:B105,'разряды м.'!$A$5:$AB$205,2,FALSE)","v":"ПРЦДиМ Полоцк"},{"$f":"VLOOKUP(B49:B105,'разряды м.'!$A$5:$AB$205,3,FALSE)","v":1973},{"$f":"VLOOKUP(B:B,'разряды м.'!$A$5:$AB$205,28,FALSE)","v":1},null,8.3000000000000007,null,1.6,9.9]
[45,"Таршис Иван",{"$f":"VLOOKUP(B50:B107,'разряды м.'!$A$5:$AB$205,2,FALSE)","v":"ГОЦТиКДиМ Гомель"},{"$f":"VLOOKUP(B50:B107,'разряды м.'!$A$5:$AB$205,3,FALSE)","v":1998},{"$f":"VLOOKUP(B:B,'разряды м.'!$A$5:$AB$205,28,FALSE)","v":1},null,null,null,8,8]
[46,"Бабанов Игорь",{"$f":"VLOOKUP(B51:B107,'разряды м.'!$A$5:$AB$205,2,FALSE)","v":"С/к «Торпедо»  Мг."},{"$f":"VLOOKUP(B51:B107,'разряды м.'!$A$5:$AB$205,3,FALSE)","v":1989},{"$f":"VLOOKUP(B:B,'разряды м.'!$A$5:$AB$205,28,FALSE)","v":1},null,7.5,null,null,7.5]
[47,"Денисевич Евгений",{"$f":"VLOOKUP(B52:B108,'разряды м.'!$A$5:$AB$205,2,FALSE)","v":"Брестская область"},{"$f":"VLOOKUP(B52:B108,'разряды м.'!$A$5:$AB$205,3,FALSE)","v":1994},{"$f":"VLOOKUP(B:B,'разряды м.'!$A$5:$AB$205,28,FALSE)","v":"КМС"},6.8,null,null,null,6.8]
[48,"Харчик Максим",{"$f":"VLOOKUP(B53:B109,'разряды м.'!$A$5:$AB$205,2,FALSE)","v":"Брестская область"},{"$f":"VLOOKUP(B53:B109,'разряды м.'!$A$5:$AB$205,3,FALSE)","v":1998},{"$f":"VLOOKUP(B:B,'разряды м.'!$A$5:$AB$205,28,FALSE)","v":3},null,null,5.6,null,5.6]
[49,"Живица Арсений",{"$f":"VLOOKUP(B54:B110,'разряды м.'!$A$5:$AB$205,2,FALSE)","v":"Минск"},{"$f":"VLOOKUP(B54:B110,'разряды м.'!$A$5:$AB$205,3,FALSE)","v":2000},{"$f":"VLOOKUP(B:B,'разряды м.'!$A$5:$AB$205,28,FALSE)","v":1},null,null,1.05,4.4000000000000004,5.45]
[50,"Мертенс Андрей",{"$f":"VLOOKUP(B55:B111,'разряды м.'!$A$5:$AB$205,2,FALSE)","v":"г. Витебск"},{"$f":"VLOOKUP(B55:B111,'разряды м.'!$A$5:$AB$205,3,FALSE)","v":1992},{"$f":"VLOOKUP(B:B,'разряды м.'!$A$5:$AB$205,28,FALSE)","v":3},null,null,4.9000000000000004,null,4.9000000000000004]
[51,"Дишук Вадим",{"$f":"VLOOKUP(B56:B115,'разряды м.'!$A$5:$AB$205,2,FALSE)","v":"Хан-Тенгри"},{"$f":"VLOOKUP(B56:B115,'разряды м.'!$A$5:$AB$205,3,FALSE)","v":1985},{"$f":"VLOOKUP(B:B,'разряды м.'!$A$5:$AB$205,28,FALSE)","v":"б/р"},null,null,null,4.4000000000000004,4.4000000000000004]
[52,"Петровский Максим",{"$f":"VLOOKUP(B57:B115,'разряды м.'!$A$5:$AB$205,2,FALSE)","v":"Минск"},{"$f":"VLOOKUP(B57:B115,'разряды м.'!$A$5:$AB$205,3,FALSE)","v":1987},{"$f":"VLOOKUP(B:B,'разряды м.'!$A$5:$AB$205,28,FALSE)","v":"б/р"},null,null,null,4.4000000000000004,4.4000000000000004]
[53,"Сычев Николай",{"$f":"VLOOKUP(B58:B114,'разряды м.'!$A$5:$AB$205,2,FALSE)","v":"Гомельская обл."},{"$f":"VLOOKUP(B58:B114,'разряды м.'!$A$5:$AB$205,3,FALSE)","v":1978},{"$f":"VLOOKUP(B:B,'разряды м.'!$A$5:$AB$205,28,FALSE)","v":1},null,4.0999999999999996,null,null,4.0999999999999996]
[54,"Федоров Игорь",{"$f":"VLOOKUP(B59:B115,'разряды м.'!$A$5:$AB$205,2,FALSE)","v":"Хан-Тенгри"},{"$f":"VLOOKUP(B59:B115,'разряды м.'!$A$5:$AB$205,3,FALSE)","v":1977},{"$f":"VLOOKUP(B:B,'разряды м.'!$A$5:$AB$205,28,FALSE)","v":1},3.6,null,null,null,3.6]
[55,"Коновалов Евгений",{"$f":"VLOOKUP(B60:B116,'разряды м.'!$A$5:$AB$205,2,FALSE)","v":{"$error":"#N/A"}},{"$f":"VLOOKUP(B60:B116,'разряды м.'!$A$5:$AB$205,3,FALSE)","v":{"$error":"#N/A"}},{"$f":"VLOOKUP(B:B,'разряды м.'!$A$5:$AB$205,28,FALSE)","v":{"$error":"#N/A"}},null,null,3.15,null,3.15]
[56,"Рубенок Артем",{"$f":"VLOOKUP(B61:B117,'разряды м.'!$A$5:$AB$205,2,FALSE)","v":"Витебск"},{"$f":"VLOOKUP(B61:B117,'разряды м.'!$A$5:$AB$205,3,FALSE)","v":1986},{"$f":"VLOOKUP(B:B,'разряды м.'!$A$5:$AB$205,28,FALSE)","v":1},null,null,3.15,null,3.15]
[57,"Сердаков Илья",{"$f":"VLOOKUP(B62:B118,'разряды м.'!$A$5:$AB$205,2,FALSE)","v":"ГОЦТиКДиМ Гомель"},{"$f":"VLOOKUP(B62:B118,'разряды м.'!$A$5:$AB$205,3,FALSE)","v":1999},{"$f":"VLOOKUP(B:B,'разряды м.'!$A$5:$AB$205,28,FALSE)","v":"КМС"},1.4,1.7,null,null,3.0999999999999996]
[58,"Бруев Денис",{"$f":"VLOOKUP(B63:B119,'разряды м.'!$A$5:$AB$205,2,FALSE)","v":{"$error":"#N/A"}},{"$f":"VLOOKUP(B63:B119,'разряды м.'!$A$5:$AB$205,3,FALSE)","v":{"$error":"#N/A"}},{"$f":"VLOOKUP(B:B,'разряды м.'!$A$5:$AB$205,28,FALSE)","v":{"$error":"#N/A"}},2.7,null,null,null,2.7]
[59,"Морозов Игорь",{"$f":"VLOOKUP(B64:B125,'разряды м.'!$A$5:$AB$205,2,FALSE)","v":"Хан-Тенгри"},{"$f":"VLOOKUP(B64:B125,'разряды м.'!$A$5:$AB$205,3,FALSE)","v":1970},{"$f":"VLOOKUP(B:B,'разряды м.'!$A$5:$AB$205,28,FALSE)","v":"б/р"},null,null,null,2.4,2.4]
[60,"Ионочкин Александр",{"$f":"VLOOKUP(B65:B121,'разряды м.'!$A$5:$AB$205,2,FALSE)","v":{"$error":"#N/A"}},{"$f":"VLOOKUP(B65:B121,'разряды м.'!$A$5:$AB$205,3,FALSE)","v":{"$error":"#N/A"}},{"$f":"VLOOKUP(B:B,'разряды м.'!$A$5:$AB$205,28,FALSE)","v":{"$error":"#N/A"}},null,null,1.05,null,1.05]
[61,"Чернявский Артем",{"$f":"VLOOKUP(B66:B127,'разряды м.'!$A$5:$AB$205,2,FALSE)","v":"Витебск"},{"$f":"VLOOKUP(B66:B127,'разряды м.'!$A$5:$AB$205,3,FALSE)","v":1987},{"$f":"VLOOKUP(B:B,'разряды м.'!$A$5:$AB$205,28,FALSE)","v":"б/р"},null,null,null,null,0.8]
[62,"Макеенко Михаил",{"$f":"VLOOKUP(B67:B121,'разряды м.'!$A$5:$AB$205,2,FALSE)","v":{"$error":"#N/A"}},{"$f":"VLOOKUP(B67:B121,'разряды м.'!$A$5:$AB$205,3,FALSE)","v":{"$error":"#N/A"}},{"$f":"VLOOKUP(B:B,'разряды м.'!$A$5:$AB$205,28,FALSE)","v":{"$error":"#N/A"}},null,null,0.7,null,{"$f":"SUM(F67:I67)","v":0.7}]

{"sheet":"женщины б.","index":1,"n_rows":48,"n_cols":10,"rows_kept":48,"cut":false,"hidden":false,"merged":[[0,0,0,4],[1,0,1,4],[2,0,2,2],[3,4,4,4],[2,9,4,9],[3,0,4,0],[3,1,4,1],[3,2,4,2],[3,3,4,3]]}
["Текущий рейтинг"]
["Женщины, болдеринг"]
["на 9.03.2015 года",null,null,null,null,"КРБ-2013","ЧРБ-2014","КРБ-2014","ЧРБ-2015","общий рез-т"]
["№ п/п","Фамилия, Имя","Команда","г.р.","Подтвержденный разряд","Пинск","Минск","Пинск","Минск"]
[null,null,null,null,null,"22-25.11","21-23.02","22-23.11","27.02-1.03"]
[1,"Рак Ольга",{"$f":"VLOOKUP($B$6:$B$48,'разряды ж.'!$A$5:$AB$202,2,FALSE)","v":"Пуховичский р-н"},{"$f":"VLOOKUP($B$6:$B$48,'разряды ж.'!$A$5:$AB$202,3,FALSE)","v":1985},{"$f":"VLOOKUP($B$6:$B$48,'разряды ж.'!$A$5:$AB$202,28,FALSE)","v":"МС"},89.5,88,36,60.2,{"$f":"SUM(F6:I6)","v":273.7}]
[2,"Малыженкова Лариса",{"$f":"VLOOKUP($B$6:$B$48,'разряды ж.'!$A$5:$AB$202,2,FALSE)","v":"Минск"},{"$f":"VLOOKUP($B$6:$B$48,'разряды ж.'!$A$5:$AB$202,3,FALSE)","v":1975},{"$f":"VLOOKUP($B$6:$B$48,'разряды ж.'!$A$5:$AB$202,28,FALSE)","v":"КМС"},57.9,69.099999999999994,null,46.2,173.2]
[3,"Веретенникова Елена",{"$f":"VLOOKUP($B$6:$B$48,'разряды ж.'!$A$5:$AB$202,2,FALSE)","v":"Минск"},{"$f":"VLOOKUP($B$6:$B$48,'разряды ж.'!$A$5:$AB$202,3,FALSE)","v":1991},{"$f":"VLOOKUP($B$6:$B$48,'разряды ж.'!$A$5:$AB$202,28,FALSE)","v":"КМС"},45.2,54.9,null,35.700000000000003,135.80000000000001]
[4,"Андреева Елена",{"$f":"VLOOKUP($B$6:$B$48,'разряды ж.'!$A$5:$AB$202,2,FALSE)","v":"Гомельская обл."},{"$f":"VLOOKUP($B$6:$B$48,'разряды ж.'!$A$5:$AB$202,3,FALSE)","v":1982},{"$f":"VLOOKUP($B$6:$B$48,'разряды ж.'!$A$5:$AB$202,28,FALSE)","v":"КМС"},35.299999999999997,41.6,13.5,18.2,108.60000000000001]
[5,"Лясович Наталья",{"$f":"VLOOKUP($B$6:$B$48,'разряды ж.'!$A$5:$AB$202,2,FALSE)","v":"Витебск"},{"$f":"VLOOKUP($B$6:$B$48,'разряды ж.'!$A$5:$AB$202,3,FALSE)","v":1985},{"$f":"VLOOKUP($B$6:$B$48,'разряды ж.'!$A$5:$AB$202,28,FALSE)","v":1},22.6,37.799999999999997,18.5,23.1,102]
[6,"Зюзина Елена",{"$f":"VLOOKUP($B$6:$B$48,'разряды ж.'!$A$5:$AB$202,2,FALSE)","v":"Хан-Тенгри"},{"$f":"VLOOKUP($B$6:$B$48,'разряды ж.'!$A$5:$AB$202,3,FALSE)","v":1978},{"$f":"VLOOKUP($B$6:$B$48,'разряды ж.'!$A$5:$AB$202,28,FALSE)","v":1},41.6,28.4,null,28.7,98.7]
[7,"Федоркевич Светлана",{"$f":"VLOOKUP($B$6:$B$48,'разряды ж.'!$A$5:$AB$202,2,FALSE)","v":"ГОЦТиКДиМ"},{"$f":"VLOOKUP($B$6:$B$48,'разряды ж.'!$A$5:$AB$202,3,FALSE)","v":1992},{"$f":"VLOOKUP($B$6:$B$48,'разряды ж.'!$A$5:$AB$202,28,FALSE)","v":"КМС"},48.8,45.4,null,null,94.199999999999989]
[8,"Кузина Юлия",{"$f":"VLOOKUP($B$6:$B$48,'разряды ж.'!$A$5:$AB$202,2,FALSE)","v":"Бобруйск"},{"$f":"VLOOKUP($B$6:$B$48,'разряды ж.'!$A$5:$AB$202,3,FALSE)","v":1999},{"$f":"VLOOKUP($B$6:$B$48,'разряды ж.'!$A$5:$AB$202,28,FALSE)","v":1},29.8,31.2,26,null,87]
[9,"Чемякина Валентина",{"$f":"VLOOKUP($B$6:$B$48,'разряды ж.'!$A$5:$AB$202,2,FALSE)","v":"Минск"},{"$f":"VLOOKUP($B$6:$B$48,'разряды ж.'!$A$5:$AB$202,3,FALSE)","v":1996},{"$f":"VLOOKUP($B$6:$B$48,'разряды ж.'!$A$5:$AB$202,28,FALSE)","v":1},38,34.1,null,null,72.099999999999994]
[10,"Самсонова Мария",{"$f":"VLOOKUP($B$6:$B$48,'разряды ж.'!$A$5:$AB$202,2,FALSE)","v":"С/к «Торпедо»  Мг."},{"$f":"VLOOKUP($B$6:$B$48,'разряды ж.'!$A$5:$AB$202,3,FALSE)","v":1984},{"$f":"VLOOKUP($B$6:$B$48,'разряды ж.'!$A$5:$AB$202,28,FALSE)","v":"КМС"},71.400000000000006,null,null,null,71.400000000000006]
[11,"Верниковская Мария",{"$f":"VLOOKUP($B$6:$B$48,'разряды ж.'!$A$5:$AB$202,2,FALSE)","v":"Пуховичский р-н"},{"$f":"VLOOKUP($B$6:$B$48,'разряды ж.'!$A$5:$AB$202,3,FALSE)","v":2000},{"$f":"VLOOKUP($B$6:$B$48,'разряды ж.'!$A$5:$AB$202,28,FALSE)","v":2},20.8,14.2,null,20.3,55.3]
[12,"Баева Диана",{"$f":"VLOOKUP($B$6:$B$48,'разряды ж.'!$A$5:$AB$202,2,FALSE)","v":"МогилёвскийОЦФВиС"},{"$f":"VLOOKUP($B$6:$B$48,'разряды ж.'!$A$5:$AB$202,3,FALSE)","v":2000},{"$f":"VLOOKUP($B$6:$B$48,'разряды ж.'!$A$5:$AB$202,28,FALSE)","v":2},17.2,18,11.5,null,46.7]
[13,"Веретенникова Екатерина",{"$f":"VLOOKUP($B$6:$B$48,'разряды ж.'!$A$5:$AB$202,2,FALSE)","v":"Минск"},{"$f":"VLOOKUP($B$6:$B$48,'разряды ж.'!$A$5:$AB$202,3,FALSE)","v":1989},{"$f":"VLOOKUP($B$6:$B$48,'разряды ж.'!$A$5:$AB$202,28,FALSE)","v":"б/р"},11.8,8.5,7.5,14,41.8]
[14,"Чуйко Полина",{"$f":"VLOOKUP($B$6:$B$48,'разряды ж.'!$A$5:$AB$202,2,FALSE)","v":"Минск"},{"$f":"VLOOKUP($B$6:$B$48,'разряды ж.'!$A$5:$AB$202,3,FALSE)","v":1990},{"$f":"VLOOKUP($B$6:$B$48,'разряды ж.'!$A$5:$AB$202,28,FALSE)","v":1},null,22.7,null,16.100000000000001,38.799999999999997]
[15,"Кореневская Вероника",{"$f":"VLOOKUP($B$6:$B$48,'разряды ж.'!$A$5:$AB$202,2,FALSE)","v":"Минск"},{"$f":"VLOOKUP($B$6:$B$48,'разряды ж.'!$A$5:$AB$202,3,FALSE)","v":1997},{"$f":"VLOOKUP($B$6:$B$48,'разряды ж.'!$A$5:$AB$202,28,FALSE)","v":2},32.5,null,4.5,null,37]
[16,"Шуляк Марина",{"$f":"VLOOKUP($B$6:$B$48,'разряды ж.'!$A$5:$AB$202,2,FALSE)","v":"Хан-Тенгри"},{"$f":"VLOOKUP($B$6:$B$48,'разряды ж.'!$A$5:$AB$202,3,FALSE)","v":1989},{"$f":"VLOOKUP($B$6:$B$48,'разряды ж.'!$A$5:$AB$202,28,FALSE)","v":"б/р"},27.1,null,null,9.8000000000000007,36.900000000000006]
[17,"Титкина Дарья",{"$f":"VLOOKUP($B$6:$B$48,'разряды ж.'!$A$5:$AB$202,2,FALSE)","v":"Хан-Тенгри"},{"$f":"VLOOKUP($B$6:$B$48,'разряды ж.'!$A$5:$AB$202,3,FALSE)","v":1986},{"$f":"VLOOKUP($B$6:$B$48,'разряды ж.'!$A$5:$AB$202,28,FALSE)","v":2},null,null,6,25.9,31.9]
[18,"Якубович Карина",{"$f":"VLOOKUP($B$6:$B$48,'разряды ж.'!$A$5:$AB$202,2,FALSE)","v":"ЦТиКДМ г. Пинска"},{"$f":"VLOOKUP($B$6:$B$48,'разряды ж.'!$A$5:$AB$202,3,FALSE)","v":1998},{"$f":"VLOOKUP($B$6:$B$48,'разряды ж.'!$A$5:$AB$202,28,FALSE)","v":2},13.6,14.2,null,null,27.799999999999997]
[19,"Семейко Галина",{"$f":"VLOOKUP($B$6:$B$48,'разряды ж.'!$A$5:$AB$202,2,FALSE)","v":"Минск"},{"$f":"VLOOKUP($B$6:$B$48,'разряды ж.'!$A$5:$AB$202,3,FALSE)","v":1982},{"$f":"VLOOKUP($B$6:$B$48,'разряды ж.'!$A$5:$AB$202,28,FALSE)","v":1},null,25.5,null,null,25.5]
[20,"Полещук Татьяна",{"$f":"VLOOKUP($B$6:$B$48,'разряды ж.'!$A$5:$AB$202,2,FALSE)","v":{"$error":"#N/A"}},{"$f":"VLOOKUP($B$6:$B$48,'разряды ж.'!$A$5:$AB$202,3,FALSE)","v":{"$error":"#N/A"}},{"$f":"VLOOKUP($B$6:$B$48,'разряды ж.'!$A$5:$AB$202,28,FALSE)","v":{"$error":"#N/A"}},24.4,null,null,null,24.4]
[21,"Мисюкевич Александра",{"$f":"VLOOKUP($B$6:$B$48,'разряды ж.'!$A$5:$AB$202,2,FALSE)","v":"Минск"},{"$f":"VLOOKUP($B$6:$B$48,'разряды ж.'!$A$5:$AB$202,3,FALSE)","v":1994},{"$f":"VLOOKUP($B$6:$B$48,'разряды ж.'!$A$5:$AB$202,28,FALSE)","v":2},null,14.2,9.5,null,23.7]
[22,"Сивчик Вероника",{"$f":"VLOOKUP($B$6:$B$48,'разряды ж.'!$A$5:$AB$202,2,FALSE)","v":{"$error":"#N/A"}},{"$f":"VLOOKUP($B$6:$B$48,'разряды ж.'!$A$5:$AB$202,3,FALSE)","v":{"$error":"#N/A"}},{"$f":"VLOOKUP($B$6:$B$48,'разряды ж.'!$A$5:$AB$202,28,FALSE)","v":{"$error":"#N/A"}},9.9,10.4,null,null,20.3]
[23,"Верхоглядова Елена",{"$f":"VLOOKUP($B$6:$B$48,'разряды ж.'!$A$5:$AB$202,2,FALSE)","v":"Хан-Тенгри"},{"$f":"VLOOKUP($B$6:$B$48,'разряды ж.'!$A$5:$AB$202,3,FALSE)","v":1987},{"$f":"VLOOKUP($B$6:$B$48,'разряды ж.'!$A$5:$AB$202,28,FALSE)","v":1},null,19.899999999999999,null,null,19.899999999999999]
[24,"Никифоровец Екатерина",{"$f":"VLOOKUP($B$6:$B$48,'разряды ж.'!$A$5:$AB$202,2,FALSE)","v":"Минск"},{"$f":"VLOOKUP($B$6:$B$48,'разряды ж.'!$A$5:$AB$202,3,FALSE)","v":1973},{"$f":"VLOOKUP($B$6:$B$48,'разряды ж.'!$A$5:$AB$202,28,FALSE)","v":"б/р"},19,null,null,null,19]
[25,"Вербанович Маргарита",{"$f":"VLOOKUP($B$6:$B$48,'разряды ж.'!$A$5:$AB$202,2,FALSE)","v":"Брестская область"},{"$f":"VLOOKUP($B$6:$B$48,'разряды ж.'!$A$5:$AB$202,3,FALSE)","v":1999},{"$f":"VLOOKUP($B$6:$B$48,'разряды ж.'!$A$5:$AB$202,28,FALSE)","v":"б/р"},15.4,null,null,null,15.4]
[26,"Ракитская Анастасия",{"$f":"VLOOKUP($B$6:$B$48,'разряды ж.'!$A$5:$AB$202,2,FALSE)","v":"Хан-Тенгри"},{"$f":"VLOOKUP($B$6:$B$48,'разряды ж.'!$A$5:$AB$202,3,FALSE)","v":1994},{"$f":"VLOOKUP($B$6:$B$48,'разряды ж.'!$A$5:$AB$202,28,FALSE)","v":"б/р"},4.0999999999999996,1.9,null,7,13]
[27,"Разуменко Кристина",{"$f":"VLOOKUP($B$6:$B$48,'разряды ж.'!$A$5:$AB$202,2,FALSE)","v":{"$error":"#N/A"}},{"$f":"VLOOKUP($B$6:$B$48,'разряды ж.'!$A$5:$AB$202,3,FALSE)","v":{"$error":"#N/A"}},{"$f":"VLOOKUP($B$6:$B$48,'разряды ж.'!$A$5:$AB$202,28,FALSE)","v":{"$error":"#N/A"}},6.3,6.6,null,null,12.899999999999999]
[28,"Кечик Юлия",{"$f":"VLOOKUP($B$6:$B$48,'разряды ж.'!$A$5:$AB$202,2,FALSE)","v":"Хан-Тенгри"},{"$f":"VLOOKUP($B$6:$B$48,'разряды ж.'!$A$5:$AB$202,3,FALSE)","v":1987},{"$f":"VLOOKUP($B$6:$B$48,'разряды ж.'!$A$5:$AB$202,28,FALSE)","v":"б/р"},null,null,null,11.9,11.9]
[29,"Копусова Ксения",{"$f":"VLOOKUP($B$6:$B$48,'разряды ж.'!$A$5:$AB$202,2,FALSE)","v":"Минск"},{"$f":"VLOOKUP($B$6:$B$48,'разряды ж.'!$A$5:$AB$202,3,FALSE)","v":2001},{"$f":"VLOOKUP($B$6:$B$48,'разряды ж.'!$A$5:$AB$202,28,FALSE)","v":2},null,null,null,8.4,8.4]
[30,"Кузичева Таисия",{"$f":"VLOOKUP($B$6:$B$48,'разряды ж.'!$A$5:$AB$202,2,FALSE)","v":"ГОЦТиКДиМ"},{"$f":"VLOOKUP($B$6:$B$48,'разряды ж.'!$A$5:$AB$202,3,FALSE)","v":2000},{"$f":"VLOOKUP($B$6:$B$48,'разряды ж.'!$A$5:$AB$202,28,FALSE)","v":2},5.4,2.8,null,null,8.1999999999999993]
[31,"Воронина Татьяна",{"$f":"VLOOKUP($B$6:$B$48,'разряды ж.'!$A$5:$AB$202,2,FALSE)","v":{"$error":"#N/A"}},{"$f":"VLOOKUP($B$6:$B$48,'разряды ж.'!$A$5:$AB$202,3,FALSE)","v":{"$error":"#N/A"}},{"$f":"VLOOKUP($B$6:$B$48,'разряды ж.'!$A$5:$AB$202,28,FALSE)","v":{"$error":"#N/A"}},8.1,null,null,null,8.1]
[32,"Тарабуева Наталья",{"$f":"VLOOKUP($B$6:$B$48,'разряды ж.'!$A$5:$AB$202,2,FALSE)","v":{"$error":"#N/A"}},{"$f":"VLOOKUP($B$6:$B$48,'разряды ж.'!$A$5:$AB$202,3,FALSE)","v":{"$error":"#N/A"}},{"$f":"VLOOKUP($B$6:$B$48,'разряды ж.'!$A$5:$AB$202,28,FALSE)","v":{"$error":"#N/A"}},7.2,null,null,null,7.2]
[33,"Русинович Светлана",{"$f":"VLOOKUP($B$6:$B$48,'разряды ж.'!$A$5:$AB$202,2,FALSE)","v":"ГОЦТиКДиМ"},{"$f":"VLOOKUP($B$6:$B$48,'разряды ж.'!$A$5:$AB$202,3,FALSE)","v":1991},{"$f":"VLOOKUP($B$6:$B$48,'разряды ж.'!$A$5:$AB$202,28,FALSE)","v":"б/р"},null,null,null,5.6,5.6]
[34,"Климович Янина",{"$f":"VLOOKUP($B$6:$B$48,'разряды ж.'!$A$5:$AB$202,2,FALSE)","v":{"$error":"#N/A"}},{"$f":"VLOOKUP($B$6:$B$48,'разряды ж.'!$A$5:$AB$202,3,FALSE)","v":{"$error":"#N/A"}},{"$f":"VLOOKUP($B$6:$B$48,'разряды ж.'!$A$5:$AB$202,28,FALSE)","v":{"$error":"#N/A"}},null,4.7,null,null,4.7]
[35,"Гацулина Анастасия",{"$f":"VLOOKUP($B$6:$B$48,'разряды ж.'!$A$5:$AB$202,2,FALSE)","v":"ГОЦТиКДиМ"},{"$f":"VLOOKUP($B$6:$B$48,'разряды ж.'!$A$5:$AB$202,3,FALSE)","v":1997},{"$f":"VLOOKUP($B$6:$B$48,'разряды ж.'!$A$5:$AB$202,28,FALSE)","v":"б/р"},null,null,null,4.2,4.2]
[36,"Грищенко Екатерина",{"$f":"VLOOKUP($B$6:$B$48,'разряды ж.'!$A$5:$AB$202,2,FALSE)","v":{"$error":"#N/A"}},{"$f":"VLOOKUP($B$6:$B$48,'разряды ж.'!$A$5:$AB$202,3,FALSE)","v":{"$error":"#N/A"}},{"$f":"VLOOKUP($B$6:$B$48,'разряды ж.'!$A$5:$AB$202,28,FALSE)","v":{"$error":"#N/A"}},4.0999999999999996,null,null,null,4.0999999999999996]
[37,"Вежновец Екатерина",{"$f":"VLOOKUP($B$6:$B$48,'разряды ж.'!$A$5:$AB$202,2,FALSE)","v":"Минск"},{"$f":"VLOOKUP($B$6:$B$48,'разряды ж.'!$A$5:$AB$202,3,FALSE)","v":0},{"$f":"VLOOKUP($B$6:$B$48,'разряды ж.'!$A$5:$AB$202,28,FALSE)","v":3},null,null,3,null,3]
[38,"Причинич Евгения",{"$f":"VLOOKUP($B$6:$B$48,'разряды ж.'!$A$5:$AB$202,2,FALSE)","v":"ГОЦТиКДиМ"},{"$f":"VLOOKUP($B$6:$B$48,'разряды ж.'!$A$5:$AB$202,3,FALSE)","v":1990},{"$f":"VLOOKUP($B$6:$B$48,'разряды ж.'!$A$5:$AB$202,28,FALSE)","v":"б/р"},null,null,null,2.8,2.8]
[39,"Савицкая Екатерина",{"$f":"VLOOKUP($B$6:$B$48,'разряды ж.'!$A$5:$AB$202,2,FALSE)","v":{"$error":"#N/A"}},{"$f":"VLOOKUP($B$6:$B$48,'разряды ж.'!$A$5:$AB$202,3,FALSE)","v":{"$error":"#N/A"}},{"$f":"VLOOKUP($B$6:$B$48,'разряды ж.'!$A$5:$AB$202,28,FALSE)","v":{"$error":"#N/A"}},2.7,null,null,null,2.7]
[40,"Шпунтова Анна",{"$f":"VLOOKUP($B$6:$B$48,'разряды ж.'!$A$5:$AB$202,2,FALSE)","v":{"$error":"#N/A"}},{"$f":"VLOOKUP($B$6:$B$48,'разряды ж.'!$A$5:$AB$202,3,FALSE)","v":{"$error":"#N/A"}},{"$f":"VLOOKUP($B$6:$B$48,'разряды ж.'!$A$5:$AB$202,28,FALSE)","v":{"$error":"#N/A"}},1.4,0.9,null,null,2.2999999999999998]
[41,"Комарчук Елена  ",{"$f":"VLOOKUP($B$6:$B$48,'разряды ж.'!$A$5:$AB$202,2,FALSE)","v":{"$error":"#N/A"}},{"$f":"VLOOKUP($B$6:$B$48,'разряды ж.'!$A$5:$AB$202,3,FALSE)","v":{"$error":"#N/A"}},{"$f":"VLOOKUP($B$6:$B$48,'разряды ж.'!$A$5:$AB$202,28,FALSE)","v":{"$error":"#N/A"}},null,null,1.5,null,1.5]
[42,"Самохвалова Анастасия",{"$f":"VLOOKUP($B$6:$B$48,'разряды ж.'!$A$5:$AB$202,2,FALSE)","v":"Гомельская обл."},{"$f":"VLOOKUP($B$6:$B$48,'разряды ж.'!$A$5:$AB$202,3,FALSE)","v":1997},{"$f":"VLOOKUP($B$6:$B$48,'разряды ж.'!$A$5:$AB$202,28,FALSE)","v":"б/р"},null,null,null,1.4,1.4]
[43,"Клещёнок Светлана",{"$f":"VLOOKUP($B$6:$B$48,'разряды ж.'!$A$5:$AB$202,2,FALSE)","v":{"$error":"#N/A"}},{"$f":"VLOOKUP($B$6:$B$48,'разряды ж.'!$A$5:$AB$202,3,FALSE)","v":{"$error":"#N/A"}},{"$f":"VLOOKUP($B$6:$B$48,'разряды ж.'!$A$5:$AB$202,28,FALSE)","v":{"$error":"#N/A"}},1.4,null,null,null,1.4]

{"sheet":"мужчины ск.","index":2,"n_rows":36,"n_cols":9,"rows_kept":36,"cut":false,"hidden":false,"merged":[[0,0,0,8],[2,0,3,0],[2,1,3,1],[2,2,3,2],[2,3,3,3],[1,8,3,8],[2,4,3,4]]}
["Текущий рейтинг. Скорость. Мужчины."]
[null,"на 1.05.2015 года",null,null,null,"ЧРБ-2013","КБ-2014","ЧРБ-2015","общий рез-т"]
["Место ","Фамилия Имя","Команда","г.р.","Подтвержденный разряд","Витебск","Витебск","Витебск"]
[null,null,null,null,null,"5-8.12.","10-13.04.","17-20.04.15"]
[1,"Караваев Дмитрий",{"$f":"VLOOKUP(B5:B28,'разряды м.'!$A$5:$AB$205,2,FALSE)","v":"Гомельская обл."},{"$f":"VLOOKUP(B5:B66,'разряды м.'!$A$5:$AB$205,3,FALSE)","v":1993},{"$f":"VLOOKUP(B:B,'разряды м.'!$A$5:$AB$205,28,FALSE)","v":"КМС"},49.1,51.2,71.317823908375075,{"$f":"SUM(F5:H5)","v":171.6178239083751}]
[2,"Клюжев Александр",{"$f":"VLOOKUP(B6:B29,'разряды м.'!$A$5:$AB$205,2,FALSE)","v":"Гомельская обл."},{"$f":"VLOOKUP(B6:B67,'разряды м.'!$A$5:$AB$205,3,FALSE)","v":1997},{"$f":"VLOOKUP(B:B,'разряды м.'!$A$5:$AB$205,28,FALSE)","v":"МС"},40.6,37.700000000000003,42.293128131710802,120.59312813171081]
[3,"Дюбенков Дмитрий",{"$f":"VLOOKUP(B7:B30,'разряды м.'!$A$5:$AB$205,2,FALSE)","v":"Гомельская обл."},{"$f":"VLOOKUP(B7:B68,'разряды м.'!$A$5:$AB$205,3,FALSE)","v":1992},{"$f":"VLOOKUP(B:B,'разряды м.'!$A$5:$AB$205,28,FALSE)","v":"КМС"},78.7,27.6,2.4878310665712235,108.78783106657123]
[4,"Вальковский Владимир",{"$f":"VLOOKUP(B8:B31,'разряды м.'!$A$5:$AB$205,2,FALSE)","v":"ГОЦТиКДиМ Гомель"},{"$f":"VLOOKUP(B8:B69,'разряды м.'!$A$5:$AB$205,3,FALSE)","v":1992},{"$f":"VLOOKUP(B:B,'разряды м.'!$A$5:$AB$205,28,FALSE)","v":"КМС"},null,20.9,54.732283464566919,75.63228346456691]
[5,"Логунов Никита",{"$f":"VLOOKUP(B9:B32,'разряды м.'!$A$5:$AB$205,2,FALSE)","v":"ДЮСШ «Омега» Гом."},{"$f":"VLOOKUP(B9:B70,'разряды м.'!$A$5:$AB$205,3,FALSE)","v":1999},{"$f":"VLOOKUP(B:B,'разряды м.'!$A$5:$AB$205,28,FALSE)","v":"КМС"},33.9,null,34.000357909806723,67.900357909806729]
[6,"Денисевич Евгений",{"$f":"VLOOKUP(B10:B33,'разряды м.'!$A$5:$AB$205,2,FALSE)","v":"Брестская область"},{"$f":"VLOOKUP(B10:B71,'разряды м.'!$A$5:$AB$205,3,FALSE)","v":1994},{"$f":"VLOOKUP(B:B,'разряды м.'!$A$5:$AB$205,28,FALSE)","v":"КМС"},61.8,null,null,61.8]
[7,"Никифоровец Андрей",{"$f":"VLOOKUP(B11:B34,'разряды м.'!$A$5:$AB$205,2,FALSE)","v":"Минск"},{"$f":"VLOOKUP(B11:B72,'разряды м.'!$A$5:$AB$205,3,FALSE)","v":1974},{"$f":"VLOOKUP(B:B,'разряды м.'!$A$5:$AB$205,28,FALSE)","v":"МС"},37.299999999999997,15.5,4.9756621331424471,57.775662133142447]
[8,"Сердаков Илья",{"$f":"VLOOKUP(B12:B35,'разряды м.'!$A$5:$AB$205,2,FALSE)","v":"ГОЦТиКДиМ Гомель"},{"$f":"VLOOKUP(B12:B73,'разряды м.'!$A$5:$AB$205,3,FALSE)","v":1999},{"$f":"VLOOKUP(B:B,'разряды м.'!$A$5:$AB$205,28,FALSE)","v":"КМС"},16.100000000000001,10.8,30.683249821045091,57.583249821045094]
[9,"Буйленков Павел",{"$f":"VLOOKUP(B13:B36,'разряды м.'!$A$5:$AB$205,2,FALSE)","v":"Гомельская обл."},{"$f":"VLOOKUP(B13:B74,'разряды м.'!$A$5:$AB$205,3,FALSE)","v":1993},{"$f":"VLOOKUP(B:B,'разряды м.'!$A$5:$AB$205,28,FALSE)","v":"КМС"},14.4,18.2,2.4878310665712235,35.087831066571226]
[10,"Аблажевич Виктор",{"$f":"VLOOKUP(B14:B37,'разряды м.'!$A$5:$AB$205,2,FALSE)","v":"Гомельская обл."},{"$f":"VLOOKUP(B14:B75,'разряды м.'!$A$5:$AB$205,3,FALSE)","v":2000},{"$f":"VLOOKUP(B:B,'разряды м.'!$A$5:$AB$205,28,FALSE)","v":2},2.5,4.7,27.366141732283459,34.566141732283462]
[11,"Покаместов Илья",{"$f":"VLOOKUP(B15:B38,'разряды м.'!$A$5:$AB$205,2,FALSE)","v":"Витебск"},{"$f":"VLOOKUP(B15:B76,'разряды м.'!$A$5:$AB$205,3,FALSE)","v":1977},{"$f":"VLOOKUP(B:B,'разряды м.'!$A$5:$AB$205,28,FALSE)","v":1},22.9,8.8000000000000007,null,31.7]
[12,"Пуйто Антон",{"$f":"VLOOKUP(B16:B39,'разряды м.'!$A$5:$AB$205,2,FALSE)","v":"ГОЦТиКДиМ Гомель"},{"$f":"VLOOKUP(B16:B77,'разряды м.'!$A$5:$AB$205,3,FALSE)","v":1998},{"$f":"VLOOKUP(B:B,'разряды м.'!$A$5:$AB$205,28,FALSE)","v":1},17.8,12.8,null,30.6]
[13,"Волосович Дмитрий",{"$f":"VLOOKUP(B17:B40,'разряды м.'!$A$5:$AB$205,2,FALSE)","v":"Гомельская обл."},{"$f":"VLOOKUP(B17:B78,'разряды м.'!$A$5:$AB$205,3,FALSE)","v":1995},{"$f":"VLOOKUP(B:B,'разряды м.'!$A$5:$AB$205,28,FALSE)","v":"КМС"},30.5,null,null,30.5]
[14,"Пристромов Антон",{"$f":"VLOOKUP(B18:B41,'разряды м.'!$A$5:$AB$205,2,FALSE)","v":"ДЮСШ «Омега» Гом."},{"$f":"VLOOKUP(B18:B79,'разряды м.'!$A$5:$AB$205,3,FALSE)","v":1988},{"$f":"VLOOKUP(B:B,'разряды м.'!$A$5:$AB$205,28,FALSE)","v":"КМС"},27.9,null,null,27.9]
[15,"Никифоровец Максим",{"$f":"VLOOKUP(B19:B42,'разряды м.'!$A$5:$AB$205,2,FALSE)","v":"Минск"},{"$f":"VLOOKUP(B19:B80,'разряды м.'!$A$5:$AB$205,3,FALSE)","v":1997},{"$f":"VLOOKUP(B:B,'разряды м.'!$A$5:$AB$205,28,FALSE)","v":"КМС"},25.4,null,null,25.4]
[16,"Лялюк Александр",{"$f":"VLOOKUP(B20:B43,'разряды м.'!$A$5:$AB$205,2,FALSE)","v":"г. Витебск"},{"$f":"VLOOKUP(B20:B81,'разряды м.'!$A$5:$AB$205,3,FALSE)","v":1989},{"$f":"VLOOKUP(B:B,'разряды м.'!$A$5:$AB$205,28,FALSE)","v":2},null,null,24.049033643521827,24.049033643521827]
[17,"Талдыкин Илья",{"$f":"VLOOKUP(B21:B44,'разряды м.'!$A$5:$AB$205,2,FALSE)","v":"ДЮСШ «Омега» Гом."},{"$f":"VLOOKUP(B21:B82,'разряды м.'!$A$5:$AB$205,3,FALSE)","v":2000},{"$f":"VLOOKUP(B:B,'разряды м.'!$A$5:$AB$205,28,FALSE)","v":2},4.2,null,19.073371510379381,23.273371510379381]
[18,"Мертенс Андрей",{"$f":"VLOOKUP(B22:B45,'разряды м.'!$A$5:$AB$205,2,FALSE)","v":"г. Витебск"},{"$f":"VLOOKUP(B22:B83,'разряды м.'!$A$5:$AB$205,3,FALSE)","v":1992},{"$f":"VLOOKUP(B:B,'разряды м.'!$A$5:$AB$205,28,FALSE)","v":3},null,null,21.561202576950606,21.561202576950606]
[19,"Никоноров Дмитрий",{"$f":"VLOOKUP(B23:B46,'разряды м.'!$A$5:$AB$205,2,FALSE)","v":"Пуховичский р-н"},{"$f":"VLOOKUP(B23:B84,'разряды м.'!$A$5:$AB$205,3,FALSE)","v":1997},{"$f":"VLOOKUP(B:B,'разряды м.'!$A$5:$AB$205,28,FALSE)","v":"КМС"},20.3,null,null,20.3]
[20,"Зюзин Иван",{"$f":"VLOOKUP(B24:B47,'разряды м.'!$A$5:$AB$205,2,FALSE)","v":"Минск"},{"$f":"VLOOKUP(B24:B85,'разряды м.'!$A$5:$AB$205,3,FALSE)","v":2001},{"$f":"VLOOKUP(B:B,'разряды м.'!$A$5:$AB$205,28,FALSE)","v":1},null,null,16.585540443808156,16.585540443808156]
[21,"Давыдов Денис",{"$f":"VLOOKUP(B25:B48,'разряды м.'!$A$5:$AB$205,2,FALSE)","v":"Минск"},{"$f":"VLOOKUP(B25:B86,'разряды м.'!$A$5:$AB$205,3,FALSE)","v":2000},{"$f":"VLOOKUP(B:B,'разряды м.'!$A$5:$AB$205,28,FALSE)","v":1},9.3000000000000007,6.7,null,16]
[22,"Степаненко Олег",{"$f":"VLOOKUP(B26:B49,'разряды м.'!$A$5:$AB$205,2,FALSE)","v":"Гомельская обл."},{"$f":"VLOOKUP(B26:B87,'разряды м.'!$A$5:$AB$205,3,FALSE)","v":2001},{"$f":"VLOOKUP(B:B,'разряды м.'!$A$5:$AB$205,28,FALSE)","v":"1 юн"},null,null,14.097709377236933,14.097709377236933]
[23,"Силивончик Виктор",{"$f":"VLOOKUP(B27:B50,'разряды м.'!$A$5:$AB$205,2,FALSE)","v":{"$error":"#N/A"}},{"$f":"VLOOKUP(B27:B88,'разряды м.'!$A$5:$AB$205,3,FALSE)","v":{"$error":"#N/A"}},{"$f":"VLOOKUP(B:B,'разряды м.'!$A$5:$AB$205,28,FALSE)","v":{"$error":"#N/A"}},12.7,null,null,12.7]
[24,"Капитонов Илья",{"$f":"VLOOKUP(B28:B51,'разряды м.'!$A$5:$AB$205,2,FALSE)","v":{"$error":"#N/A"}},{"$f":"VLOOKUP(B28:B89,'разряды м.'!$A$5:$AB$205,3,FALSE)","v":{"$error":"#N/A"}},{"$f":"VLOOKUP(B:B,'разряды м.'!$A$5:$AB$205,28,FALSE)","v":{"$error":"#N/A"}},null,null,11.60987831066571,11.60987831066571]
[25,"Живица Арсений",{"$f":"VLOOKUP(B29:B52,'разряды м.'!$A$5:$AB$205,2,FALSE)","v":"Минск"},{"$f":"VLOOKUP(B29:B90,'разряды м.'!$A$5:$AB$205,3,FALSE)","v":2000},{"$f":"VLOOKUP(B:B,'разряды м.'!$A$5:$AB$205,28,FALSE)","v":1},11,null,null,11]
[26,"Бережной Максим",{"$f":"VLOOKUP(B30:B53,'разряды м.'!$A$5:$AB$205,2,FALSE)","v":"РЦЭК"},{"$f":"VLOOKUP(B30:B91,'разряды м.'!$A$5:$AB$205,3,FALSE)","v":2000},{"$f":"VLOOKUP(B:B,'разряды м.'!$A$5:$AB$205,28,FALSE)","v":3},null,null,9.9513242662848942,9.9513242662848942]
[27,"Писарев Кирилл",{"$f":"VLOOKUP(B31:B54,'разряды м.'!$A$5:$AB$205,2,FALSE)","v":"ДЮСШ «Омега» Гом."},{"$f":"VLOOKUP(B31:B92,'разряды м.'!$A$5:$AB$205,3,FALSE)","v":2001},{"$f":"VLOOKUP(B:B,'разряды м.'!$A$5:$AB$205,28,FALSE)","v":1},null,null,8.2927702219040782,8.2927702219040782]
[28,"Главацкий Сергей",{"$f":"VLOOKUP(B32:B55,'разряды м.'!$A$5:$AB$205,2,FALSE)","v":"Пуховичский р-н"},{"$f":"VLOOKUP(B32:B93,'разряды м.'!$A$5:$AB$205,3,FALSE)","v":1998},{"$f":"VLOOKUP(B:B,'разряды м.'!$A$5:$AB$205,28,FALSE)","v":1},7.6,null,null,7.6]
[29,"Самухин Василий",{"$f":"VLOOKUP(B33:B56,'разряды м.'!$A$5:$AB$205,2,FALSE)","v":"Минск"},{"$f":"VLOOKUP(B33:B94,'разряды м.'!$A$5:$AB$205,3,FALSE)","v":2000},{"$f":"VLOOKUP(B:B,'разряды м.'!$A$5:$AB$205,28,FALSE)","v":3},null,null,6.6342161775232631,6.6342161775232631]
[30,"Ахламенок Олег",{"$f":"VLOOKUP(B34:B57,'разряды м.'!$A$5:$AB$205,2,FALSE)","v":{"$error":"#N/A"}},{"$f":"VLOOKUP(B34:B95,'разряды м.'!$A$5:$AB$205,3,FALSE)","v":{"$error":"#N/A"}},{"$f":"VLOOKUP(B:B,'разряды м.'!$A$5:$AB$205,28,FALSE)","v":{"$error":"#N/A"}},5.9,null,null,5.9]
[31,"Огарко Михаил",{"$f":"VLOOKUP(B35:B58,'разряды м.'!$A$5:$AB$205,2,FALSE)","v":{"$error":"#N/A"}},{"$f":"VLOOKUP(B35:B96,'разряды м.'!$A$5:$AB$205,3,FALSE)","v":{"$error":"#N/A"}},{"$f":"VLOOKUP(B:B,'разряды м.'!$A$5:$AB$205,28,FALSE)","v":{"$error":"#N/A"}},0.8,1.3,null,2.1]
[32,"Стрельский Максим",{"$f":"VLOOKUP(B36:B59,'разряды м.'!$A$5:$AB$205,2,FALSE)","v":"Пуховичский р-н"},{"$f":"VLOOKUP(B36:B97,'разряды м.'!$A$5:$AB$205,3,FALSE)","v":1998},{"$f":"VLOOKUP(B:B,'разряды м.'!$A$5:$AB$205,28,FALSE)","v":"б/р"},1.7,null,null,1.7]

{"sheet":"женщины ск.","index":3,"n_rows":20,"n_cols":9,"rows_kept":20,"cut":false,"hidden":false,"merged":[[0,0,0,8],[3,0,4,0],[3,1,4,1],[3,2,4,2],[3,3,4,3],[2,8,4,8],[3,4,4,4]]}
["Текущий рейтинг. Скорость. Женщины."]
[]
[null,"на 1.05.2015 года",null,null,null,"ЧРБ-2013","КБ-2014","ЧРБ-2015","общий рез-т"]
["Место ","Фамилия Имя","Команда","г.р.","Подтвержденный разряд","Витебск","Витебск","Витебск"]
[null,null,null,null,null,"5-8.12.","10-13.04.","17-20.04.15"]
[1,"Федоркевич Светлана",{"$f":"VLOOKUP(B6:B16,'разряды ж.'!$A$5:$AB$202,2,FALSE)","v":"ГОЦТиКДиМ"},{"$f":"VLOOKUP(B6:B16,'разряды ж.'!$A$5:$AB$202,3,FALSE)","v":1992},{"$f":"VLOOKUP(B6:B34,'разряды ж.'!$A$5:$AB$202,28,FALSE)","v":"КМС"},21.4,23.4,null,{"$f":"SUM(F6:H6)","v":44.8}]
[2,"Кореневская Вероника",{"$f":"VLOOKUP(B7:B17,'разряды ж.'!$A$5:$AB$202,2,FALSE)","v":"Минск"},{"$f":"VLOOKUP(B7:B17,'разряды ж.'!$A$5:$AB$202,3,FALSE)","v":1997},{"$f":"VLOOKUP(B7:B35,'разряды ж.'!$A$5:$AB$202,28,FALSE)","v":2},5.5,14.6,13.434343434343432,33.534343434343434]
[3,"Ермохина Дарья",{"$f":"VLOOKUP(B8:B18,'разряды ж.'!$A$5:$AB$202,2,FALSE)","v":"РЦЭК"},{"$f":"VLOOKUP(B8:B18,'разряды ж.'!$A$5:$AB$202,3,FALSE)","v":1999},{"$f":"VLOOKUP(B8:B36,'разряды ж.'!$A$5:$AB$202,28,FALSE)","v":"1 юн"},null,7.9,8.7205387205387197,16.620538720538718]
[4,"Кузина Юлия",{"$f":"VLOOKUP(B9:B19,'разряды ж.'!$A$5:$AB$202,2,FALSE)","v":"Бобруйск"},{"$f":"VLOOKUP(B9:B19,'разряды ж.'!$A$5:$AB$202,3,FALSE)","v":1999},{"$f":"VLOOKUP(B9:B37,'разряды ж.'!$A$5:$AB$202,28,FALSE)","v":1},14.9,null,null,14.9]
[5,"Якубович Карина",{"$f":"VLOOKUP(B10:B20,'разряды ж.'!$A$5:$AB$202,2,FALSE)","v":"ЦТиКДМ г. Пинска"},{"$f":"VLOOKUP(B10:B20,'разряды ж.'!$A$5:$AB$202,3,FALSE)","v":1998},{"$f":"VLOOKUP(B10:B38,'разряды ж.'!$A$5:$AB$202,28,FALSE)","v":2},10,null,null,10]
[6,"Болсун Софья",{"$f":"VLOOKUP(B11:B21,'разряды ж.'!$A$5:$AB$202,2,FALSE)","v":"ДЮСШ \"Омега\" "},{"$f":"VLOOKUP(B11:B21,'разряды ж.'!$A$5:$AB$202,3,FALSE)","v":1998},{"$f":"VLOOKUP(B11:B39,'разряды ж.'!$A$5:$AB$202,28,FALSE)","v":"б/р"},4.2,3.5,null,7.7]
[7,"Разуменко Кристина",{"$f":"VLOOKUP(B12:B22,'разряды ж.'!$A$5:$AB$202,2,FALSE)","v":{"$error":"#N/A"}},{"$f":"VLOOKUP(B12:B22,'разряды ж.'!$A$5:$AB$202,3,FALSE)","v":{"$error":"#N/A"}},{"$f":"VLOOKUP(B12:B40,'разряды ж.'!$A$5:$AB$202,28,FALSE)","v":{"$error":"#N/A"}},6.8,null,null,6.8]
[8,"Копусова Ксения",{"$f":"VLOOKUP(B13:B23,'разряды ж.'!$A$5:$AB$202,2,FALSE)","v":"Минск"},{"$f":"VLOOKUP(B13:B23,'разряды ж.'!$A$5:$AB$202,3,FALSE)","v":2001},{"$f":"VLOOKUP(B13:B41,'разряды ж.'!$A$5:$AB$202,28,FALSE)","v":2},null,null,5.1851851851851842,5.1851851851851842]
[9,"Кузичева Таисия",{"$f":"VLOOKUP(B14:B24,'разряды ж.'!$A$5:$AB$202,2,FALSE)","v":"ГОЦТиКДиМ"},{"$f":"VLOOKUP(B14:B24,'разряды ж.'!$A$5:$AB$202,3,FALSE)","v":2000},{"$f":"VLOOKUP(B14:B42,'разряды ж.'!$A$5:$AB$202,28,FALSE)","v":2},2.9,null,null,2.9]
[10,"Гацулина Анастасия",{"$f":"VLOOKUP(B15:B25,'разряды ж.'!$A$5:$AB$202,2,FALSE)","v":"ГОЦТиКДиМ"},{"$f":"VLOOKUP(B15:B25,'разряды ж.'!$A$5:$AB$202,3,FALSE)","v":1997},{"$f":"VLOOKUP(B15:B43,'разряды ж.'!$A$5:$AB$202,28,FALSE)","v":"б/р"},null,null,2.8282828282828278,2.8282828282828278]
[11,"Тарасенко Анна",{"$f":"VLOOKUP(B16:B26,'разряды ж.'!$A$5:$AB$202,2,FALSE)","v":{"$error":"#N/A"}},{"$f":"VLOOKUP(B16:B26,'разряды ж.'!$A$5:$AB$202,3,FALSE)","v":{"$error":"#N/A"}},{"$f":"VLOOKUP(B16:B44,'разряды ж.'!$A$5:$AB$202,28,FALSE)","v":{"$error":"#N/A"}},1.9,null,null,1.9]
[12,"Русинович Светлана",{"$f":"VLOOKUP(B17:B27,'разряды ж.'!$A$5:$AB$202,2,FALSE)","v":"ГОЦТиКДиМ"},{"$f":"VLOOKUP(B17:B27,'разряды ж.'!$A$5:$AB$202,3,FALSE)","v":1991},{"$f":"VLOOKUP(B17:B45,'разряды ж.'!$A$5:$AB$202,28,FALSE)","v":"б/р"},null,null,1.8855218855218852,1.8855218855218852]
[13,"Белковец Екатерина",{"$f":"VLOOKUP(B18:B28,'разряды ж.'!$A$5:$AB$202,2,FALSE)","v":{"$error":"#N/A"}},{"$f":"VLOOKUP(B18:B28,'разряды ж.'!$A$5:$AB$202,3,FALSE)","v":{"$error":"#N/A"}},{"$f":"VLOOKUP(B18:B46,'разряды ж.'!$A$5:$AB$202,28,FALSE)","v":{"$error":"#N/A"}},null,1.8,null,1.8]
[14,"Баталко Мария",{"$f":"VLOOKUP(B19:B29,'разряды ж.'!$A$5:$AB$202,2,FALSE)","v":{"$error":"#N/A"}},{"$f":"VLOOKUP(B19:B29,'разряды ж.'!$A$5:$AB$202,3,FALSE)","v":{"$error":"#N/A"}},{"$f":"VLOOKUP(B19:B47,'разряды ж.'!$A$5:$AB$202,28,FALSE)","v":{"$error":"#N/A"}},1,null,null,1]
[15,"Коноплева Марина",{"$f":"VLOOKUP(B20:B30,'разряды ж.'!$A$5:$AB$202,2,FALSE)","v":"Гомельская обл."},{"$f":"VLOOKUP(B20:B30,'разряды ж.'!$A$5:$AB$202,3,FALSE)","v":2001},{"$f":"VLOOKUP(B20:B48,'разряды ж.'!$A$5:$AB$202,28,FALSE)","v":2},null,null,0.94276094276094258,0.94276094276094258]

{"sheet":"мужчины тр.","index":4,"n_rows":50,"n_cols":9,"rows_kept":50,"cut":false,"hidden":false,"merged":[[2,8,4,8],[3,4,4,4],[0,0,0,8],[1,0,1,8],[2,0,2,2],[3,0,4,0],[3,1,4,1],[3,2,4,2],[3,3,4,3]]}
["Текущий рейтинг"]
["Мужчины, трудность"]
["на 1.05.2015 года",null,null,null,null,"ЧРБ-2013","КБ-2014","ЧРБ-2015","общий рез-т"]
["М","Фамилия, Имя","Команда","г.р.","Подтвержденный разряд","Витебск","Витебск","Витебск"]
[null,null,null,null,null,"5-8.12.13","10-13.04.","17-20.04.15"]
[1,"Никифоровец Андрей",{"$f":"VLOOKUP(B6:B42,'разряды м.'!$A$5:$AB$205,2,FALSE)","v":"Минск"},{"$f":"VLOOKUP(B6:B42,'разряды м.'!$A$5:$AB$205,3,FALSE)","v":1974},{"$f":"VLOOKUP(B:B,'разряды м.'!$A$5:$AB$205,28,FALSE)","v":"МС"},95.344010763307452,63.9,66.965769280914841,{"$f":"SUM(F6:H6)","v":226.20978004422227}]
[2,"Клюжев Александр",{"$f":"VLOOKUP(B7:B43,'разряды м.'!$A$5:$AB$205,2,FALSE)","v":"Гомельская обл."},{"$f":"VLOOKUP(B7:B43,'разряды м.'!$A$5:$AB$205,3,FALSE)","v":1997},{"$f":"VLOOKUP(B:B,'разряды м.'!$A$5:$AB$205,28,FALSE)","v":"МС"},76.275208610645961,44.4,86.098846218319068,206.77405482896503]
[3,"Логунов Никита",{"$f":"VLOOKUP(B8:B44,'разряды м.'!$A$5:$AB$205,2,FALSE)","v":"ДЮСШ «Омега» Гом."},{"$f":"VLOOKUP(B8:B44,'разряды м.'!$A$5:$AB$205,3,FALSE)","v":1999},{"$f":"VLOOKUP(B:B,'разряды м.'!$A$5:$AB$205,28,FALSE)","v":"КМС"},61.97360699614984,44.4,52.615961577861654,158.98956857401151]
[4,"Яцыно Павел",{"$f":"VLOOKUP(B9:B45,'разряды м.'!$A$5:$AB$205,2,FALSE)","v":"Витебск"},{"$f":"VLOOKUP(B9:B45,'разряды м.'!$A$5:$AB$205,3,FALSE)","v":1986},{"$f":"VLOOKUP(B:B,'разряды м.'!$A$5:$AB$205,28,FALSE)","v":"КМС"},41.283956660512125,32,43.049423109159534,116.33337976967167]
[5,"Изидеров Никита",{"$f":"VLOOKUP(B10:B46,'разряды м.'!$A$5:$AB$205,2,FALSE)","v":"Полоцк"},{"$f":"VLOOKUP(B10:B46,'разряды м.'!$A$5:$AB$205,3,FALSE)","v":1994},{"$f":"VLOOKUP(B:B,'разряды м.'!$A$5:$AB$205,28,FALSE)","v":"КМС"},52.439205919819102,null,33.482884640457421,85.92209056027653]
[6,"Дюбенков Дмитрий",{"$f":"VLOOKUP(B11:B47,'разряды м.'!$A$5:$AB$205,2,FALSE)","v":"Гомельская обл."},{"$f":"VLOOKUP(B11:B47,'разряды м.'!$A$5:$AB$205,3,FALSE)","v":1992},{"$f":"VLOOKUP(B:B,'разряды м.'!$A$5:$AB$205,28,FALSE)","v":"КМС"},25.742882906093012,17.100000000000001,39.222807721678691,82.065690627771701]
[7,"Караваев Дмитрий",{"$f":"VLOOKUP(B12:B48,'разряды м.'!$A$5:$AB$205,2,FALSE)","v":"Гомельская обл."},{"$f":"VLOOKUP(B12:B48,'разряды м.'!$A$5:$AB$205,3,FALSE)","v":1993},{"$f":"VLOOKUP(B:B,'разряды м.'!$A$5:$AB$205,28,FALSE)","v":"КМС"},29.55664333662531,9.1999999999999993,33.482884640457421,72.23952797708273]
[8,"Сердаков Илья",{"$f":"VLOOKUP(B13:B49,'разряды м.'!$A$5:$AB$205,2,FALSE)","v":"ГОЦТиКДиМ Гомель"},{"$f":"VLOOKUP(B13:B49,'разряды м.'!$A$5:$AB$205,3,FALSE)","v":1999},{"$f":"VLOOKUP(B:B,'разряды м.'!$A$5:$AB$205,28,FALSE)","v":"КМС"},13.348161506863043,23.4,25.829653865495722,62.577815372358764]
[9,"Буйленков Павел",{"$f":"VLOOKUP(B14:B50,'разряды м.'!$A$5:$AB$205,2,FALSE)","v":"Гомельская обл."},{"$f":"VLOOKUP(B14:B50,'разряды м.'!$A$5:$AB$205,3,FALSE)","v":1993},{"$f":"VLOOKUP(B:B,'разряды м.'!$A$5:$AB$205,28,FALSE)","v":"КМС"},7.6275208610645961,29.1,13.393153856182966,50.120674717247567]
[10,"Волосович Дмитрий",{"$f":"VLOOKUP(B15:B51,'разряды м.'!$A$5:$AB$205,2,FALSE)","v":"Гомельская обл."},{"$f":"VLOOKUP(B15:B51,'разряды м.'!$A$5:$AB$205,3,FALSE)","v":1995},{"$f":"VLOOKUP(B:B,'разряды м.'!$A$5:$AB$205,28,FALSE)","v":"КМС"},48.625445489286804,null,null,48.625445489286804]
[11,"Пристромов Антон",{"$f":"VLOOKUP(B16:B52,'разряды м.'!$A$5:$AB$205,2,FALSE)","v":"ДЮСШ «Омега» Гом."},{"$f":"VLOOKUP(B16:B52,'разряды м.'!$A$5:$AB$205,3,FALSE)","v":1988},{"$f":"VLOOKUP(B:B,'разряды м.'!$A$5:$AB$205,28,FALSE)","v":"КМС"},41.283956660512125,null,null,41.283956660512125]
[12,"Голубев Денис",{"$f":"VLOOKUP(B17:B53,'разряды м.'!$A$5:$AB$205,2,FALSE)","v":"Витебск"},{"$f":"VLOOKUP(B17:B53,'разряды м.'!$A$5:$AB$205,3,FALSE)","v":1994},{"$f":"VLOOKUP(B:B,'разряды м.'!$A$5:$AB$205,28,FALSE)","v":"КМС"},41.283956660512125,null,null,41.283956660512125]
[13,"Аблажевич Виктор",{"$f":"VLOOKUP(B18:B54,'разряды м.'!$A$5:$AB$205,2,FALSE)","v":"Гомельская обл."},{"$f":"VLOOKUP(B18:B54,'разряды м.'!$A$5:$AB$205,3,FALSE)","v":2000},{"$f":"VLOOKUP(B:B,'разряды м.'!$A$5:$AB$205,28,FALSE)","v":2},6.6740807534315216,4.3,22.959692324885086,33.933773078316605]
[14,"Малаховский Александр",{"$f":"VLOOKUP(B19:B55,'разряды м.'!$A$5:$AB$205,2,FALSE)","v":"Хан-Тенгри"},{"$f":"VLOOKUP(B19:B55,'разряды м.'!$A$5:$AB$205,3,FALSE)","v":1985},{"$f":"VLOOKUP(B:B,'разряды м.'!$A$5:$AB$205,28,FALSE)","v":1},33.847123820974147,null,null,33.847123820974147]
[15,"Никоноров Дмитрий",{"$f":"VLOOKUP(B20:B56,'разряды м.'!$A$5:$AB$205,2,FALSE)","v":"Пуховичский р-н"},{"$f":"VLOOKUP(B20:B56,'разряды м.'!$A$5:$AB$205,3,FALSE)","v":1997},{"$f":"VLOOKUP(B:B,'разряды м.'!$A$5:$AB$205,28,FALSE)","v":"КМС"},33.847123820974147,null,null,33.847123820974147]
[16,"Талдыкин Илья",{"$f":"VLOOKUP(B21:B57,'разряды м.'!$A$5:$AB$205,2,FALSE)","v":"ДЮСШ «Омега» Гом."},{"$f":"VLOOKUP(B21:B57,'разряды м.'!$A$5:$AB$205,3,FALSE)","v":2000},{"$f":"VLOOKUP(B:B,'разряды м.'!$A$5:$AB$205,28,FALSE)","v":2},1.906880215266149,null,28.699615406106357,30.606495621372506]
[17,"Пуйто Антон",{"$f":"VLOOKUP(B22:B58,'разряды м.'!$A$5:$AB$205,2,FALSE)","v":"ГОЦТиКДиМ Гомель"},{"$f":"VLOOKUP(B22:B58,'разряды м.'!$A$5:$AB$205,3,FALSE)","v":1998},{"$f":"VLOOKUP(B:B,'разряды м.'!$A$5:$AB$205,28,FALSE)","v":1},8.5809609686976707,21.3,null,29.880960968697671]
[18,"Ченуша Алексей",{"$f":"VLOOKUP(B23:B59,'разряды м.'!$A$5:$AB$205,2,FALSE)","v":"Хан-Тенгри"},{"$f":"VLOOKUP(B23:B59,'разряды м.'!$A$5:$AB$205,3,FALSE)","v":1969},{"$f":"VLOOKUP(B:B,'разряды м.'!$A$5:$AB$205,28,FALSE)","v":1},15.255041722129192,12.8,null,28.055041722129193]
[19,"Вальковский Владимир",{"$f":"VLOOKUP(B24:B60,'разряды м.'!$A$5:$AB$205,2,FALSE)","v":"ГОЦТиКДиМ Гомель"},{"$f":"VLOOKUP(B24:B60,'разряды м.'!$A$5:$AB$205,3,FALSE)","v":1992},{"$f":"VLOOKUP(B:B,'разряды м.'!$A$5:$AB$205,28,FALSE)","v":"КМС"},null,26.3,null,26.3]
[20,"Денисевич Евгений",{"$f":"VLOOKUP(B25:B61,'разряды м.'!$A$5:$AB$205,2,FALSE)","v":"Брестская область"},{"$f":"VLOOKUP(B25:B61,'разряды м.'!$A$5:$AB$205,3,FALSE)","v":1994},{"$f":"VLOOKUP(B:B,'разряды м.'!$A$5:$AB$205,28,FALSE)","v":"КМС"},25.742882906093012,null,null,25.742882906093012]
[21,"Никифоровец Максим",{"$f":"VLOOKUP(B26:B62,'разряды м.'!$A$5:$AB$205,2,FALSE)","v":"Минск"},{"$f":"VLOOKUP(B26:B62,'разряды м.'!$A$5:$AB$205,3,FALSE)","v":1997},{"$f":"VLOOKUP(B:B,'разряды м.'!$A$5:$AB$205,28,FALSE)","v":"КМС"},21.929122475560714,null,null,21.929122475560714]
[22,"Остроухов Егор",{"$f":"VLOOKUP(B27:B63,'разряды м.'!$A$5:$AB$205,2,FALSE)","v":"ПРЦДиМ Полоцк"},{"$f":"VLOOKUP(B27:B63,'разряды м.'!$A$5:$AB$205,3,FALSE)","v":1973},{"$f":"VLOOKUP(B:B,'разряды м.'!$A$5:$AB$205,28,FALSE)","v":1},21.929122475560714,null,null,21.929122475560714]
[23,"Бережной Максим",{"$f":"VLOOKUP(B28:B64,'разряды м.'!$A$5:$AB$205,2,FALSE)","v":"РЦЭК"},{"$f":"VLOOKUP(B28:B64,'разряды м.'!$A$5:$AB$205,3,FALSE)","v":2000},{"$f":"VLOOKUP(B:B,'разряды м.'!$A$5:$AB$205,28,FALSE)","v":3},null,null,20.089730784274451,20.089730784274451]
[24,"Кухоренко Максим",{"$f":"VLOOKUP(B29:B65,'разряды м.'!$A$5:$AB$205,2,FALSE)","v":"Витебск"},{"$f":"VLOOKUP(B29:B65,'разряды м.'!$A$5:$AB$205,3,FALSE)","v":1985},{"$f":"VLOOKUP(B:B,'разряды м.'!$A$5:$AB$205,28,FALSE)","v":1},null,19.2,null,19.2]
[25,"Соковых Евгений",{"$f":"VLOOKUP(B30:B66,'разряды м.'!$A$5:$AB$205,2,FALSE)","v":"Хан-Тенгри"},{"$f":"VLOOKUP(B30:B66,'разряды м.'!$A$5:$AB$205,3,FALSE)","v":1988},{"$f":"VLOOKUP(B:B,'разряды м.'!$A$5:$AB$205,28,FALSE)","v":"КМС"},19.06880215266149,null,null,19.06880215266149]
[26,"Писарев Кирилл",{"$f":"VLOOKUP(B31:B67,'разряды м.'!$A$5:$AB$205,2,FALSE)","v":"ДЮСШ «Омега» Гом."},{"$f":"VLOOKUP(B31:B67,'разряды м.'!$A$5:$AB$205,3,FALSE)","v":2001},{"$f":"VLOOKUP(B:B,'разряды м.'!$A$5:$AB$205,28,FALSE)","v":1},null,null,17.219769243663816,17.219769243663816]
[27,"Денисман Юрий",{"$f":"VLOOKUP(B32:B68,'разряды м.'!$A$5:$AB$205,2,FALSE)","v":"MinskOnsight Мн."},{"$f":"VLOOKUP(B32:B68,'разряды м.'!$A$5:$AB$205,3,FALSE)","v":1982},{"$f":"VLOOKUP(B:B,'разряды м.'!$A$5:$AB$205,28,FALSE)","v":"КМС"},17.161921937395341,null,null,17.161921937395341]
[28,"Рубенок Артем",{"$f":"VLOOKUP(B33:B69,'разряды м.'!$A$5:$AB$205,2,FALSE)","v":"Витебск"},{"$f":"VLOOKUP(B33:B69,'разряды м.'!$A$5:$AB$205,3,FALSE)","v":1986},{"$f":"VLOOKUP(B:B,'разряды м.'!$A$5:$AB$205,28,FALSE)","v":1},null,6.4,9.5665384687021202,15.966538468702121]
[29,"Степаненко Олег",{"$f":"VLOOKUP(B34:B70,'разряды м.'!$A$5:$AB$205,2,FALSE)","v":"Гомельская обл."},{"$f":"VLOOKUP(B34:B70,'разряды м.'!$A$5:$AB$205,3,FALSE)","v":2001},{"$f":"VLOOKUP(B:B,'разряды м.'!$A$5:$AB$205,28,FALSE)","v":"1 юн"},null,null,15.306461549923391,15.306461549923391]
[30,"Болденко Валерий",{"$f":"VLOOKUP(B35:B71,'разряды м.'!$A$5:$AB$205,2,FALSE)","v":"ДЮСШ «Омега» Гом."},{"$f":"VLOOKUP(B35:B71,'разряды м.'!$A$5:$AB$205,3,FALSE)","v":1993},{"$f":"VLOOKUP(B:B,'разряды м.'!$A$5:$AB$205,28,FALSE)","v":1},null,12.8,null,12.8]
[31,"Ложкин Денис",{"$f":"VLOOKUP(B36:B72,'разряды м.'!$A$5:$AB$205,2,FALSE)","v":"MinskOnsight Мн."},{"$f":"VLOOKUP(B36:B72,'разряды м.'!$A$5:$AB$205,3,FALSE)","v":1983},{"$f":"VLOOKUP(B:B,'разряды м.'!$A$5:$AB$205,28,FALSE)","v":1},null,12.8,null,12.8]
[32,"Карпов Роман ",{"$f":"VLOOKUP(B37:B73,'разряды м.'!$A$5:$AB$205,2,FALSE)","v":"MinskOnsight Мн. "},{"$f":"VLOOKUP(B37:B73,'разряды м.'!$A$5:$AB$205,3,FALSE)","v":1981},{"$f":"VLOOKUP(B:B,'разряды м.'!$A$5:$AB$205,28,FALSE)","v":2},9.5344010763307452,2.8,null,12.334401076330746]
[33,"Мертенс Андрей",{"$f":"VLOOKUP(B38:B74,'разряды м.'!$A$5:$AB$205,2,FALSE)","v":"г. Витебск"},{"$f":"VLOOKUP(B38:B74,'разряды м.'!$A$5:$AB$205,3,FALSE)","v":1992},{"$f":"VLOOKUP(B:B,'разряды м.'!$A$5:$AB$205,28,FALSE)","v":3},null,null,11.479846162442543,11.479846162442543]
[34,"Живица Арсений",{"$f":"VLOOKUP(B39:B75,'разряды м.'!$A$5:$AB$205,2,FALSE)","v":"Минск"},{"$f":"VLOOKUP(B39:B75,'разряды м.'!$A$5:$AB$205,3,FALSE)","v":2000},{"$f":"VLOOKUP(B:B,'разряды м.'!$A$5:$AB$205,28,FALSE)","v":1},11.441281291596894,null,null,11.441281291596894]
[35,"Давыдов Денис",{"$f":"VLOOKUP(B40:B76,'разряды м.'!$A$5:$AB$205,2,FALSE)","v":"Минск"},{"$f":"VLOOKUP(B40:B76,'разряды м.'!$A$5:$AB$205,3,FALSE)","v":2000},{"$f":"VLOOKUP(B:B,'разряды м.'!$A$5:$AB$205,28,FALSE)","v":1},4.7672005381653726,6.4,null,11.167200538165373]
[36,"Бессер Родион",{"$f":"VLOOKUP(B41:B77,'разряды м.'!$A$5:$AB$205,2,FALSE)","v":"MinskOnsight Мн."},{"$f":"VLOOKUP(B41:B77,'разряды м.'!$A$5:$AB$205,3,FALSE)","v":1981},{"$f":"VLOOKUP(B:B,'разряды м.'!$A$5:$AB$205,28,FALSE)","v":1},null,9.1999999999999993,null,9.1999999999999993]
[37,"Зюзин Иван",{"$f":"VLOOKUP(B42:B78,'разряды м.'!$A$5:$AB$205,2,FALSE)","v":"Минск"},{"$f":"VLOOKUP(B42:B78,'разряды м.'!$A$5:$AB$205,3,FALSE)","v":2001},{"$f":"VLOOKUP(B:B,'разряды м.'!$A$5:$AB$205,28,FALSE)","v":1},null,null,7.6532307749616955,7.6532307749616955]
[38,"Зуенок Александр",{"$f":"VLOOKUP(B43:B79,'разряды м.'!$A$5:$AB$205,2,FALSE)","v":{"$error":"#N/A"}},{"$f":"VLOOKUP(B43:B79,'разряды м.'!$A$5:$AB$205,3,FALSE)","v":{"$error":"#N/A"}},{"$f":"VLOOKUP(B:B,'разряды м.'!$A$5:$AB$205,28,FALSE)","v":{"$error":"#N/A"}},null,null,5.7399230812212716,5.7399230812212716]
[39,"Магер Даниил",{"$f":"VLOOKUP(B44:B80,'разряды м.'!$A$5:$AB$205,2,FALSE)","v":"Полоцк"},{"$f":"VLOOKUP(B44:B80,'разряды м.'!$A$5:$AB$205,3,FALSE)","v":1998},{"$f":"VLOOKUP(B:B,'разряды м.'!$A$5:$AB$205,28,FALSE)","v":"юн"},5.7206406457984471,null,null,5.7206406457984471]
[40,"Капитонов Илья",{"$f":"VLOOKUP(B45:B81,'разряды м.'!$A$5:$AB$205,2,FALSE)","v":{"$error":"#N/A"}},{"$f":"VLOOKUP(B45:B81,'разряды м.'!$A$5:$AB$205,3,FALSE)","v":{"$error":"#N/A"}},{"$f":"VLOOKUP(B:B,'разряды м.'!$A$5:$AB$205,28,FALSE)","v":{"$error":"#N/A"}},null,null,3.8266153874808477,3.8266153874808477]
[41,"Главацкий Сергей",{"$f":"VLOOKUP(B46:B82,'разряды м.'!$A$5:$AB$205,2,FALSE)","v":"Пуховичский р-н"},{"$f":"VLOOKUP(B46:B82,'разряды м.'!$A$5:$AB$205,3,FALSE)","v":1998},{"$f":"VLOOKUP(B:B,'разряды м.'!$A$5:$AB$205,28,FALSE)","v":1},3.8137604305322981,null,null,3.8137604305322981]
[42,"Циркунов Александр",{"$f":"VLOOKUP(B47:B83,'разряды м.'!$A$5:$AB$205,2,FALSE)","v":"Витебск"},{"$f":"VLOOKUP(B47:B83,'разряды м.'!$A$5:$AB$205,3,FALSE)","v":1988},{"$f":"VLOOKUP(B:B,'разряды м.'!$A$5:$AB$205,28,FALSE)","v":2},2.8603203228992236,null,null,2.8603203228992236]
[43,"Самухин Василий",{"$f":"VLOOKUP(B48:B84,'разряды м.'!$A$5:$AB$205,2,FALSE)","v":"Минск"},{"$f":"VLOOKUP(B48:B84,'разряды м.'!$A$5:$AB$205,3,FALSE)","v":2000},{"$f":"VLOOKUP(B:B,'разряды м.'!$A$5:$AB$205,28,FALSE)","v":3},null,null,1.9133076937404239,1.9133076937404239]
[44,"Огарко Михаил",{"$f":"VLOOKUP(B49:B85,'разряды м.'!$A$5:$AB$205,2,FALSE)","v":{"$error":"#N/A"}},{"$f":"VLOOKUP(B49:B85,'разряды м.'!$A$5:$AB$205,3,FALSE)","v":{"$error":"#N/A"}},{"$f":"VLOOKUP(B:B,'разряды м.'!$A$5:$AB$205,28,FALSE)","v":{"$error":"#N/A"}},null,1.4,null,1.4]
[45,"Стрельский Максим",{"$f":"VLOOKUP(B50:B86,'разряды м.'!$A$5:$AB$205,2,FALSE)","v":"Пуховичский р-н"},{"$f":"VLOOKUP(B50:B86,'разряды м.'!$A$5:$AB$205,3,FALSE)","v":1998},{"$f":"VLOOKUP(B:B,'разряды м.'!$A$5:$AB$205,28,FALSE)","v":"б/р"},0.95344010763307452,null,null,0.95344010763307452]

{"sheet":"женщины тр.","index":5,"n_rows":24,"n_cols":9,"rows_kept":24,"cut":false,"hidden":false,"merged":[[3,4,4,4],[3,8,4,8],[0,0,0,4],[1,0,1,4],[2,0,2,2],[3,0,4,0],[3,1,4,1],[3,2,4,2],[3,3,4,3]]}
["Текущий рейтинг"]
["Женщины, трудность"]
["на 1.05.2015 года",null,null,null,null,"ЧРБ-2013","КБ-2014","ЧРБ-2015"]
["Место","Фамилия, Имя","Команда","г.р.","Подтвержденный разряд","Витебск","Витебск","Витебск","общий рез-т"]
[null,null,null,null,null,"5-8.12.13","10-13.04.14","17-20.04.15"]
[1,"Малыженкова Лариса",{"$f":"VLOOKUP($B$6:$B$31,'разряды ж.'!$A$5:$AB$202,2,FALSE)","v":"Минск"},{"$f":"VLOOKUP($B$6:$B$31,'разряды ж.'!$A$5:$AB$202,3,FALSE)","v":1975},{"$f":"VLOOKUP($B$6:$B$31,'разряды ж.'!$A$5:$AB$202,28,FALSE)","v":"КМС"},30.944600212704245,null,23.750833578175303,{"$f":"SUM(F6:H6)","v":54.695433790879548}]
[2,"Федоркевич Светлана",{"$f":"VLOOKUP($B$6:$B$31,'разряды ж.'!$A$5:$AB$202,2,FALSE)","v":"ГОЦТиКДиМ"},{"$f":"VLOOKUP($B$6:$B$31,'разряды ж.'!$A$5:$AB$202,3,FALSE)","v":1992},{"$f":"VLOOKUP($B$6:$B$31,'разряды ж.'!$A$5:$AB$202,28,FALSE)","v":"КМС"},22.018273228270328,30.1,null,52.118273228270326]
[3,"Лясович Наталья",{"$f":"VLOOKUP($B$6:$B$31,'разряды ж.'!$A$5:$AB$202,2,FALSE)","v":"Витебск"},{"$f":"VLOOKUP($B$6:$B$31,'разряды ж.'!$A$5:$AB$202,3,FALSE)","v":1985},{"$f":"VLOOKUP($B$6:$B$31,'разряды ж.'!$A$5:$AB$202,28,FALSE)","v":1},11.306680846949629,16.899999999999999,16.210886410500606,44.41756725745023]
[4,"Самсонова Мария",{"$f":"VLOOKUP($B$6:$B$31,'разряды ж.'!$A$5:$AB$202,2,FALSE)","v":"С/к «Торпедо»  Мг."},{"$f":"VLOOKUP($B$6:$B$31,'разряды ж.'!$A$5:$AB$202,3,FALSE)","v":1984},{"$f":"VLOOKUP($B$6:$B$31,'разряды ж.'!$A$5:$AB$202,28,FALSE)","v":"КМС"},42.846369525282803,null,null,42.846369525282803]
[5,"Кореневская Вероника",{"$f":"VLOOKUP($B$6:$B$31,'разряды ж.'!$A$5:$AB$202,2,FALSE)","v":"Минск"},{"$f":"VLOOKUP($B$6:$B$31,'разряды ж.'!$A$5:$AB$202,3,FALSE)","v":1997},{"$f":"VLOOKUP($B$6:$B$31,'разряды ж.'!$A$5:$AB$202,28,FALSE)","v":2},13.68703470946534,8.6,10.55592603474458,32.842960744209918]
[6,"Веретенникова Елена",{"$f":"VLOOKUP($B$6:$B$31,'разряды ж.'!$A$5:$AB$202,2,FALSE)","v":"Минск"},{"$f":"VLOOKUP($B$6:$B$31,'разряды ж.'!$A$5:$AB$202,3,FALSE)","v":1991},{"$f":"VLOOKUP($B$6:$B$31,'разряды ж.'!$A$5:$AB$202,28,FALSE)","v":"КМС"},null,16.899999999999999,null,16.899999999999999]
[7,"Кузина Юлия",{"$f":"VLOOKUP($B$6:$B$31,'разряды ж.'!$A$5:$AB$202,2,FALSE)","v":"Бобруйск"},{"$f":"VLOOKUP($B$6:$B$31,'разряды ж.'!$A$5:$AB$202,3,FALSE)","v":1999},{"$f":"VLOOKUP($B$6:$B$31,'разряды ж.'!$A$5:$AB$202,28,FALSE)","v":1},16.067388571981098,null,null,16.067388571981098]
[8,"Якубович Карина",{"$f":"VLOOKUP($B$6:$B$31,'разряды ж.'!$A$5:$AB$202,2,FALSE)","v":"ЦТиКДМ г. Пинска"},{"$f":"VLOOKUP($B$6:$B$31,'разряды ж.'!$A$5:$AB$202,3,FALSE)","v":1998},{"$f":"VLOOKUP($B$6:$B$31,'разряды ж.'!$A$5:$AB$202,28,FALSE)","v":2},8.926326984433917,null,null,8.926326984433917]
[9,"Ермохина Дарья",{"$f":"VLOOKUP($B$6:$B$31,'разряды ж.'!$A$5:$AB$202,2,FALSE)","v":"РЦЭК"},{"$f":"VLOOKUP($B$6:$B$31,'разряды ж.'!$A$5:$AB$202,3,FALSE)","v":1999},{"$f":"VLOOKUP($B$6:$B$31,'разряды ж.'!$A$5:$AB$202,28,FALSE)","v":"1 юн"},null,5.7,2.2619841503024101,7.9619841503024098]
[10,"Шуляк Марина",{"$f":"VLOOKUP($B$6:$B$31,'разряды ж.'!$A$5:$AB$202,2,FALSE)","v":"Хан-Тенгри"},{"$f":"VLOOKUP($B$6:$B$31,'разряды ж.'!$A$5:$AB$202,3,FALSE)","v":1989},{"$f":"VLOOKUP($B$6:$B$31,'разряды ж.'!$A$5:$AB$202,28,FALSE)","v":"б/р"},7.1410615875471333,null,null,7.1410615875471333]
[11,"Копусова Ксения",{"$f":"VLOOKUP($B$6:$B$31,'разряды ж.'!$A$5:$AB$202,2,FALSE)","v":"Минск"},2001,{"$f":"VLOOKUP($B$6:$B$31,'разряды ж.'!$A$5:$AB$202,28,FALSE)","v":2},null,null,6.7859524509072298,6.7859524509072298]
[12,"Веретенникова Екатерина",{"$f":"VLOOKUP($B$6:$B$31,'разряды ж.'!$A$5:$AB$202,2,FALSE)","v":"Минск"},{"$f":"VLOOKUP($B$6:$B$31,'разряды ж.'!$A$5:$AB$202,3,FALSE)","v":1989},{"$f":"VLOOKUP($B$6:$B$31,'разряды ж.'!$A$5:$AB$202,28,FALSE)","v":"б/р"},null,5.7,null,5.7]
[13,"Разуменко Кристина",{"$f":"VLOOKUP($B$6:$B$31,'разряды ж.'!$A$5:$AB$202,2,FALSE)","v":{"$error":"#N/A"}},{"$f":"VLOOKUP($B$6:$B$31,'разряды ж.'!$A$5:$AB$202,3,FALSE)","v":{"$error":"#N/A"}},{"$f":"VLOOKUP($B$6:$B$31,'разряды ж.'!$A$5:$AB$202,28,FALSE)","v":{"$error":"#N/A"}},5.3557961906603504,null,null,5.3557961906603504]
[14,"Гацулина Анастасия",{"$f":"VLOOKUP($B$6:$B$31,'разряды ж.'!$A$5:$AB$202,2,FALSE)","v":"ГОЦТиКДиМ"},1997,{"$f":"VLOOKUP($B$6:$B$31,'разряды ж.'!$A$5:$AB$202,28,FALSE)","v":"б/р"},null,null,5.27796301737229,5.27796301737229]
[15,"Болсун Софья",{"$f":"VLOOKUP($B$6:$B$31,'разряды ж.'!$A$5:$AB$202,2,FALSE)","v":"ДЮСШ \"Омега\" "},{"$f":"VLOOKUP($B$6:$B$31,'разряды ж.'!$A$5:$AB$202,3,FALSE)","v":1998},{"$f":"VLOOKUP($B$6:$B$31,'разряды ж.'!$A$5:$AB$202,28,FALSE)","v":"б/р"},1.7852653968867833,2.1,null,3.8852653968867834]
[16,"Коноплева Марина",{"$f":"VLOOKUP($B$6:$B$31,'разряды ж.'!$A$5:$AB$202,2,FALSE)","v":"Гомельская обл."},2001,{"$f":"VLOOKUP($B$6:$B$31,'разряды ж.'!$A$5:$AB$202,28,FALSE)","v":2},null,null,3.7699735838373498,3.7699735838373498]
[17,"Кузичева Таисия",{"$f":"VLOOKUP($B$6:$B$31,'разряды ж.'!$A$5:$AB$202,2,FALSE)","v":"ГОЦТиКДиМ"},{"$f":"VLOOKUP($B$6:$B$31,'разряды ж.'!$A$5:$AB$202,3,FALSE)","v":2000},{"$f":"VLOOKUP($B$6:$B$31,'разряды ж.'!$A$5:$AB$202,28,FALSE)","v":2},3.5705307937735666,null,null,3.5705307937735666]
[18,"Белковец Екатерина",{"$f":"VLOOKUP($B$6:$B$31,'разряды ж.'!$A$5:$AB$202,2,FALSE)","v":{"$error":"#N/A"}},{"$f":"VLOOKUP($B$6:$B$31,'разряды ж.'!$A$5:$AB$202,3,FALSE)","v":{"$error":"#N/A"}},{"$f":"VLOOKUP($B$6:$B$31,'разряды ж.'!$A$5:$AB$202,28,FALSE)","v":{"$error":"#N/A"}},null,2.1,null,2.1]
[19,"Русинович Светлана",{"$f":"VLOOKUP($B$6:$B$31,'разряды ж.'!$A$5:$AB$202,2,FALSE)","v":"ГОЦТиКДиМ"},1990,{"$f":"VLOOKUP($B$6:$B$31,'разряды ж.'!$A$5:$AB$202,28,FALSE)","v":"б/р"},null,null,1.130992075151205,1.130992075151205]

{"sheet":"разряды м.","index":6,"n_rows":204,"n_cols":28,"rows_kept":204,"cut":false,"hidden":false,"merged":[[1,24,1,26],[1,15,1,23],[2,22,2,23],[2,24,2,25],[2,20,2,21],[1,3,1,4],[2,3,2,4],[2,10,2,11],[2,8,2,9],[2,18,2,19],[1,5,1,13],[2,12,2,13]]}
[]
[null,null,null,2013,null,2014,null,null,null,null,null,null,null,null,null,2015,null,null,null,null,null,null,null,null,2013]
[null,null,null,"Чемпионат и первенство Беларуси, Витебск, 5-9.12.2013",null,"Первенство Беларуси, Минск, 21-22.02.2014 ","Чемпионат Беларуси, Минск, 21-23.02.2014 ","Первенство Беларуси, Минск, 21-23.03.2014","Первенство Гомеля, 4-6.04.2014",null,"Кубок Беларуси, Витебск, 12-13.04.2014",null,"Первенство Беларуси, Гомель, 7-8.11.2014",null,"Кубок Беларуси, Пинск, 22-23.11.2014","Первенство Гом. обл., 31.01-1.02.1015","Чемпионат и первенство Беларуси, Минск, 27.02-1.03.2015 ","Первенство Беларуси, Минск, 21-22.03.2015 ","Первенство Гомеля, 3-5.04.2015",null,"Чемпионат и первенство Беларуси, Витебск, 17-20.04.2015",null,"Первенство Минска, Минск, 16-17.05.2015 ",null,"Первенство Беларуси, Пинск, 21-22.11.2013",null,"Кубок Беларуси, Пинск, 22-24.11.2013","Текущий разряд"]
["Фамилия, Имя","команда","г.р.","С","Т","Б","Б","Б","С","Т","С","Т","С","Т","Б","Б","Б","Б","С","Т","С","Т","С","Т","Т","С","Б"]
["Аблажевич Виктор","Гомельская обл.",2000,null,3,null,null,null,null,null,2,2,null,null,null,null,2,null,null,null,2,null,null,null,2,3,null,{"$f":"IF(OR(D5=\"МС\",E5=\"МС\",F5=\"МС\",G5=\"МС\",H5=\"МС\",I5=\"МС\",J5=\"МС\",K5=\"МС\",L5=\"МС\",M5=\"МС\",N5=\"МС\",O5=\"МС\",P5=\"МС\",Q5=\"МС\",R5=\"МС\",S5=\"МС\",T5=\"МС\",U5=\"МС\",V5=\"МС\",W5=\"МС\",X5=\"МС\",Y5=\"МС\",Z5=\"МС\",AA5=\"МС\"),\"МС\",IF(OR(D5=\"КМС\",E5=\"КМС\",F5=\"КМС\",G5=\"КМС\",H5=\"КМС\",I5=\"КМС\",J5=\"КМС\",K5=\"КМС\",L5=\"КМС\",M5=\"КМС\",N5=\"КМС\",O5=\"КМС\",P5=\"КМС\",Q5=\"КМС\",R5=\"КМС\",S5=\"КМС\",T5=\"КМС\",U5=\"КМС\",V5=\"КМС\",W5=\"КМС\",X5=\"КМС\",Y5=\"КМС\",Z5=\"КМС\",AA5=\"КМС\"),\"КМС\",IF(OR(D5=1,E5=1,F5=1,G5=1,H5=1,I5=1,J5=1,K5=1,L5=1,M5=1,N5=1,O5=1,P5=1,Q5=1,R5=1,S5=1,T5=1,U5=1,V5=1,W5=1,X5=1,Y5=1,Z5=1,AA5=1),1,IF(OR(D5=2,E5=2,F5=2,G5=2,H5=2,I5=2,J5=2,K5=2,L5=2,M5=2,N5=2,O5=2,P5=2,Q5=2,R5=2,S5=2,T5=2,U5=2,V5=2,W5=2,X5=2,Y5=2,Z5=2,AA5=2),2,IF(OR(D5=3,E5=3,F5=3,G5=3,H5=3,I5=3,J5=3,K5=3,L5=3,M5=3,N5=3,O5=3,P5=3,Q5=3,R5=3,S5=3,T5=3,U5=3,V5=3,W5=3,X5=3,Y5=3,Z5=3,AA5=3),3,IF(OR(D5=\"1 юн\",E5=\"1 юн\",F5=\"1 юн\",G5=\"1 юн\",H5=\"1 юн\",I5=\"1 юн\",J5=\"1 юн\",K5=\"1 юн\",L5=\"1 юн\",M5=\"1 юн\",N5=\"1 юн\",O5=\"1 юн\",P5=\"1 юн\",Q5=\"1 юн\",R5=\"1 юн\",S5=\"1 юн\",T5=\"1 юн\",U5=\"1 юн\",V5=\"1 юн\",W5=\"1 юн\",X5=\"1 юн\",Y5=\"1 юн\",Z5=\"1 юн\",AA5=\"1 юн\"),\"1 юн\",IF(OR(D5=\"юн\",E5=\"юн\",F5=\"юн\",G5=\"юн\",H5=\"юн\",I5=\"юн\",J5=\"юн\",K5=\"юн\",L5=\"юн\",M5=\"юн\",N5=\"юн\",O5=\"юн\",P5=\"юн\",Q5=\"юн\",R5=\"юн\",S5=\"юн\",T5=\"юн\",U5=\"юн\",V5=\"юн\",W5=\"юн\",X5=\"юн\",Y5=\"юн\",Z5=\"юн\",AA5=\"юн\"),\"юн\",\"б/р\")))))))","v":2}]
["Адамович Дмитрий","Брестская область",1997,null,null,null,null,null,null,null,null,null,null,null,null,null,null,null,null,null,null,null,null,null,null,null,null,"б/р"]
["Аксенов Павел","Витебск",1989,null,null,null,1,null,null,null,null,null,null,null,null,null,null,null,null,null,null,null,null,null,null,null,null,1]
["Астапов Максим","ГОЦТиКДиМ Гомель",2001,null,null,null,null,3,2,null,null,null,"1 юн",2,null,null,3,null,null,null,null,null,null,null,null,"юн",null,2]
["Астапчик Дмитрий","Пуховичский р-н",2003,null,null,null,null,"юн",null,null,null,null,"юн","юн",null,null,null,null,null,"юн",null,null,null,"юн",null,null,null,"юн"]
["Астапчик Павел","Пуховичский р-н",2006,null,null,null,null,null,null,null,null,null,null,"юн",null,null,null,"юн",null,"юн",null,null,null,"1 юн",null,null,null,"1 юн"]
["Бабанов Игорь","С/к «Торпедо»  Мг.",1989,null,null,null,1,null,null,null,null,null,null,null,null,null,null,null,null,null,null,null,null,null,null,null,null,1]
["Бадей Никита","РЦЭК",2004,null,null,null,null,null,null,null,null,null,null,null,null,null,null,null,null,null,null,null,null,null,null,null,null,"б/р"]
["Батраков Андрей","Брестская область",1998,3,2,2,null,null,null,null,null,null,null,null,null,null,null,null,null,null,null,null,null,null,null,null,null,2]
["Батура Дмитрий","МогилёвскийОЦФВиС",2004,null,null,null,null,"юн",null,null,null,null,null,null,null,null,null,null,null,null,null,null,null,null,"юн","юн",null,"юн"]
["Беляцкий Артем","СШ № 1 г. Ветка",2002,null,null,null,null,"1 юн","1 юн",null,null,null,"1 юн","1 юн",null,"1 юн",null,3,2,"1 юн",null,null,null,null,"юн","юн",null,2]
["Бережной Максим","РЦЭК",2000,null,null,null,null,null,null,null,null,null,null,null,null,null,3,null,null,null,null,null,null,null,"юн","юн",null,3]
["Бережной Тимофей","Фрунзенский ФОЦ",2003,null,null,null,null,"1 юн",2,2,null,null,2,"1 юн",null,null,null,2,2,2,null,null,null,3,"1 юн","1 юн",null,2]
["Бессер Родион","MinskOnsight Мн.",1981,null,null,null,1,null,null,null,null,1,null,null,null,null,null,null,null,null,null,null,null,null,null,null,null,1]
["Бецковский Артем","Могилевская область",2000,null,null,null,null,null,null,null,null,null,null,null,null,null,null,null,null,null,null,null,null,null,null,3,null,3]
["Бобков Константин","ДЮСШ «Омега» Гом.",2005,null,null,null,null,"юн","1 юн",2,null,null,"1 юн","1 юн",null,null,null,3,null,null,null,null,"юн","1 юн","1 юн","юн",null,2]
["Болденко Валерий","ДЮСШ «Омега» Гом.",1993,null,null,null,null,null,null,null,2,1,null,null,null,3,null,null,null,null,null,null,null,null,null,null,null,1]
["Буйленков Павел","Гомельская обл.",1993,null,null,null,1,null,null,null,1,"КМС",null,null,null,3,1,null,null,null,null,null,null,null,null,null,2,"КМС"]
["Бурый Алексей","Пуховичский р-н",2002,null,null,null,null,"юн",null,null,null,null,"юн",2,null,null,null,null,2,2,null,null,null,null,null,null,null,2]
["Быкадоров Артем","Пуховичский р-н",2005,null,null,null,null,"юн",null,null,null,null,null,"юн",null,null,null,null,"юн",null,null,null,null,null,null,null,null,"юн"]
["Вальковский Владимир","ГОЦТиКДиМ Гомель",1992,null,null,null,1,null,null,null,"КМС","КМС",null,null,1,null,null,null,null,null,"КМС",null,null,null,null,null,null,"КМС"]
["Василец Александр","ДЮСШ «Омега» Гом.",1987,null,null,null,null,null,null,null,null,null,null,null,null,1,null,null,null,null,null,null,null,null,null,null,null,1]
["Васильев Даниил","Могилевская область",2000,null,null,null,null,2,null,null,null,null,null,null,null,null,null,null,null,null,null,null,null,null,"юн","юн",null,2]
["Ведерников Илья","РЦЭК",2004,null,null,null,null,"1 юн",null,null,null,null,2,"1 юн",null,null,null,null,null,null,null,null,null,null,"юн","юн",null,2]
["Веревкин Владислав","Речица",1999,null,null,null,null,null,null,null,null,null,null,null,null,null,null,null,null,null,null,null,null,null,null,null,null,"б/р"]
["Виниченко Андрей","Хан-Тенгри",1988,null,null,null,1,null,null,null,null,null,null,null,null,null,null,null,null,null,null,null,null,null,null,null,null,1]
["Винчевский Максим","Хан-Тенгри",1991,null,null,null,null,null,null,null,null,null,null,null,2,null,null,null,null,null,null,null,null,null,null,null,null,2]
["Власенко Алексей","ГОЦТиКДиМ Гомель",1997,null,null,null,null,null,null,null,null,null,null,null,null,null,null,null,null,null,null,null,null,null,null,null,null,"б/р"]
["Волосович Дмитрий","Гомельская обл.",1995,2,"КМС",null,"КМС",null,null,null,null,null,null,null,null,"КМС","КМС",null,null,null,null,null,null,null,null,null,"КМС","КМС"]
["Волчек Алексей","РЦЭК",2001,null,null,null,null,"юн",null,null,null,null,null,null,null,null,null,null,null,null,null,null,null,null,null,null,null,"юн"]
["Гатальский Дмитрий","СШ № 1 г. Ветка",2003,null,null,null,null,null,null,null,null,null,"1 юн",null,null,null,null,null,null,null,null,null,null,null,null,null,null,"1 юн"]
["Германович Олег","Гомельская обл.",1999,null,null,null,null,null,null,null,null,null,null,null,null,null,null,null,null,null,null,null,null,null,null,null,null,"б/р"]
["Главацкий Сергей","Пуховичский р-н",1998,3,null,1,null,null,null,null,null,null,null,null,null,null,null,null,null,null,null,null,null,null,null,null,null,{"$f":"IF(OR(D37=\"МС\",E37=\"МС\",F37=\"МС\",G37=\"МС\",H37=\"МС\",I37=\"МС\",J37=\"МС\",K37=\"МС\",L37=\"МС\",M37=\"МС\",N37=\"МС\",O37=\"МС\",P37=\"МС\",Q37=\"МС\",R37=\"МС\",S37=\"МС\",T37=\"МС\",U37=\"МС\",V37=\"МС\",W37=\"МС\",X37=\"МС\",Y37=\"МС\",Z37=\"МС\",AA37=\"МС\"),\"МС\",IF(OR(D37=\"КМС\",E37=\"КМС\",F37=\"КМС\",G37=\"КМС\",H37=\"КМС\",I37=\"КМС\",J37=\"КМС\",K37=\"КМС\",L37=\"КМС\",M37=\"КМС\",N37=\"КМС\",O37=\"КМС\",P37=\"КМС\",Q37=\"КМС\",R37=\"КМС\",S37=\"КМС\",T37=\"КМС\",U37=\"КМС\",V37=\"КМС\",W37=\"КМС\",X37=\"КМС\",Y37=\"КМС\",Z37=\"КМС\",AA37=\"КМС\"),\"КМС\",IF(OR(D37=1,E37=1,F37=1,G37=1,H37=1,I37=1,J37=1,K37=1,L37=1,M37=1,N37=1,O37=1,P37=1,Q37=1,R37=1,S37=1,T37=1,U37=1,V37=1,W37=1,X37=1,Y37=1,Z37=1,AA37=1),1,IF(OR(D37=2,E37=2,F37=2,G37=2,H37=2,I37=2,J37=2,K37=2,L37=2,M37=2,N37=2,O37=2,P37=2,Q37=2,R37=2,S37=2,T37=2,U37=2,V37=2,W37=2,X37=2,Y37=2,Z37=2,AA37=2),2,IF(OR(D37=3,E37=3,F37=3,G37=3,H37=3,I37=3,J37=3,K37=3,L37=3,M37=3,N37=3,O37=3,P37=3,Q37=3,R37=3,S37=3,T37=3,U37=3,V37=3,W37=3,X37=3,Y37=3,Z37=3,AA37=3),3,IF(OR(D37=\"1 юн\",E37=\"1 юн\",F37=\"1 юн\",G37=\"1 юн\",H37=\"1 юн\",I37=\"1 юн\",J37=\"1 юн\",K37=\"1 юн\",L37=\"1 юн\",M37=\"1 юн\",N37=\"1 юн\",O37=\"1 юн\",P37=\"1 юн\",Q37=\"1 юн\",R37=\"1 юн\",S37=\"1 юн\",T37=\"1 юн\",U37=\"1 юн\",V37=\"1 юн\",W37=\"1 юн\",X37=\"1 юн\",Y37=\"1 юн\",Z37=\"1 юн\",AA37=\"1 юн\"),\"1 юн\",IF(OR(D37=\"юн\",E37=\"юн\",F37=\"юн\",G37=\"юн\",H37=\"юн\",I37=\"юн\",J37=\"юн\",K37=\"юн\",L37=\"юн\",M37=\"юн\",N37=\"юн\",O37=\"юн\",P37=\"юн\",Q37=\"юн\",R37=\"юн\",S37=\"юн\",T37=\"юн\",U37=\"юн\",V37=\"юн\",W37=\"юн\",X37=\"юн\",Y37=\"юн\",Z37=\"юн\",AA37=\"юн\"),\"юн\",\"б/р\")))))))","v":1}]
["Головач Алексей","ГОЦТиКДиМ Гомель",2003,null,null,null,null,null,null,null,null,null,"1 юн","1 юн",null,null,null,null,null,null,null,null,null,null,null,null,null,"1 юн"]
["Голубев Денис","Витебск",1994,null,"КМС",null,null,null,null,null,null,null,null,null,null,null,null,null,null,null,null,null,null,null,null,null,null,"КМС"]
["Голубев Сергей","MinskOnsight Мн.",1985,null,null,null,null,null,null,null,null,null,null,null,2,null,null,null,null,null,null,null,null,null,null,null,2,2]
["Горбачевский Дмитрий","Брестская область",1998,null,null,null,null,null,null,null,null,null,null,null,null,null,null,null,null,null,null,null,null,null,null,null,null,"б/р"]
["Граменицкий Игорь","РЦЭК",2006,null,null,null,null,null,null,null,null,null,null,null,null,null,null,null,null,"юн",null,null,null,"юн",null,null,null,"юн"]
["Грибовский Павел","Бобруйск",1885,null,null,null,"КМС",null,null,null,null,null,null,null,2,1,null,null,null,null,null,null,null,null,null,null,null,"КМС"]
["Гришанов Григорий","РЦЭК",2003,null,null,null,null,"юн","1 юн","1 юн",null,null,null,null,null,null,null,null,null,null,null,null,null,null,"1 юн","юн",null,"1 юн"]
["Гурков Тимофей","РЦЭК",2006,null,null,null,null,null,null,null,null,null,null,null,null,null,null,null,null,null,null,null,null,"юн",null,null,null,"юн"]
["Гусев Дмитрий","ДЮСШ «Омега» Гом.",2003,null,null,null,null,3,null,null,null,null,"1 юн","1 юн",null,null,null,null,null,null,null,null,null,"юн","юн","1 юн",null,3]
["Гутиков Роман","Орша",1989,null,null,null,1,null,null,null,null,null,null,null,null,null,null,null,null,null,null,null,null,null,null,null,2,1]
["Давыдов Денис","Минск",2000,2,"юн",1,2,null,null,null,2,1,null,null,2,null,2,null,null,null,null,null,null,null,"юн",2,null,1]
["Даниленко Ярослав","ГОЦТиКДиМ Гомель",2001,null,null,null,null,null,null,null,null,null,null,null,null,null,null,null,null,null,null,null,null,null,null,null,null,"б/р"]
["Демешко Александр","Хан-Тенгри",1994,null,null,null,null,null,null,null,null,null,null,null,null,null,1,null,null,null,null,null,null,null,null,null,2,1]
["Демещенко Александр","Брестская область",2001,null,null,2,null,null,null,null,null,null,null,null,null,2,3,null,null,null,null,null,null,null,"юн","юн",null,2]
["Демидович Алексей","Пуховичский р-н",2000,null,null,null,null,null,null,null,null,null,null,null,null,"1 юн",null,null,null,null,null,null,null,null,null,null,null,"1 юн"]
["Денисевич Евгений","Брестская область",1994,"КМС",2,null,null,null,null,null,null,null,null,null,null,null,null,null,null,null,null,null,null,null,null,null,2,"КМС"]
["Денисман Юрий","MinskOnsight Мн.",1982,null,null,null,1,null,null,null,null,null,null,null,null,null,null,null,null,null,null,null,null,null,null,null,"КМС","КМС"]
["Дишук Вадим","Хан-Тенгри",1985,null,null,null,null,null,null,null,null,null,null,null,null,null,null,null,null,null,null,null,null,null,null,null,null,"б/р"]
["Добрянский Александр","Шклов",1994,null,null,null,null,null,null,null,null,null,null,null,1,null,null,null,null,null,null,null,null,null,null,null,null,1]
["Домашевич Артем","Хан-Тенгри",1988,null,null,null,null,null,null,null,null,null,null,null,null,null,null,null,null,null,null,null,null,null,null,null,null,"б/р"]
["Драбинко Артур","Бобруйск",1994,null,null,null,"КМС",null,null,null,null,null,null,null,"КМС",1,null,null,null,null,null,null,null,null,null,null,1,"КМС"]
["Дубовский Андрей","Хан-Тенгри",1987,null,null,null,null,null,null,null,null,null,null,null,null,null,null,null,null,null,null,null,null,null,null,null,null,"б/р"]
["Дудянов Евгений ","ГОЦТиКДиМ Гомель",1996,null,null,null,null,null,null,null,null,null,null,null,3,"юн",null,null,null,null,null,null,null,null,null,null,null,3]
["Дуло Кирилл","Минск",2003,null,null,null,null,"юн",null,null,null,null,null,null,null,null,null,null,null,null,null,null,null,null,null,null,null,"юн"]
["Дюбенков Дмитрий","Гомельская обл.",1992,"КМС",2,null,1,null,null,null,"КМС",1,null,null,null,2,"КМС",null,null,null,null,2,null,null,null,null,2,"КМС"]
["Евченко Александр","Минск",1990,null,null,null,null,null,null,null,null,null,null,null,null,null,null,null,null,null,null,null,null,null,null,null,null,"б/р"]
["Ермохин Вадим","РЦЭК",2005,null,null,null,null,"юн",null,"1 юн",null,null,"юн","юн",null,null,null,null,null,null,null,null,null,null,null,null,null,"1 юн"]
["Есипенок Алексей","Пуховичский р-н",2004,null,null,null,null,"юн",null,null,null,null,null,"юн",null,null,null,"1 юн","юн",null,null,null,null,null,null,null,null,"1 юн"]
["Живица Арсений","Минск",2000,2,2,1,1,null,null,null,null,null,null,null,null,null,2,null,null,null,null,null,null,null,"юн",2,null,1]
["Живица Елисей","Минск",2005,null,null,null,null,null,null,null,null,null,null,null,null,null,null,null,null,null,null,null,null,null,"юн",null,null,"юн"]
["Журавлев Артем","ГОЦТиКДиМ Гомель",2000,null,null,null,null,null,null,null,null,null,null,null,null,2,2,null,null,null,null,null,null,null,null,null,null,2]
["Загорский Владислав ","Могилевская область",1998,null,null,"юн",null,null,null,null,null,null,null,null,null,null,null,null,null,null,null,null,null,null,null,null,null,{"$f":"IF(OR(D69=\"МС\",E69=\"МС\",F69=\"МС\",G69=\"МС\",H69=\"МС\",I69=\"МС\",J69=\"МС\",K69=\"МС\",L69=\"МС\",M69=\"МС\",N69=\"МС\",O69=\"МС\",P69=\"МС\",Q69=\"МС\",R69=\"МС\",S69=\"МС\",T69=\"МС\",U69=\"МС\",V69=\"МС\",W69=\"МС\",X69=\"МС\",Y69=\"МС\",Z69=\"МС\",AA69=\"МС\"),\"МС\",IF(OR(D69=\"КМС\",E69=\"КМС\",F69=\"КМС\",G69=\"КМС\",H69=\"КМС\",I69=\"КМС\",J69=\"КМС\",K69=\"КМС\",L69=\"КМС\",M69=\"КМС\",N69=\"КМС\",O69=\"КМС\",P69=\"КМС\",Q69=\"КМС\",R69=\"КМС\",S69=\"КМС\",T69=\"КМС\",U69=\"КМС\",V69=\"КМС\",W69=\"КМС\",X69=\"КМС\",Y69=\"КМС\",Z69=\"КМС\",AA69=\"КМС\"),\"КМС\",IF(OR(D69=1,E69=1,F69=1,G69=1,H69=1,I69=1,J69=1,K69=1,L69=1,M69=1,N69=1,O69=1,P69=1,Q69=1,R69=1,S69=1,T69=1,U69=1,V69=1,W69=1,X69=1,Y69=1,Z69=1,AA69=1),1,IF(OR(D69=2,E69=2,F69=2,G69=2,H69=2,I69=2,J69=2,K69=2,L69=2,M69=2,N69=2,O69=2,P69=2,Q69=2,R69=2,S69=2,T69=2,U69=2,V69=2,W69=2,X69=2,Y69=2,Z69=2,AA69=2),2,IF(OR(D69=3,E69=3,F69=3,G69=3,H69=3,I69=3,J69=3,K69=3,L69=3,M69=3,N69=3,O69=3,P69=3,Q69=3,R69=3,S69=3,T69=3,U69=3,V69=3,W69=3,X69=3,Y69=3,Z69=3,AA69=3),3,IF(OR(D69=\"1 юн\",E69=\"1 юн\",F69=\"1 юн\",G69=\"1 юн\",H69=\"1 юн\",I69=\"1 юн\",J69=\"1 юн\",K69=\"1 юн\",L69=\"1 юн\",M69=\"1 юн\",N69=\"1 юн\",O69=\"1 юн\",P69=\"1 юн\",Q69=\"1 юн\",R69=\"1 юн\",S69=\"1 юн\",T69=\"1 юн\",U69=\"1 юн\",V69=\"1 юн\",W69=\"1 юн\",X69=\"1 юн\",Y69=\"1 юн\",Z69=\"1 юн\",AA69=\"1 юн\"),\"1 юн\",IF(OR(D69=\"юн\",E69=\"юн\",F69=\"юн\",G69=\"юн\",H69=\"юн\",I69=\"юн\",J69=\"юн\",K69=\"юн\",L69=\"юн\",M69=\"юн\",N69=\"юн\",O69=\"юн\",P69=\"юн\",Q69=\"юн\",R69=\"юн\",S69=\"юн\",T69=\"юн\",U69=\"юн\",V69=\"юн\",W69=\"юн\",X69=\"юн\",Y69=\"юн\",Z69=\"юн\",AA69=\"юн\"),\"юн\",\"б/р\")))))))","v":"юн"}]
["Зайцев Даниил","Речица",2000,null,null,null,null,null,null,null,null,null,null,null,null,null,null,null,null,null,null,null,null,null,null,null,null,"б/р"]
["Зайцев Данила","Брестская область",2003,null,null,null,null,null,null,null,null,null,null,null,null,null,null,"юн",null,null,null,null,null,3,null,null,null,3]
["Зборовский Андрей","Речица",2001,null,null,null,null,null,"1 юн",null,null,null,null,null,null,null,null,null,null,null,null,null,null,null,null,null,null,"1 юн"]
["Зюзин Иван","Минск",2001,null,null,2,null,1,null,null,null,null,null,null,null,null,2,null,null,null,null,null,null,null,"юн",2,null,1]
["Зюзь Сергей","Пуховичский р-н",2001,null,null,"юн",null,null,null,null,null,null,null,null,null,null,null,null,null,null,null,null,null,null,2,null,null,2]
["Иванов Александр","Минск",1992,null,null,null,null,null,null,null,null,null,null,null,2,2,null,null,null,null,null,null,null,null,null,null,null,2]
["Изидеров Никита","Полоцк",1994,null,"КМС",null,"КМС","КМС",null,null,null,null,null,null,null,null,null,null,null,null,null,2,null,null,null,null,null,"КМС"]
["Ильинков Виталик","Минск",2003,null,null,null,null,null,null,null,null,null,null,null,null,null,null,null,null,null,null,null,null,null,null,null,null,"б/р"]
["Иосько Валик","РЦЭК",2006,null,null,null,null,null,null,null,null,null,null,null,null,null,null,null,null,null,null,null,null,null,null,null,null,"б/р"]
["Казимирченко Антон","РЦЭК",2004,null,null,null,null,null,null,null,null,null,null,null,null,null,null,null,"1 юн","юн",null,null,"юн","юн",null,null,null,"1 юн"]
["Кайдунов Антон","ГОЦТиКДиМ Гомель",2004,null,null,null,null,null,null,null,null,null,null,null,null,null,null,null,null,null,null,null,null,null,null,"юн",null,"юн"]
["Караваев Дмитрий","Гомельская обл.",1993,"КМС",1,null,"КМС",null,null,null,"КМС",1,null,null,null,null,null,null,null,null,"КМС",2,null,null,null,null,2,"КМС"]
["Карпов Роман ","MinskOnsight Мн. ",1981,null,null,null,null,null,null,null,null,2,null,null,null,null,null,null,null,null,null,null,null,null,null,null,null,2]
["Качановский Евгений","Хан-Тенгри",1983,null,null,null,null,null,null,null,null,null,null,null,null,null,null,null,null,null,null,null,null,null,null,null,null,"б/р"]
["Киселев Евгений","Шклов",1999,null,null,1,2,null,null,null,null,null,null,null,2,null,null,null,null,null,null,null,null,null,null,null,null,1]
["Климович Алексей","ЦТКиЭ Бобруйск",2008,null,null,null,null,null,null,null,null,null,null,null,null,null,null,null,null,null,null,null,null,null,null,null,null,"б/р"]
["Клюжев Александр","Гомельская обл.",1997,"КМС","МС",1,"КМС",null,null,null,"КМС","КМС",null,null,"КМС",null,"КМС",null,null,null,"КМС","МС",null,null,null,null,"МС","МС"]
["Козловский Петр","Речица",1998,null,null,null,null,null,null,null,null,null,null,null,null,null,null,null,null,null,null,null,null,null,null,null,null,"б/р"]
["Косач Павел","ГОЦТиКДиМ Гомель",2004,null,null,null,null,null,null,null,null,null,"юн",null,null,null,null,"юн","1 юн","1 юн",null,null,null,null,null,null,null,"1 юн"]
["Красильников Виктор","Минск",1998,null,null,null,null,null,null,null,null,null,null,null,null,null,null,null,null,null,null,null,null,null,null,null,null,"б/р"]
["Крез Владислав","Пуховичский р-н",2001,null,null,null,null,null,null,null,null,null,null,null,null,null,null,null,null,null,null,null,null,null,null,null,null,"б/р"]
["Криворот Александр","Минск",1997,null,null,null,null,null,null,null,null,null,null,null,null,null,null,null,null,null,null,null,null,null,null,null,null,"б/р"]
["Кудрявцев Александр","ГОЦТиКДиМ Гомель",2004,null,null,null,null,null,null,null,null,null,"юн","1 юн",null,null,null,"юн","1 юн","юн",null,null,null,null,"юн",null,null,"1 юн"]
["Кузан Никита","Могилевская область",2004,null,null,null,null,"юн",null,null,null,null,null,null,null,null,null,null,null,null,null,null,null,null,null,null,null,"юн"]
["Кульченко Артем","Пуховичский р-н",2008,null,null,null,null,null,null,null,null,null,null,null,null,null,null,null,null,"юн",null,null,null,null,null,null,null,"юн"]
["Кухоренко Максим","Витебск",1985,null,null,null,null,null,null,null,null,1,null,null,null,null,null,null,null,null,null,null,null,null,null,null,null,1]
["Лашук Кирилл","РЦЭК",2005,null,null,null,null,null,null,null,null,null,null,null,null,null,null,null,null,null,null,null,null,null,null,null,null,"б/р"]
["Липский Кирилл","Минск",1986,null,null,null,2,null,null,null,null,null,null,null,3,2,2,null,null,null,null,null,null,null,null,null,null,2]
["Литвин Кирилл","Брестская область",2002,null,null,null,null,3,null,null,null,null,null,null,null,null,null,null,null,null,null,null,null,null,3,"юн",null,3]
["Логунов Никита","ДЮСШ «Омега» Гом.",1999,1,"КМС",1,"КМС",null,null,null,null,"КМС",null,null,null,"КМС",null,null,null,null,1,"КМС",null,null,null,null,"КМС","КМС"]
["Ложкин Денис","MinskOnsight Мн.",1983,null,null,null,1,null,null,null,null,1,null,null,2,null,null,null,null,null,null,null,null,null,null,null,null,1]
["Лопухов Глеб","СШ № 1 г. Ветка",2003,null,null,null,null,null,2,"юн",null,null,"1 юн",null,null,null,null,null,"1 юн","1 юн",null,null,null,null,"юн","юн",null,{"$f":"IF(OR(D101=\"МС\",E101=\"МС\",F101=\"МС\",G101=\"МС\",H101=\"МС\",I101=\"МС\",J101=\"МС\",K101=\"МС\",L101=\"МС\",M101=\"МС\",N101=\"МС\",O101=\"МС\",P101=\"МС\",Q101=\"МС\",R101=\"МС\",S101=\"МС\",T101=\"МС\",U101=\"МС\",V101=\"МС\",W101=\"МС\",X101=\"МС\",Y101=\"МС\",Z101=\"МС\",AA101=\"МС\"),\"МС\",IF(OR(D101=\"КМС\",E101=\"КМС\",F101=\"КМС\",G101=\"КМС\",H101=\"КМС\",I101=\"КМС\",J101=\"КМС\",K101=\"КМС\",L101=\"КМС\",M101=\"КМС\",N101=\"КМС\",O101=\"КМС\",P101=\"КМС\",Q101=\"КМС\",R101=\"КМС\",S101=\"КМС\",T101=\"КМС\",U101=\"КМС\",V101=\"КМС\",W101=\"КМС\",X101=\"КМС\",Y101=\"КМС\",Z101=\"КМС\",AA101=\"КМС\"),\"КМС\",IF(OR(D101=1,E101=1,F101=1,G101=1,H101=1,I101=1,J101=1,K101=1,L101=1,M101=1,N101=1,O101=1,P101=1,Q101=1,R101=1,S101=1,T101=1,U101=1,V101=1,W101=1,X101=1,Y101=1,Z101=1,AA101=1),1,IF(OR(D101=2,E101=2,F101=2,G101=2,H101=2,I101=2,J101=2,K101=2,L101=2,M101=2,N101=2,O101=2,P101=2,Q101=2,R101=2,S101=2,T101=2,U101=2,V101=2,W101=2,X101=2,Y101=2,Z101=2,AA101=2),2,IF(OR(D101=3,E101=3,F101=3,G101=3,H101=3,I101=3,J101=3,K101=3,L101=3,M101=3,N101=3,O101=3,P101=3,Q101=3,R101=3,S101=3,T101=3,U101=3,V101=3,W101=3,X101=3,Y101=3,Z101=3,AA101=3),3,IF(OR(D101=\"1 юн\",E101=\"1 юн\",F101=\"1 юн\",G101=\"1 юн\",H101=\"1 юн\",I101=\"1 юн\",J101=\"1 юн\",K101=\"1 юн\",L101=\"1 юн\",M101=\"1 юн\",N101=\"1 юн\",O101=\"1 юн\",P101=\"1 юн\",Q101=\"1 юн\",R101=\"1 юн\",S101=\"1 юн\",T101=\"1 юн\",U101=\"1 юн\",V101=\"1 юн\",W101=\"1 юн\",X101=\"1 юн\",Y101=\"1 юн\",Z101=\"1 юн\",AA101=\"1 юн\"),\"1 юн\",IF(OR(D101=\"юн\",E101=\"юн\",F101=\"юн\",G101=\"юн\",H101=\"юн\",I101=\"юн\",J101=\"юн\",K101=\"юн\",L101=\"юн\",M101=\"юн\",N101=\"юн\",O101=\"юн\",P101=\"юн\",Q101=\"юн\",R101=\"юн\",S101=\"юн\",T101=\"юн\",U101=\"юн\",V101=\"юн\",W101=\"юн\",X101=\"юн\",Y101=\"юн\",Z101=\"юн\",AA101=\"юн\"),\"юн\",\"б/р\")))))))","v":2}]
["Лялюк Александр","г. Витебск",1989,null,null,null,null,null,null,null,null,null,null,null,null,null,null,null,null,null,2,null,null,null,null,null,null,2]
["Магер Даниил","Полоцк",1998,null,"юн",null,null,null,null,null,null,null,null,null,null,null,null,null,null,null,null,null,null,null,null,null,null,"юн"]
["Макаренко Виктор","Калинковичи",2003,null,null,null,null,null,null,null,null,null,2,null,null,null,null,null,null,null,null,null,null,null,null,null,null,2]
["Максименя Александр","Хан-Тенгри",1975,null,null,null,1,null,null,null,null,null,null,null,null,null,null,null,null,null,null,null,null,null,null,null,null,1]
["Максименя Денис","Минск",1996,null,null,null,"КМС",null,null,null,null,null,null,null,1,"КМС",null,null,null,null,null,null,null,null,null,null,1,"КМС"]
["Малаховский Александр","Хан-Тенгри",1985,null,1,null,null,null,null,null,null,null,null,null,null,null,1,null,null,null,null,null,null,null,null,null,1,1]
["Мельченко Арсений","РЦЭК",2005,null,null,null,null,null,null,null,null,null,null,null,null,null,null,null,null,null,null,null,null,null,null,null,null,"б/р"]
["Мертенс Андрей","г. Витебск",1992,null,null,null,null,null,null,null,null,null,null,null,null,null,null,null,null,null,3,null,null,null,null,null,null,3]
["Миненко Игорь","Хан-Тенгри",1982,null,null,null,2,null,null,null,null,null,null,null,null,null,null,null,null,null,null,null,null,null,null,null,null,2]
["Мишкин Данила","Брестская область",2004,null,null,null,null,null,null,null,null,null,null,null,null,null,null,"юн",null,null,null,null,null,"юн",null,null,null,"юн"]
["Мокеев Алексей","Пуховичский р-н",2002,null,null,null,null,null,null,null,null,null,null,"юн",null,null,null,null,null,null,null,null,null,null,null,null,null,"юн"]
["Морозов Игорь","Хан-Тенгри",1970,null,null,null,null,null,null,null,null,null,null,null,null,null,null,null,null,null,null,null,null,null,null,null,null,"б/р"]
["Морозов Юрий","Хан-Тенгри",1992,null,null,null,"КМС",null,null,null,null,null,null,null,null,null,2,null,null,null,null,null,null,null,null,null,1,"КМС"]
["Мостков Слава","Минск",2006,null,null,null,null,null,null,null,null,null,null,null,null,null,null,null,null,null,null,null,null,"юн",null,null,null,"юн"]
["Найденшев Владимир","Пуховичский р-н",2002,null,null,null,null,3,null,null,null,null,null,"юн",null,null,null,2,"юн","1 юн",null,null,null,null,null,null,null,2]
["Насиров Ренат","ГОЦТиКДиМ Гомель",2004,null,null,null,null,null,null,null,null,null,null,"юн",null,null,null,null,null,null,null,null,null,null,null,null,null,"юн"]
["Нестеренко Егор","ДЮСШ «Омега» Гом.",2003,null,null,null,null,null,null,null,null,null,"юн",null,null,null,null,null,null,null,null,null,null,null,null,null,null,"юн"]
["Никипелов Вадим","Речица",1998,null,null,null,null,null,null,null,null,null,null,null,null,null,null,null,null,null,null,null,null,null,null,null,null,"б/р"]
["Никифоровец Андрей","Минск",1974,1,"МС",null,null,null,null,null,1,"КМС",null,null,"КМС",null,1,null,null,null,null,"МС",null,null,null,null,"МС","МС"]
["Никифоровец Максим","Минск",1997,2,2,1,"КМС",null,null,null,null,null,null,null,null,"КМС","КМС",null,null,null,null,null,null,null,null,null,"КМС","КМС"]
["Никоноров Дмитрий","Пуховичский р-н",1997,null,1,1,"КМС",null,null,null,null,null,null,null,null,1,1,null,null,null,null,null,null,null,null,null,1,"КМС"]
["Оверчук Даниил","Речица",2001,null,null,null,null,null,"1 юн","1 юн",null,null,"юн",null,null,"юн",null,null,null,null,null,null,null,null,null,null,null,"1 юн"]
["Осененко Василий","Хан-Тенгри",1987,null,null,null,null,null,null,null,null,null,null,null,null,null,null,null,null,null,null,null,null,null,null,null,null,"б/р"]
["Остроухов Егор","ПРЦДиМ Полоцк",1973,null,2,null,1,null,null,null,null,null,null,null,null,null,null,null,null,null,null,null,null,null,null,null,null,1]
["Пагудо Евгений","Минск",2002,null,null,null,null,3,"1 юн",null,null,null,null,null,null,null,null,null,null,null,null,null,null,null,null,null,null,3]
["Пастухов Никита","Пуховичский р-н",2000,null,null,null,null,null,null,null,null,null,null,null,null,null,null,null,null,null,null,null,null,null,null,null,null,"б/р"]
["Пауля Павел","Минск",2000,null,null,null,null,null,null,null,null,null,null,null,null,null,null,null,null,null,null,null,null,null,null,null,null,"б/р"]
["Пахомов Александр","Бобруйск",1983,null,null,null,"КМС",null,null,null,null,null,null,null,1,1,null,null,null,null,null,null,null,null,null,null,1,"КМС"]
["Петровский Максим","Минск",1987,null,null,null,null,null,null,null,null,null,null,null,null,null,null,null,null,null,null,null,null,null,null,null,null,"б/р"]
["Пирожков Денис","ГОЦТиКДиМ Гомель",1998,null,null,null,null,null,null,null,null,null,null,null,null,null,null,null,null,null,null,null,null,null,null,null,null,"б/р"]
["Писарев Кирилл","ДЮСШ «Омега» Гом.",2001,null,null,null,null,1,2,null,null,null,2,"юн",null,2,null,null,null,null,null,null,null,null,2,3,null,1]
["Подплетько Александр ","Речица",2001,null,null,null,null,null,null,null,null,null,null,null,null,null,null,null,null,null,null,null,null,null,null,null,null,{"$f":"IF(OR(D133=\"МС\",E133=\"МС\",F133=\"МС\",G133=\"МС\",H133=\"МС\",I133=\"МС\",J133=\"МС\",K133=\"МС\",L133=\"МС\",M133=\"МС\",N133=\"МС\",O133=\"МС\",P133=\"МС\",Q133=\"МС\",R133=\"МС\",S133=\"МС\",T133=\"МС\",U133=\"МС\",V133=\"МС\",W133=\"МС\",X133=\"МС\",Y133=\"МС\",Z133=\"МС\",AA133=\"МС\"),\"МС\",IF(OR(D133=\"КМС\",E133=\"КМС\",F133=\"КМС\",G133=\"КМС\",H133=\"КМС\",I133=\"КМС\",J133=\"КМС\",K133=\"КМС\",L133=\"КМС\",M133=\"КМС\",N133=\"КМС\",O133=\"КМС\",P133=\"КМС\",Q133=\"КМС\",R133=\"КМС\",S133=\"КМС\",T133=\"КМС\",U133=\"КМС\",V133=\"КМС\",W133=\"КМС\",X133=\"КМС\",Y133=\"КМС\",Z133=\"КМС\",AA133=\"КМС\"),\"КМС\",IF(OR(D133=1,E133=1,F133=1,G133=1,H133=1,I133=1,J133=1,K133=1,L133=1,M133=1,N133=1,O133=1,P133=1,Q133=1,R133=1,S133=1,T133=1,U133=1,V133=1,W133=1,X133=1,Y133=1,Z133=1,AA133=1),1,IF(OR(D133=2,E133=2,F133=2,G133=2,H133=2,I133=2,J133=2,K133=2,L133=2,M133=2,N133=2,O133=2,P133=2,Q133=2,R133=2,S133=2,T133=2,U133=2,V133=2,W133=2,X133=2,Y133=2,Z133=2,AA133=2),2,IF(OR(D133=3,E133=3,F133=3,G133=3,H133=3,I133=3,J133=3,K133=3,L133=3,M133=3,N133=3,O133=3,P133=3,Q133=3,R133=3,S133=3,T133=3,U133=3,V133=3,W133=3,X133=3,Y133=3,Z133=3,AA133=3),3,IF(OR(D133=\"1 юн\",E133=\"1 юн\",F133=\"1 юн\",G133=\"1 юн\",H133=\"1 юн\",I133=\"1 юн\",J133=\"1 юн\",K133=\"1 юн\",L133=\"1 юн\",M133=\"1 юн\",N133=\"1 юн\",O133=\"1 юн\",P133=\"1 юн\",Q133=\"1 юн\",R133=\"1 юн\",S133=\"1 юн\",T133=\"1 юн\",U133=\"1 юн\",V133=\"1 юн\",W133=\"1 юн\",X133=\"1 юн\",Y133=\"1 юн\",Z133=\"1 юн\",AA133=\"1 юн\"),\"1 юн\",IF(OR(D133=\"юн\",E133=\"юн\",F133=\"юн\",G133=\"юн\",H133=\"юн\",I133=\"юн\",J133=\"юн\",K133=\"юн\",L133=\"юн\",M133=\"юн\",N133=\"юн\",O133=\"юн\",P133=\"юн\",Q133=\"юн\",R133=\"юн\",S133=\"юн\",T133=\"юн\",U133=\"юн\",V133=\"юн\",W133=\"юн\",X133=\"юн\",Y133=\"юн\",Z133=\"юн\",AA133=\"юн\"),\"юн\",\"б/р\")))))))","v":"б/р"}]
["Покаместов Илья","Витебск",1977,2,null,null,null,null,null,null,1,null,null,null,null,null,null,null,null,null,null,null,null,null,null,null,null,1]
["Пригодич Андрей","Минск",1987,null,null,null,null,null,null,null,null,null,null,null,null,null,null,null,null,null,null,null,null,null,null,null,null,"б/р"]
["Пристромов Антон","ДЮСШ «Омега» Гом.",1988,2,"КМС",null,1,null,null,null,null,null,null,null,null,null,null,null,null,null,null,null,null,null,null,null,null,"КМС"]
["Пуйто Антон","ГОЦТиКДиМ Гомель",1998,2,2,1,1,null,null,null,1,1,null,null,3,3,null,null,null,null,null,null,null,null,null,null,null,1]
["Раманюга Максим","т/к \"Кадр\" Речица",2003,null,null,null,null,null,null,null,null,null,"юн",null,null,null,null,null,null,null,null,null,null,null,null,null,null,"юн"]
["Рожнов Владимир","Могилевская область",1999,null,null,2,null,null,null,null,null,null,null,null,null,null,null,null,null,null,null,null,null,null,null,null,null,2]
["Рубенок Артем","Витебск",1986,null,null,null,null,null,null,null,null,1,null,null,null,null,null,null,null,null,null,null,null,null,null,null,null,1]
["Рудавский Никита","Могилевская область",1999,null,null,2,null,null,null,null,null,null,null,null,null,null,null,null,null,null,null,null,null,null,null,null,null,2]
["Руденко Вадим","ДЮСШ «Омега» Гом.",2006,null,null,null,null,null,null,"1 юн",null,null,null,null,null,null,null,"1 юн","1 юн","1 юн",null,null,"1 юн",2,null,null,null,2]
["Рыбчинский Антон","Брестская область",2005,null,null,null,null,null,null,null,null,null,null,null,null,null,null,"юн",null,null,null,null,null,"1 юн",null,null,null,"1 юн"]
["Самухин Василий","Минск",2000,null,null,null,null,null,null,null,null,null,null,null,null,null,3,null,null,null,null,null,null,null,null,null,null,3]
["Сатишур Антон","Брестская область",1999,null,null,null,null,null,null,null,null,null,null,null,null,null,null,null,null,null,null,null,null,null,null,null,null,"б/р"]
["Саунин Кирилл","Пинск",1989,null,null,null,null,null,null,null,null,null,null,null,1,null,1,null,null,null,null,null,null,null,null,null,null,1]
["Сацута Павел","Пуховичский р-н",2005,null,null,null,null,null,null,null,null,null,null,null,null,null,null,"юн","юн","1 юн",null,null,null,null,null,null,null,"1 юн"]
["Свешников Герман","РЦЭК",2005,null,null,null,null,null,null,null,null,null,null,null,null,null,null,null,null,null,null,null,null,null,null,null,null,"б/р"]
["Свито Иван","Хан-Тенгри",1982,null,null,null,1,null,null,null,null,null,null,null,2,null,null,null,null,null,null,null,null,null,null,null,null,1]
["Сердаков Илья","ГОЦТиКДиМ Гомель",1999,2,2,1,1,null,null,null,1,"КМС",null,null,null,null,null,null,null,null,2,2,null,null,null,null,null,"КМС"]
["Сивуха Максим","Речица",2003,null,null,null,null,null,"1 юн",null,null,null,null,null,null,"юн",null,null,null,null,null,null,null,null,null,null,null,"1 юн"]
["Сидорейко Артем","ГОЦТиКДиМ Гомель",1996,null,null,null,null,null,null,null,null,null,null,null,null,null,null,null,null,null,null,null,null,null,null,null,null,"б/р"]
["Силков Михаил","МогилёвскийОЦФВиС",1997,null,null,2,null,null,null,null,null,null,null,null,null,null,null,null,null,null,null,null,null,null,null,null,null,2]
["Синяцкий Олег","СШ № 1 г. Ветка",2008,null,null,null,null,null,null,null,null,null,null,null,null,null,null,null,"юн",null,null,null,null,null,null,null,null,"юн"]
["Смирнов Владимир","РЦЭК",2005,null,null,null,null,null,null,null,null,null,null,null,null,null,null,null,null,null,null,null,null,null,null,null,null,"б/р"]
["Смирнов Даник","РЦЭК",2002,null,null,null,null,null,null,null,null,null,null,null,null,null,null,3,null,null,null,null,null,2,null,null,null,2]
["Смолюга Анатолий","т/к \"Кадр\" Речица",2005,null,null,null,null,null,null,null,null,null,null,null,null,null,null,null,null,"юн",null,null,null,null,null,null,null,"юн"]
["Соковых Евгений","Хан-Тенгри",1988,null,null,null,"КМС",null,null,null,null,null,null,null,null,null,null,null,null,null,null,null,null,null,null,null,1,"КМС"]
["Соколовский Даник","РЦЭК",2006,null,null,null,null,null,null,null,null,null,null,null,null,null,null,"юн","юн","1 юн",null,null,null,"юн",null,null,null,"1 юн"]
["Соломкин Александр ","ГОЦТиКДиМ Гомель",2005,null,null,null,null,"юн","1 юн","юн",null,null,null,null,null,null,null,null,null,null,null,null,null,null,null,null,null,"1 юн"]
["Сомов Денис","Речица",2003,null,null,null,null,null,"1 юн",null,null,null,null,null,null,null,null,null,null,null,null,null,null,null,null,null,null,"1 юн"]
["Сорокин Андрей","МогилёвскийОЦФВиС",1998,2,2,null,null,null,null,null,null,null,null,null,null,null,null,null,null,null,null,null,null,null,null,null,null,2]
["Сосновский Никита","Пуховичский р-н",2005,null,null,null,null,"1 юн",null,null,null,null,2,2,null,null,null,2,"1 юн","1 юн",null,null,null,2,null,"юн",null,2]
["Станков Глеб","Минск",2005,null,null,null,null,null,null,null,null,null,null,null,null,null,null,null,null,null,null,null,"юн",null,null,null,null,"юн"]
["Стариков Павел","С/к «Торпедо»  Мг.",1996,null,null,null,2,null,null,null,null,null,null,null,null,null,null,null,null,null,null,null,null,null,null,null,2,{"$f":"IF(OR(D165=\"МС\",E165=\"МС\",F165=\"МС\",G165=\"МС\",H165=\"МС\",I165=\"МС\",J165=\"МС\",K165=\"МС\",L165=\"МС\",M165=\"МС\",N165=\"МС\",O165=\"МС\",P165=\"МС\",Q165=\"МС\",R165=\"МС\",S165=\"МС\",T165=\"МС\",U165=\"МС\",V165=\"МС\",W165=\"МС\",X165=\"МС\",Y165=\"МС\",Z165=\"МС\",AA165=\"МС\"),\"МС\",IF(OR(D165=\"КМС\",E165=\"КМС\",F165=\"КМС\",G165=\"КМС\",H165=\"КМС\",I165=\"КМС\",J165=\"КМС\",K165=\"КМС\",L165=\"КМС\",M165=\"КМС\",N165=\"КМС\",O165=\"КМС\",P165=\"КМС\",Q165=\"КМС\",R165=\"КМС\",S165=\"КМС\",T165=\"КМС\",U165=\"КМС\",V165=\"КМС\",W165=\"КМС\",X165=\"КМС\",Y165=\"КМС\",Z165=\"КМС\",AA165=\"КМС\"),\"КМС\",IF(OR(D165=1,E165=1,F165=1,G165=1,H165=1,I165=1,J165=1,K165=1,L165=1,M165=1,N165=1,O165=1,P165=1,Q165=1,R165=1,S165=1,T165=1,U165=1,V165=1,W165=1,X165=1,Y165=1,Z165=1,AA165=1),1,IF(OR(D165=2,E165=2,F165=2,G165=2,H165=2,I165=2,J165=2,K165=2,L165=2,M165=2,N165=2,O165=2,P165=2,Q165=2,R165=2,S165=2,T165=2,U165=2,V165=2,W165=2,X165=2,Y165=2,Z165=2,AA165=2),2,IF(OR(D165=3,E165=3,F165=3,G165=3,H165=3,I165=3,J165=3,K165=3,L165=3,M165=3,N165=3,O165=3,P165=3,Q165=3,R165=3,S165=3,T165=3,U165=3,V165=3,W165=3,X165=3,Y165=3,Z165=3,AA165=3),3,IF(OR(D165=\"1 юн\",E165=\"1 юн\",F165=\"1 юн\",G165=\"1 юн\",H165=\"1 юн\",I165=\"1 юн\",J165=\"1 юн\",K165=\"1 юн\",L165=\"1 юн\",M165=\"1 юн\",N165=\"1 юн\",O165=\"1 юн\",P165=\"1 юн\",Q165=\"1 юн\",R165=\"1 юн\",S165=\"1 юн\",T165=\"1 юн\",U165=\"1 юн\",V165=\"1 юн\",W165=\"1 юн\",X165=\"1 юн\",Y165=\"1 юн\",Z165=\"1 юн\",AA165=\"1 юн\"),\"1 юн\",IF(OR(D165=\"юн\",E165=\"юн\",F165=\"юн\",G165=\"юн\",H165=\"юн\",I165=\"юн\",J165=\"юн\",K165=\"юн\",L165=\"юн\",M165=\"юн\",N165=\"юн\",O165=\"юн\",P165=\"юн\",Q165=\"юн\",R165=\"юн\",S165=\"юн\",T165=\"юн\",U165=\"юн\",V165=\"юн\",W165=\"юн\",X165=\"юн\",Y165=\"юн\",Z165=\"юн\",AA165=\"юн\"),\"юн\",\"б/р\")))))))","v":2}]
["Степаненко Олег","Гомельская обл.",2001,null,null,null,null,null,"1 юн",null,null,null,"юн",null,null,"1 юн","юн",null,null,null,null,null,null,null,null,null,null,"1 юн"]
["Стрельский Максим","Пуховичский р-н",1998,null,null,null,null,null,null,null,null,null,null,null,null,null,null,null,null,null,null,null,null,null,null,null,null,"б/р"]
["Стрельченя Максим","Фрунзенский ФОЦ",2006,null,null,null,null,null,null,null,null,null,null,null,null,null,null,null,null,null,null,null,null,null,null,null,null,"б/р"]
["Стрижевич Сергей","РЦЭК",2006,null,null,null,null,null,null,null,null,null,"юн","юн",null,null,null,"1 юн","1 юн","юн",null,null,"1 юн","1 юн",null,null,null,"1 юн"]
["Супей Степан","ГОЦТиКДиМ Гомель",2007,null,null,null,null,null,null,null,null,null,null,null,null,null,null,null,"юн","юн",null,null,null,null,null,null,null,"юн"]
["Сухотский Дмитрий","Минск",1997,null,null,3,null,null,null,null,null,null,null,null,null,null,null,null,null,null,null,null,null,null,null,null,null,3]
["Сычев Николай","Гомельская обл.",1978,null,null,null,1,null,null,null,null,null,null,null,null,null,null,null,null,null,null,null,null,null,null,null,null,1]
["Талдыкин Илья","ДЮСШ «Омега» Гом.",2000,null,null,2,null,null,null,null,null,null,null,null,null,2,null,null,null,null,null,2,null,null,null,null,null,2]
["Тарасенко Владислав","Пуховичский р-н",1995,null,null,null,"КМС",null,null,null,null,null,null,null,null,null,null,null,null,null,null,null,null,null,null,null,"КМС","КМС"]
["Таршис Иван","ГОЦТиКДиМ Гомель",1998,null,null,1,null,null,null,null,null,null,null,null,null,null,null,null,null,null,null,null,null,null,null,null,null,1]
["Теклин Феликс","ДЮСШ «Омега» Гом.",2005,null,null,null,null,null,null,null,null,null,null,null,null,null,null,null,null,null,null,null,null,null,null,null,null,"б/р"]
["Толкачев Илья","ЦТКиЭ Бобруйск",2006,null,null,null,null,null,null,null,null,null,null,null,null,null,null,"юн",null,null,null,null,null,null,null,null,null,"юн"]
["Тэнц Константин","т/к \"Кадр\" Речица",2003,null,null,null,null,null,null,null,null,null,"юн","юн",null,null,null,null,"юн",null,null,null,null,null,null,null,null,"юн"]
["Федоринчик Антон","Пуховичский р-н",2002,null,null,null,null,null,null,null,null,null,"юн","1 юн",null,null,null,2,"1 юн",2,null,null,null,2,null,null,null,2]
["Федоров Игорь","Хан-Тенгри",1977,null,null,null,1,null,null,null,null,null,null,null,null,null,null,null,null,null,null,null,null,null,null,null,null,1]
["Федотов Сергей","Бобруйск",1990,null,null,null,"КМС",null,null,null,null,null,null,null,"КМС","КМС",null,null,null,null,null,null,null,null,null,null,null,"КМС"]
["Фурик Александр","ЦТ Слуцк",2004,null,null,null,null,null,null,null,null,null,null,null,null,null,null,"юн",null,null,null,null,null,null,null,null,null,"юн"]
["Харчик Максим","Брестская область",1998,"юн",3,"юн",null,null,null,null,null,null,null,null,null,null,null,null,null,null,null,null,null,null,null,null,null,3]
["Церлюкевич Влад","РЦЭК",2006,null,null,null,null,null,null,null,null,null,null,null,null,null,null,null,null,null,null,null,null,"юн",null,null,null,"юн"]
["Циркунов Александр","Витебск",1988,null,null,null,2,null,null,null,null,null,null,null,null,null,null,null,null,null,null,null,null,null,null,null,null,2]
["Цымбалист Данила","Брестская область",2001,null,null,null,null,"юн",null,null,null,null,null,null,null,null,null,null,null,null,null,null,null,null,null,null,null,"юн"]
["Ченуша Алексей","Хан-Тенгри",1969,null,null,null,1,null,null,null,null,1,null,null,null,null,null,null,null,null,null,null,null,null,null,null,null,1]
["Чернявский Артем","Витебск",1987,null,null,null,null,null,null,null,null,null,null,null,null,null,null,null,null,null,null,null,null,null,null,null,null,"б/р"]
["Чешун Иван","ГОЦТиКДиМ Гомель",2004,null,null,null,null,null,null,null,null,null,null,null,null,null,null,null,null,"юн",null,null,null,null,null,null,null,"юн"]
["Шахэмиров Максим","Пуховичский р-н",2003,null,null,null,null,null,null,null,null,null,null,null,null,null,null,null,null,"юн",null,null,null,null,null,null,null,"юн"]
["Шелкович Антон","Минск",1986,null,null,null,1,null,null,null,null,null,null,null,null,null,null,null,null,null,null,null,null,null,null,null,null,1]
["Шиленок Артем","т/к \"Кадр\" Речица",2004,null,null,null,null,null,null,null,null,null,null,null,null,null,null,null,"юн","юн",null,null,null,null,null,null,null,"юн"]
["Шишко Даниил","Фрунзенский ФОЦ",2002,null,null,null,null,"юн",null,null,null,null,null,null,null,null,null,3,null,null,null,null,null,null,null,null,null,3]
["Шишко Михаил","Фрунзенский ФОЦ",2006,null,null,null,null,null,null,null,null,null,null,null,null,null,null,"юн",null,null,null,null,null,"юн",null,null,null,"юн"]
["Шишко Тимофей","Фрунзенский ФОЦ",2004,null,null,null,null,null,null,null,null,null,null,null,null,null,null,"юн",null,null,null,null,"юн","юн",null,null,null,"юн"]
["Шпиганович Данила","Брестская область",2005,null,null,null,null,"1 юн",null,null,null,null,null,null,null,null,null,null,null,null,null,null,null,"1 юн","юн",null,null,"1 юн"]
["Шпиганович Максим","Брестская область",2001,null,null,null,null,"юн",null,null,null,null,null,null,null,null,null,2,null,null,null,null,null,null,3,"юн",null,{"$f":"IF(OR(D197=\"МС\",E197=\"МС\",F197=\"МС\",G197=\"МС\",H197=\"МС\",I197=\"МС\",J197=\"МС\",K197=\"МС\",L197=\"МС\",M197=\"МС\",N197=\"МС\",O197=\"МС\",P197=\"МС\",Q197=\"МС\",R197=\"МС\",S197=\"МС\",T197=\"МС\",U197=\"МС\",V197=\"МС\",W197=\"МС\",X197=\"МС\",Y197=\"МС\",Z197=\"МС\",AA197=\"МС\"),\"МС\",IF(OR(D197=\"КМС\",E197=\"КМС\",F197=\"КМС\",G197=\"КМС\",H197=\"КМС\",I197=\"КМС\",J197=\"КМС\",K197=\"КМС\",L197=\"КМС\",M197=\"КМС\",N197=\"КМС\",O197=\"КМС\",P197=\"КМС\",Q197=\"КМС\",R197=\"КМС\",S197=\"КМС\",T197=\"КМС\",U197=\"КМС\",V197=\"КМС\",W197=\"КМС\",X197=\"КМС\",Y197=\"КМС\",Z197=\"КМС\",AA197=\"КМС\"),\"КМС\",IF(OR(D197=1,E197=1,F197=1,G197=1,H197=1,I197=1,J197=1,K197=1,L197=1,M197=1,N197=1,O197=1,P197=1,Q197=1,R197=1,S197=1,T197=1,U197=1,V197=1,W197=1,X197=1,Y197=1,Z197=1,AA197=1),1,IF(OR(D197=2,E197=2,F197=2,G197=2,H197=2,I197=2,J197=2,K197=2,L197=2,M197=2,N197=2,O197=2,P197=2,Q197=2,R197=2,S197=2,T197=2,U197=2,V197=2,W197=2,X197=2,Y197=2,Z197=2,AA197=2),2,IF(OR(D197=3,E197=3,F197=3,G197=3,H197=3,I197=3,J197=3,K197=3,L197=3,M197=3,N197=3,O197=3,P197=3,Q197=3,R197=3,S197=3,T197=3,U197=3,V197=3,W197=3,X197=3,Y197=3,Z197=3,AA197=3),3,IF(OR(D197=\"1 юн\",E197=\"1 юн\",F197=\"1 юн\",G197=\"1 юн\",H197=\"1 юн\",I197=\"1 юн\",J197=\"1 юн\",K197=\"1 юн\",L197=\"1 юн\",M197=\"1 юн\",N197=\"1 юн\",O197=\"1 юн\",P197=\"1 юн\",Q197=\"1 юн\",R197=\"1 юн\",S197=\"1 юн\",T197=\"1 юн\",U197=\"1 юн\",V197=\"1 юн\",W197=\"1 юн\",X197=\"1 юн\",Y197=\"1 юн\",Z197=\"1 юн\",AA197=\"1 юн\"),\"1 юн\",IF(OR(D197=\"юн\",E197=\"юн\",F197=\"юн\",G197=\"юн\",H197=\"юн\",I197=\"юн\",J197=\"юн\",K197=\"юн\",L197=\"юн\",M197=\"юн\",N197=\"юн\",O197=\"юн\",P197=\"юн\",Q197=\"юн\",R197=\"юн\",S197=\"юн\",T197=\"юн\",U197=\"юн\",V197=\"юн\",W197=\"юн\",X197=\"юн\",Y197=\"юн\",Z197=\"юн\",AA197=\"юн\"),\"юн\",\"б/р\")))))))","v":2}]
["Шульпейкин Влад","Калинковичи",2004,null,null,null,null,null,null,null,null,null,"юн",null,null,null,null,null,null,null,null,null,null,null,null,null,null,"юн"]
["Юнгин Кирилл","РЦЭК",2006,null,null,null,null,null,null,null,null,null,null,null,null,null,null,null,null,null,null,null,"1 юн","юн",null,null,null,"1 юн"]
["Юрковец Евгений","Могилевская область",2000,null,null,null,null,2,null,null,null,null,null,null,null,null,null,null,null,null,null,null,null,null,3,null,null,2]
["Юхнюк Вячеслав","Брестская область",1999,null,null,3,null,null,null,null,null,null,null,null,null,null,null,null,null,null,null,null,null,null,null,null,null,3]
["Яковлев Юрий","Хан-Тенгри",1986,null,null,null,null,null,null,null,null,null,null,null,null,null,2,null,null,null,null,null,null,null,null,null,null,2]
["Янкулин Станислав ","Могилевская область",1997,null,null,"юн",null,null,null,null,null,null,null,null,null,null,null,null,null,null,null,null,null,null,null,null,null,"юн"]
["Яцыно Павел","Витебск",1986,null,"КМС",null,"КМС",null,null,null,null,"КМС",null,null,2,1,null,null,null,null,null,1,null,null,null,null,1,"КМС"]

{"sheet":"разряды ж.","index":7,"n_rows":100,"n_cols":28,"rows_kept":100,"cut":false,"hidden":false,"merged":[[4,23,99,23],[2,12,2,13],[2,24,2,25],[1,3,1,4],[2,3,2,4],[2,20,2,21],[2,10,2,11],[2,8,2,9],[1,5,1,14],[2,18,2,19],[1,24,1,26],[2,22,2,23],[1,15,1,23],[4,5,99,5],[4,3,99,3],[4,20,99,20],[4,21,99,21],[4,10,99,10],[4,11,99,11],[4,22,99,22]]}
[]
[null,null,null,2013,null,2014,null,null,null,null,null,null,null,null,null,2015,null,null,null,null,null,null,null,null,2013]
[null,null,null,"Чемпионат и первенство Беларуси, Витебск, 5-9.12.2013",null,"Первенство Беларуси, Минск, 21-22.02.2014 ","Чемпионат Беларуси, Минск, 21-23.02.2014 ","Первенство Беларуси, Минск, 21-23.03.2014","Первенство Гомеля, 4-6.04.2014",null,"Кубок Беларуси, Витебск, 12-13.04.2014",null,"Первенство Беларуси, Гомель, 7-8.11.2014",null,"Кубок Беларуси, Пинск, 22-23.11.2014","Первенство Гом. обл., 31.01-1.02.1015","Чемпионат Беларуси, Минск, 27.02-1.03.2015 ","Первенство Беларуси, Минск, 21-22.03.2015 ","Первенство Гомеля, 3-5.04.2015",null,"Чемпионат и первенство Беларуси, Витебск, 17-20.04.2015",null,"Первенство Минска, Минск, 16-17.05.2015 ",null,"Первенство Беларуси, Пинск, 21-22.11.2013",null,"Кубок Беларуси, Пинск, 22-24.11.2013","Текущий разряд"]
["Фамилия, Имя","команда","г.р.","С","Т","Б","Б","Б","С","Т","С","Т","С","Т","Б","Б","Б","Б","С","Т","С","Т","С","Т","Т","С","Б"]
["Авило Вера","РЦЭК",2006,"разряды не выполнялись из-за малого количества участников",null,"разряды не выполнялись из-за малого количества участников",null,null,null,null,"разряды не выполнялись из-за малого количества участников","разряды не выполнялись из-за малого количества участников",null,null,null,null,null,null,null,null,"разряды не выполнялись из-за малого количества участников","разряды не выполнялись из-за малого количества участников","разряды не выполнялись из-за малого количества участников","разряды не выполнялись из-за малого количества участников",null,null,null,{"$f":"IF(OR(D5=\"МС\",E5=\"МС\",F5=\"МС\",G5=\"МС\",H5=\"МС\",I5=\"МС\",J5=\"МС\",K5=\"МС\",L5=\"МС\",M5=\"МС\",N5=\"МС\",O5=\"МС\",P5=\"МС\",Q5=\"МС\",R5=\"МС\",S5=\"МС\",T5=\"МС\",U5=\"МС\",V5=\"МС\",W5=\"МС\",X5=\"МС\",Y5=\"МС\",Z5=\"МС\",AA5=\"МС\"),\"МС\",IF(OR(D5=\"КМС\",E5=\"КМС\",F5=\"КМС\",G5=\"КМС\",H5=\"КМС\",I5=\"КМС\",J5=\"КМС\",K5=\"КМС\",L5=\"КМС\",M5=\"КМС\",N5=\"КМС\",O5=\"КМС\",P5=\"КМС\",Q5=\"КМС\",R5=\"КМС\",S5=\"КМС\",T5=\"КМС\",U5=\"КМС\",V5=\"КМС\",W5=\"КМС\",X5=\"КМС\",Y5=\"КМС\",Z5=\"КМС\",AA5=\"КМС\"),\"КМС\",IF(OR(D5=1,E5=1,F5=1,G5=1,H5=1,I5=1,J5=1,K5=1,L5=1,M5=1,N5=1,O5=1,P5=1,Q5=1,R5=1,S5=1,T5=1,U5=1,V5=1,W5=1,X5=1,Y5=1,Z5=1,AA5=1),1,IF(OR(D5=2,E5=2,F5=2,G5=2,H5=2,I5=2,J5=2,K5=2,L5=2,M5=2,N5=2,O5=2,P5=2,Q5=2,R5=2,S5=2,T5=2,U5=2,V5=2,W5=2,X5=2,Y5=2,Z5=2,AA5=2),2,IF(OR(D5=3,E5=3,F5=3,G5=3,H5=3,I5=3,J5=3,K5=3,L5=3,M5=3,N5=3,O5=3,P5=3,Q5=3,R5=3,S5=3,T5=3,U5=3,V5=3,W5=3,X5=3,Y5=3,Z5=3,AA5=3),3,IF(OR(D5=\"1 юн\",E5=\"1 юн\",F5=\"1 юн\",G5=\"1 юн\",H5=\"1 юн\",I5=\"1 юн\",J5=\"1 юн\",K5=\"1 юн\",L5=\"1 юн\",M5=\"1 юн\",N5=\"1 юн\",O5=\"1 юн\",P5=\"1 юн\",Q5=\"1 юн\",R5=\"1 юн\",S5=\"1 юн\",T5=\"1 юн\",U5=\"1 юн\",V5=\"1 юн\",W5=\"1 юн\",X5=\"1 юн\",Y5=\"1 юн\",Z5=\"1 юн\",AA5=\"1 юн\"),\"1 юн\",IF(OR(D5=\"юн\",E5=\"юн\",F5=\"юн\",G5=\"юн\",H5=\"юн\",I5=\"юн\",J5=\"юн\",K5=\"юн\",L5=\"юн\",M5=\"юн\",N5=\"юн\",O5=\"юн\",P5=\"юн\",Q5=\"юн\",R5=\"юн\",S5=\"юн\",T5=\"юн\",U5=\"юн\",V5=\"юн\",W5=\"юн\",X5=\"юн\",Y5=\"юн\",Z5=\"юн\",AA5=\"юн\"),\"юн\",\"б/р\")))))))","v":"б/р"}]
["Андреева Елена","Гомельская обл.",1982,null,null,null,"КМС",null,null,null,null,null,null,null,2,null,null,null,null,null,null,null,null,null,null,null,2,{"$f":"IF(OR(D6=\"МС\",E6=\"МС\",F6=\"МС\",G6=\"МС\",H6=\"МС\",I6=\"МС\",J6=\"МС\",K6=\"МС\",L6=\"МС\",M6=\"МС\",N6=\"МС\",O6=\"МС\",P6=\"МС\",Q6=\"МС\",R6=\"МС\",S6=\"МС\",T6=\"МС\",U6=\"МС\",V6=\"МС\",W6=\"МС\",X6=\"МС\",Y6=\"МС\",Z6=\"МС\",AA6=\"МС\"),\"МС\",IF(OR(D6=\"КМС\",E6=\"КМС\",F6=\"КМС\",G6=\"КМС\",H6=\"КМС\",I6=\"КМС\",J6=\"КМС\",K6=\"КМС\",L6=\"КМС\",M6=\"КМС\",N6=\"КМС\",O6=\"КМС\",P6=\"КМС\",Q6=\"КМС\",R6=\"КМС\",S6=\"КМС\",T6=\"КМС\",U6=\"КМС\",V6=\"КМС\",W6=\"КМС\",X6=\"КМС\",Y6=\"КМС\",Z6=\"КМС\",AA6=\"КМС\"),\"КМС\",IF(OR(D6=1,E6=1,F6=1,G6=1,H6=1,I6=1,J6=1,K6=1,L6=1,M6=1,N6=1,O6=1,P6=1,Q6=1,R6=1,S6=1,T6=1,U6=1,V6=1,W6=1,X6=1,Y6=1,Z6=1,AA6=1),1,IF(OR(D6=2,E6=2,F6=2,G6=2,H6=2,I6=2,J6=2,K6=2,L6=2,M6=2,N6=2,O6=2,P6=2,Q6=2,R6=2,S6=2,T6=2,U6=2,V6=2,W6=2,X6=2,Y6=2,Z6=2,AA6=2),2,IF(OR(D6=3,E6=3,F6=3,G6=3,H6=3,I6=3,J6=3,K6=3,L6=3,M6=3,N6=3,O6=3,P6=3,Q6=3,R6=3,S6=3,T6=3,U6=3,V6=3,W6=3,X6=3,Y6=3,Z6=3,AA6=3),3,IF(OR(D6=\"1 юн\",E6=\"1 юн\",F6=\"1 юн\",G6=\"1 юн\",H6=\"1 юн\",I6=\"1 юн\",J6=\"1 юн\",K6=\"1 юн\",L6=\"1 юн\",M6=\"1 юн\",N6=\"1 юн\",O6=\"1 юн\",P6=\"1 юн\",Q6=\"1 юн\",R6=\"1 юн\",S6=\"1 юн\",T6=\"1 юн\",U6=\"1 юн\",V6=\"1 юн\",W6=\"1 юн\",X6=\"1 юн\",Y6=\"1 юн\",Z6=\"1 юн\",AA6=\"1 юн\"),\"1 юн\",IF(OR(D6=\"юн\",E6=\"юн\",F6=\"юн\",G6=\"юн\",H6=\"юн\",I6=\"юн\",J6=\"юн\",K6=\"юн\",L6=\"юн\",M6=\"юн\",N6=\"юн\",O6=\"юн\",P6=\"юн\",Q6=\"юн\",R6=\"юн\",S6=\"юн\",T6=\"юн\",U6=\"юн\",V6=\"юн\",W6=\"юн\",X6=\"юн\",Y6=\"юн\",Z6=\"юн\",AA6=\"юн\"),\"юн\",\"б/р\")))))))","v":"КМС"}]
["Андренко Алина","ГОЦТиКДиМ",1998,null,null,null,null,null,null,null,null,null,null,null,null,null,null,null,null,null,null,null,null,null,null,null,null,"б/р"]
["Астапова Анастасия","СШ №1 г. Ветка",2002,null,null,null,null,null,"1 юн",null,null,null,null,null,null,null,null,null,null,null,null,null,null,null,null,null,null,"1 юн"]
["Баева Диана","МогилёвскийОЦФВиС",2000,null,null,null,2,null,null,null,null,null,null,null,3,null,null,null,null,null,null,null,null,null,3,2,null,2]
["Бардашевич Ульяна","ГОЦТиКДиМ",2003,null,null,null,null,null,null,null,null,null,"юн",null,null,null,null,null,null,null,null,null,null,null,null,null,null,"юн"]
["Болсун Софья","ДЮСШ \"Омега\" ",1998,null,null,null,null,null,null,null,null,null,null,null,null,null,null,null,null,null,null,null,null,null,null,null,null,"б/р"]
["Боярина Марго","РЦЭК",2006,null,null,null,null,null,null,null,null,null,null,null,null,null,null,null,null,null,null,null,null,null,null,null,null,"б/р"]
["Бурая Альбина","РЦЭК",2002,null,null,null,null,"юн",null,null,null,null,"1 юн","юн",null,null,null,null,null,null,null,null,null,null,null,null,null,"1 юн"]
["Вежновец Екатерина","Минск",null,null,null,null,null,null,null,null,null,null,null,null,null,3,null,null,null,null,null,null,null,null,null,null,null,3]
["Вербанович Маргарита","Брестская область",1999,null,null,null,null,null,null,null,null,null,null,null,null,null,null,null,null,null,null,null,null,null,null,null,null,"б/р"]
["Веретенникова Екатерина","Минск",1989,null,null,null,null,null,null,null,null,null,null,null,null,null,null,null,null,null,null,null,null,null,null,null,null,"б/р"]
["Веретенникова Елена","Минск",1991,null,null,null,"КМС",null,null,null,null,null,null,null,null,1,1,null,null,null,null,null,null,null,null,null,1,"КМС"]
["Верниковская Мария","Пуховичский р-н",2000,null,null,null,2,null,null,null,null,null,null,null,null,3,2,null,null,null,null,null,null,null,2,3,null,2]
["Верхоглядова Елена","Хан-Тенгри",1987,null,null,null,1,null,null,null,null,null,null,null,null,null,null,null,null,null,null,null,null,null,null,null,null,1]
["Галуц Мария","Фрунзенский ФОЦ",2004,null,null,null,null,null,null,null,null,null,null,null,null,null,null,null,null,null,null,null,null,null,null,null,null,"б/р"]
["Ганчаревич Екатерина","Пуховичский р-н",2006,null,null,null,null,null,null,null,null,null,null,null,null,null,null,null,null,null,null,null,null,null,null,null,null,"б/р"]
["Гатальская Елизавета","СШ №1 г. Ветка",2004,null,null,null,null,null,null,null,null,null,"юн",null,null,null,null,"юн","1 юн","юн",null,null,null,null,null,null,null,"1 юн"]
["Гацулина Анастасия","ГОЦТиКДиМ",1997,null,null,null,null,null,null,null,null,null,null,null,null,null,null,null,null,null,null,null,null,null,null,null,null,"б/р"]
["Горбатовская Диана","ГОЦТиКДиМ",2003,null,null,null,null,null,null,null,null,null,"юн",null,null,null,null,null,null,null,null,null,null,null,null,null,null,"юн"]
["Громыко Анастасия","СШ №1 г. Ветка",2004,null,null,null,null,null,null,null,null,null,null,null,null,null,null,"юн","1 юн","1 юн",null,null,null,null,null,null,null,"1 юн"]
["Гунько Наталья","ЦТиКДМ г. Пинска",2000,null,null,null,null,null,null,null,null,null,null,null,null,null,null,null,null,null,null,null,null,null,"юн",3,null,3]
["Данченко Дарья","Хойники",1999,null,null,null,null,null,null,null,null,null,null,null,null,null,null,null,null,null,null,null,null,null,null,null,null,"б/р"]
["Денисенко Мария","Речица",2000,null,null,null,null,null,null,"юн",null,null,null,null,null,null,null,null,null,null,null,null,null,null,null,null,null,"юн"]
["Ермохина Анна","РЦЭК",2003,null,null,null,null,"юн","юн","юн",null,null,"1 юн","юн",null,null,null,null,null,null,null,null,null,null,"юн","1 юн",null,"1 юн"]
["Ермохина Дарья","РЦЭК",1999,null,null,null,null,null,"юн","1 юн",null,null,null,null,null,null,null,null,null,null,null,null,null,null,null,null,null,"1 юн"]
["Жель Мария","Фрунзенский ФОЦ",2006,null,null,null,null,null,null,null,null,null,null,null,null,null,null,null,null,null,null,null,null,null,null,null,null,"б/р"]
["Жуковская Кристина","СШ №1 г. Ветка",1998,null,null,null,null,null,null,null,null,null,null,null,null,null,null,null,null,null,null,null,null,null,null,null,null,"б/р"]
["Запорожченко Надежда","РЦЭК",2005,null,null,null,null,"юн",null,"юн",null,null,null,null,null,null,null,"юн","юн","юн",null,null,null,null,null,null,null,"юн"]
["Зюзина Елена","Хан-Тенгри",1978,null,null,null,1,null,null,null,null,null,null,null,null,null,2,null,null,null,null,null,null,null,null,null,2,1]
["Калиновская Кристина","Брестская область",2003,null,null,null,null,null,null,null,null,null,null,null,null,null,null,null,null,null,null,null,null,null,null,"юн",null,"юн"]
["Канашкова Арина","Могилевская область",2001,null,null,null,null,"юн",null,null,null,null,null,null,null,null,null,null,null,null,null,null,null,null,null,null,null,"юн"]
["Качан Ирина","Брестская область",2000,null,null,null,null,null,null,null,null,null,null,null,null,null,null,null,null,null,null,null,null,null,"юн",2,null,2]
["Кечик Юлия","Хан-Тенгри",1987,null,null,null,null,null,null,null,null,null,null,null,null,null,null,null,null,null,null,null,null,null,null,null,null,"б/р"]
["Кобринец Карина","ЦТиКДМ г. Пинска",2000,null,null,null,null,null,null,null,null,null,null,null,null,null,null,null,null,null,null,null,null,null,null,"юн",null,"юн"]
["Ковальская Ксения","ЦТ Слуцк",2004,null,null,null,null,null,null,null,null,null,null,null,null,null,null,"юн",null,null,null,null,null,null,null,null,null,"юн"]
["Кондратюк Дарья","Брестская область",2003,null,null,null,null,"юн",null,null,null,null,null,null,null,null,null,null,null,null,null,null,null,null,"юн","юн",null,"юн"]
["Конончук Ирина","Брестская область",2001,null,null,null,null,null,null,null,null,null,null,null,null,null,null,null,null,null,null,null,null,null,null,null,null,"б/р"]
["Коноплева Марина","Гомельская обл.",2001,null,null,null,null,2,"1 юн",2,null,null,2,2,null,"юн",null,null,null,null,null,null,null,null,3,"юн",null,2]
["Копусова Ксения","Минск",2001,null,null,null,null,null,"1 юн","1 юн",null,null,2,2,null,null,null,null,null,null,null,null,null,null,3,"юн",null,2]
["Кореневская Вероника","Минск",1997,null,3,null,null,null,null,null,null,null,null,null,null,null,null,null,null,null,null,null,null,null,null,null,2,2]
["Кузина Юлия","Бобруйск",1999,null,2,null,1,null,null,null,null,null,null,null,1,null,null,null,null,null,null,null,null,null,null,null,2,1]
["Кузичева Таисия","ГОЦТиКДиМ",2000,null,null,null,null,null,2,"1 юн",null,null,null,null,null,null,null,null,null,null,null,null,null,null,null,"юн",null,2]
["Кукевич Полина","РЦЭК",2003,null,null,null,null,"юн",null,"юн",null,null,2,"юн",null,null,null,null,null,null,null,null,null,null,"юн",null,null,2]
["Кулешова Юлия","Могилевская область",2001,null,null,null,null,3,null,null,null,null,null,null,null,null,null,null,null,null,null,null,null,null,null,null,null,3]
["Леоненко Татьяна","Хойники",1999,null,null,null,null,null,null,null,null,null,null,null,null,null,null,null,null,null,null,null,null,null,null,null,null,"б/р"]
["Липкович Мария","РЦЭК",2005,null,null,null,null,"1 юн",null,"1 юн",null,null,null,2,null,null,null,"1 юн",2,2,null,null,null,null,null,null,null,2]
["Лясович Наталья","Витебск",1985,null,null,null,1,null,null,null,null,null,null,null,1,3,2,null,null,null,null,null,null,null,null,null,null,1]
["Малыженкова Лариса","Минск",1975,null,1,null,"КМС",null,null,null,null,null,null,null,null,null,"КМС",null,null,null,null,null,null,null,null,null,"КМС","КМС"]
["Марковец Екатерина","Брестская область",2004,null,null,null,null,null,null,null,null,null,null,null,null,null,null,"юн",null,null,null,null,null,null,null,null,null,"юн"]
["Матвеева Юлия ","ГОЦТиКДиМ",2005,null,null,null,null,null,null,null,null,null,null,null,null,null,null,null,"юн","юн",null,null,null,null,null,null,null,"юн"]
["Мельник Яна","ЦТ Слуцк",2005,null,null,null,null,null,null,null,null,null,null,null,null,null,null,null,null,null,null,null,null,null,null,null,null,"б/р"]
["Мигунова Алена","СШ №1 г. Ветка",2001,null,null,null,null,null,null,"юн",null,null,"юн",null,null,null,null,null,null,null,null,null,null,null,null,null,null,"юн"]
["Мисюкевич Александра","Минск",1994,null,null,null,2,null,null,null,null,null,null,null,null,2,null,null,null,null,null,null,null,null,null,null,null,2]
["Мороз Юля","ЦТ Слуцк",2003,null,null,null,null,null,null,null,null,null,null,null,null,null,null,null,null,null,null,null,null,null,null,null,null,"б/р"]
["Нажига Кристина","Хойники",1998,null,null,null,null,null,null,null,null,null,null,null,null,null,null,null,null,null,null,null,null,null,null,null,null,"б/р"]
["Нестереня Виолетта","Пуховичский р-н",2004,null,null,null,null,null,null,null,null,null,null,null,null,null,null,null,null,null,null,null,null,null,null,null,null,"б/р"]
["Нечесова Виталина","Речица",1998,null,null,null,null,null,null,null,null,null,null,null,null,null,null,null,null,null,null,null,null,null,null,null,null,"б/р"]
["Никифоровец Екатерина","Минск",1973,null,null,null,null,null,null,null,null,null,null,null,null,null,null,null,null,null,null,null,null,null,null,null,null,"б/р"]
["Никифоровец Юлия","РЦЭК",2004,null,null,null,null,"1 юн",null,"1 юн",null,null,"1 юн","1 юн",null,"1 юн",null,2,"1 юн","1 юн",null,null,null,null,"1 юн","юн",null,2]
["Огарко Екатерина","Брестская область",2002,null,null,null,null,null,null,null,null,null,null,null,null,null,null,null,null,null,null,null,null,null,"юн",null,null,"юн"]
["Осипенко Анастасия","СШ №1 г. Ветка",2002,null,null,null,null,3,"юн","юн",null,null,null,null,null,null,null,null,null,null,null,null,null,null,"юн",null,null,3]
["Пагудо Екатерина","Минск",2000,null,null,null,null,null,2,"1 юн",null,null,null,null,null,null,null,null,null,null,null,null,null,null,2,3,null,2]
["Потапович Александрина","Фрунзенский ФОЦ",2003,null,null,null,null,"1 юн",null,"юн",null,null,null,null,null,null,null,null,null,null,null,null,null,null,null,null,null,"1 юн"]
["Причинич Евгения","ГОЦТиКДиМ",1990,null,null,null,null,null,null,null,null,null,null,null,null,null,null,null,null,null,null,null,null,null,null,null,null,"б/р"]
["Прокошина Алеся","СШ №1 г. Ветка",2002,null,null,null,null,3,2,2,null,null,"1 юн","1 юн",null,"1 юн",null,null,null,null,null,null,null,null,null,null,null,{"$f":"IF(OR(D70=\"МС\",E70=\"МС\",F70=\"МС\",G70=\"МС\",H70=\"МС\",I70=\"МС\",J70=\"МС\",K70=\"МС\",L70=\"МС\",M70=\"МС\",N70=\"МС\",O70=\"МС\",P70=\"МС\",Q70=\"МС\",R70=\"МС\",S70=\"МС\",T70=\"МС\",U70=\"МС\",V70=\"МС\",W70=\"МС\",X70=\"МС\",Y70=\"МС\",Z70=\"МС\",AA70=\"МС\"),\"МС\",IF(OR(D70=\"КМС\",E70=\"КМС\",F70=\"КМС\",G70=\"КМС\",H70=\"КМС\",I70=\"КМС\",J70=\"КМС\",K70=\"КМС\",L70=\"КМС\",M70=\"КМС\",N70=\"КМС\",O70=\"КМС\",P70=\"КМС\",Q70=\"КМС\",R70=\"КМС\",S70=\"КМС\",T70=\"КМС\",U70=\"КМС\",V70=\"КМС\",W70=\"КМС\",X70=\"КМС\",Y70=\"КМС\",Z70=\"КМС\",AA70=\"КМС\"),\"КМС\",IF(OR(D70=1,E70=1,F70=1,G70=1,H70=1,I70=1,J70=1,K70=1,L70=1,M70=1,N70=1,O70=1,P70=1,Q70=1,R70=1,S70=1,T70=1,U70=1,V70=1,W70=1,X70=1,Y70=1,Z70=1,AA70=1),1,IF(OR(D70=2,E70=2,F70=2,G70=2,H70=2,I70=2,J70=2,K70=2,L70=2,M70=2,N70=2,O70=2,P70=2,Q70=2,R70=2,S70=2,T70=2,U70=2,V70=2,W70=2,X70=2,Y70=2,Z70=2,AA70=2),2,IF(OR(D70=3,E70=3,F70=3,G70=3,H70=3,I70=3,J70=3,K70=3,L70=3,M70=3,N70=3,O70=3,P70=3,Q70=3,R70=3,S70=3,T70=3,U70=3,V70=3,W70=3,X70=3,Y70=3,Z70=3,AA70=3),3,IF(OR(D70=\"1 юн\",E70=\"1 юн\",F70=\"1 юн\",G70=\"1 юн\",H70=\"1 юн\",I70=\"1 юн\",J70=\"1 юн\",K70=\"1 юн\",L70=\"1 юн\",M70=\"1 юн\",N70=\"1 юн\",O70=\"1 юн\",P70=\"1 юн\",Q70=\"1 юн\",R70=\"1 юн\",S70=\"1 юн\",T70=\"1 юн\",U70=\"1 юн\",V70=\"1 юн\",W70=\"1 юн\",X70=\"1 юн\",Y70=\"1 юн\",Z70=\"1 юн\",AA70=\"1 юн\"),\"1 юн\",IF(OR(D70=\"юн\",E70=\"юн\",F70=\"юн\",G70=\"юн\",H70=\"юн\",I70=\"юн\",J70=\"юн\",K70=\"юн\",L70=\"юн\",M70=\"юн\",N70=\"юн\",O70=\"юн\",P70=\"юн\",Q70=\"юн\",R70=\"юн\",S70=\"юн\",T70=\"юн\",U70=\"юн\",V70=\"юн\",W70=\"юн\",X70=\"юн\",Y70=\"юн\",Z70=\"юн\",AA70=\"юн\"),\"юн\",\"б/р\")))))))","v":2}]
["Просмыцкая Валерия","ЦТКиЭ Бобруйск",2008,null,null,null,null,null,null,null,null,null,null,null,null,null,null,null,null,null,null,null,null,null,null,null,null,"б/р"]
["Птушко Мария","РЦЭК",2006,null,null,null,null,null,null,null,null,null,null,null,null,null,null,null,null,null,null,null,null,null,null,null,null,"б/р"]
["Рак Ольга","Пуховичский р-н",1985,null,null,null,"МС",null,null,null,null,null,null,null,"КМС","КМС","КМС",null,null,null,null,null,null,null,null,null,"МС","МС"]
["Ракитская Анастасия","Хан-Тенгри",1994,null,null,null,null,null,null,null,null,null,null,null,null,null,null,null,null,null,null,null,null,null,null,null,null,"б/р"]
["Ревенкова Анастасия ","ГОЦТиКДиМ",2005,null,null,null,null,"юн",null,"1 юн",null,null,2,"1 юн",null,null,null,2,null,null,null,null,null,null,null,null,null,2]
["Родионова Юна","РЦЭК",2006,null,null,null,null,null,null,null,null,null,null,null,null,null,null,null,null,null,null,null,null,null,null,null,null,"б/р"]
["Романенко Екатерина","СШ №1 г. Ветка",2001,null,null,null,null,null,null,null,null,null,"1 юн","1 юн",null,null,null,null,null,null,null,null,null,null,null,null,null,"1 юн"]
["Роткевич Ксения","Фрунзенский ФОЦ",2004,null,null,null,null,null,null,null,null,null,null,null,null,null,null,"юн",null,null,null,null,null,null,null,null,null,"юн"]
["Русинович Светлана","ГОЦТиКДиМ",1991,null,null,null,null,null,null,null,null,null,null,null,null,null,null,null,null,null,null,null,null,null,null,null,null,"б/р"]
["Савенкова Наталья","ГОЦТиКДиМ",2005,null,null,null,null,null,null,null,null,null,"1 юн","юн",null,null,null,null,"1 юн","1 юн",null,null,null,null,null,null,null,"1 юн"]
["Самохвалова Анастасия","Гомельская обл.",1997,null,null,null,null,null,null,null,null,null,null,null,null,null,null,null,null,null,null,null,null,null,null,null,null,"б/р"]
["Самсонова Мария","С/к «Торпедо»  Мг.",1984,null,"КМС",null,null,null,null,null,null,null,null,null,null,null,null,null,null,null,null,null,null,null,null,null,"КМС","КМС"]
["Семейко Галина","Минск",1982,null,null,null,1,null,null,null,null,null,null,null,null,null,null,null,null,null,null,null,null,null,null,null,null,1]
["Сесицкая Виолетта","ЦТКиЭ Бобруйск",2006,null,null,null,null,null,null,null,null,null,null,null,null,null,null,null,null,null,null,null,null,null,null,null,null,"б/р"]
["Сивчик Вероника ","Минск",1992,null,null,null,2,null,null,null,null,null,null,null,null,null,null,null,null,null,null,null,null,null,null,null,null,2]
["Суглоб Виктория","ГОЦТиКДиМ",1998,null,null,null,null,null,null,null,null,null,null,null,null,null,null,null,null,null,null,null,null,null,null,null,null,"б/р"]
["Суслова София","Пуховичский р-н",2001,null,null,null,null,null,null,null,null,null,"юн","юн",null,"юн",null,null,null,null,null,null,null,null,null,null,null,"юн"]
["Сыродоева Мария","РЦЭК",2004,null,null,null,null,"юн",null,"юн",null,null,"юн","1 юн",null,null,null,"1 юн",null,null,null,null,null,null,null,null,null,"1 юн"]
["Сычугова Александра","ЦТКиЭ Бобруйск",2006,null,null,null,null,null,null,null,null,null,null,null,null,null,null,null,null,null,null,null,null,null,null,null,null,"б/р"]
["Титкина Дарья","Хан-Тенгри",1986,null,null,null,null,null,null,null,null,null,null,null,null,null,2,null,null,null,null,null,null,null,null,null,null,2]
["Федоркевич Светлана","ГОЦТиКДиМ",1992,null,1,null,"КМС",null,null,null,null,null,null,null,null,null,null,null,null,null,null,null,null,null,null,null,1,"КМС"]
["Хованиская Антонина","Минск",2003,null,null,null,null,null,null,null,null,null,null,null,null,null,null,null,null,null,null,null,null,null,null,null,null,"б/р"]
["Чемякина Валентина","Минск",1996,null,null,null,1,null,null,null,null,null,null,null,null,null,null,null,null,null,null,null,null,null,null,null,2,1]
["Черношей Вероника","Речица",2001,null,null,null,null,null,"юн","1 юн",null,null,null,null,null,null,null,null,null,null,null,null,null,null,null,null,null,"1 юн"]
["Чуйко Полина","Минск",1990,null,null,null,1,null,null,null,null,null,null,null,null,null,null,null,null,null,null,null,null,null,null,null,null,1]
["Шаповал Екатерина","Брестская область",2000,null,null,null,null,null,null,null,null,null,null,null,null,null,null,null,null,null,null,null,null,null,"юн",3,null,3]
["Широкая Ксения","Могилевская область",2001,null,null,null,null,"юн",null,null,null,null,null,null,null,null,null,null,null,null,null,null,null,null,3,null,null,3]
["Шишелякина Александра","ГОЦТиКДиМ",1999,null,null,null,null,null,null,null,null,null,null,null,null,null,null,null,null,null,null,null,null,null,null,null,null,"б/р"]
["Шуляк Марина","Хан-Тенгри",1989,null,null,null,null,null,null,null,null,null,null,null,null,null,null,null,null,null,null,null,null,null,null,null,null,"б/р"]
["Якубович Карина","ЦТиКДМ г. Пинска",1998,null,null,null,2,null,null,null,null,null,null,null,null,null,null,null,null,null,null,null,null,null,null,null,null,2]

{"sheet":"Лист1","index":8,"n_rows":159,"n_cols":7,"rows_kept":159,"cut":false,"hidden":false,"merged":[]}
[]
["Подтвержденные разряды на 01.01.2015"]
[]
["Фамилия, Имя","г.р.","разряд",null,"Фамилия, Имя","г.р.","разряд"]
["Аблажевич Виктор",2000,2,null,"Андреева Лена",1984,2]
["Аксенов Павел",1989,1,null,"Андреева Елена",1982,"КМС"]
["Анищенко Павел",2000,3,null,"Астапова Анастасия",2002,"1 юн"]
["Астапов Максим",2001,2,null,"Баева Диана",2000,2]
["Астапчик Дмитрий",2003,"юн",null,"Бардашевич Ульяна",2003,"юн"]
["Астапчик Павел",2006,"юн",null,"Болсун Софья",1998,"юн"]
["Бабанов Игорь",1989,1,null,"Бурая Альбина",2002,"1 юн"]
["Батраков Андрей",1998,2,null,"Веретенникова Елена",1991,"КМС"]
["Батура Дмитрий",2004,"юн",null,"Верниковская Мария",2000,2]
["Беляцкий Артем",2002,"1 юн",null,"Верхоглядова Елена",1987,1]
["Беляцкий Артем",2002,"1 юн",null,"Гатальская Елизавета",2004,"юн"]
["Бережной Максим",2000,"юн",null,"Горбатовская Диана",2003,"юн"]
["Бережной Тимофей",2003,2,null,"Гунько Наталья",2000,3]
["Бессер Родион",1981,1,null,"Данченко Дарья",1999,"юн"]
["Бецковский Артем",2000,3,null,"Денисенко Мария",2000,"юн"]
["Бобков Константин",2005,2,null,"Ермохина Анна",2003,"1 юн"]
["Болденко Валерий",1993,1,null,"Ермохина Дарья",1999,"1 юн"]
["Буйленков Павел",1993,"КМС",null,"Жуковская Кристина",1998,"1 юн"]
["Бурый Алексей",2002,2,null,"Запорожченко Надежда",2005,"юн"]
["Быкадоров Артем",2005,"юн",null,"Зюзина Елена",1978,1]
["Вальковский Владимир",1992,"КМС",null,"Калиновская Кристина",2003,"юн"]
["Васильев Даниил",2000,2,null,"Канашкова Арина",2001,"юн"]
["Ведерников Илья",2004,2,null,"Качан Ирина",2000,2]
["Веревкин Владислав",1999,"юн",null,"Кобринец Карина",2000,"юн"]
["Виниченко Андрей",1988,1,null,"Коноплева Марина",2001,2]
["Винчевский Максим",1991,2,null,"Кондратюк Дарья",2003,"юн"]
["Волосович Дмитрий",1995,"КМС",null,"Копусова Ксения",2001,2]
["Волчек Алексей",2001,3,null,"Кореневская Вероника",1997,2]
["Гатальский Дмитрий",2003,"1 юн",null,"Кузина Юлия",1999,1]
["Германович Олег",1999,"юн",null,"Кузичева Таисия",2000,2]
["Главацкий Сергей",1998,1,null,"Кукевич Полина",2003,2]
["Головач Алексей",2003,"1 юн",null,"Кулешова Юлия",2001,3]
["Голубев Денис",1994,"КМС",null,"Липкович Мария",2005,2]
["Голубев Сергей",1985,1,null,"Ленивко Анастасия",2004,"юн"]
["Горолев Павел",1982,2,null,"Леоненко Татьяна",1999,"1 юн"]
["Грибовский Павел",1885,"КМС",null,"Лясович Наталья",1985,1]
["Гришанов Григорий",2003,"1 юн",null,"Мисюкевич Александра",1994,2]
["Гусев Дмитрий",2003,3,null,"Малыженкова Лариса",1975,"КМС"]
["Гутиков Роман",1989,1,null,"Мигунова Алена",2001,"юн"]
["Давыдов Денис",2000,1,null,"Нажига Кристина",1998,"1 юн"]
["Даниленко Ярослав",2001,"юн",null,"Нечесова Виталина",1998,"1 юн"]
["Дашук Евгений",2000,"юн",null,"Никифоровец Юлия",2004,"1 юн"]
["Демешенко Александр",2001,2,null,"Огарко Екатерина",2002,"1 юн"]
["Демешко Александр",1994,1,null,"Осипенко Анастасия",2002,3]
["Денисевич Евгений",1994,"КМС",null,"Пагудо Екатерина",2000,2]
["Денисман Юрий",1982,"КМС",null,"Потапович Александрина",2003,"1 юн"]
["Добрянский Александр",1994,1,null,"Прокошина Алеся",2002,2]
["Долгов Вячеслав",1985,2,null,"Рак Ольга",1985,"МС"]
["Драбинко Артур",1994,"КМС",null,"Ревенкова Анастасия ",2005,2]
["Дудянов Евгений ",1996,3,null,"Романенко Екатерина",2001,"1 юн"]
["Дуло Кирилл",2003,"юн",null,"Савенкова Наталья",2005,"1 юн"]
["Дюбенков Дмитрий",1992,"КМС",null,"Самсонова Мария",1984,"КМС"]
["Ермохин Вадим",2004,"1 юн",null,"Семейко Галина",1982,1]
["Есипенок Алексей",2004,"юн",null,"Сивчик Вероника ",1992,2]
["Живица Арсений",2000,1,null,"Суглоб Виктория",1998,2]
["Живица Елисей",2005,"юн",null,"Суслова София",2001,"юн"]
["Загорский Владислав ",1998,"юн",null,"Сыродоева Мария",2004,"1 юн"]
["Зайцев Даниил",2000,"юн",null,"Федоркевич Светлана",1992,"КМС"]
["Зборовский Андрей",2001,"1 юн",null,"Хованиская Антонина",2003,"юн"]
["Зюзин Иван",2001,1,null,"Чемякина Валентина",1996,1]
["Зюзь Сергей",2001,2,null,"Черношей Вероника",2001,"1 юн"]
["Иванов Александр",1992,2,null,"Чуйко Полина",1990,1]
["Иванов Владислав",2000,"юн",null,"Шаповал Екатерина",2000,3]
["Изидеров Никита",1994,"КМС",null,"Широкая Ксения",2001,3]
["Ильинков Виталик",2003,"юн",null,"Якубович Карина",1998,2]
["Кайдунов Антон",2004,"юн"]
["Караваев Дмитрий",1993,"КМС"]
["Карпов Роман ",1981,2]
["Кириенко Кирилл",1988,1]
["Киселев Евгений",1999,1]
["Клюжев Александр",1997,"МС"]
["Козловский Петр",1998,"юн"]
["Косач Павел",2004,"юн"]
["Кудрявцев Александр",2004,"1 юн"]
["Кузан Никита",2004,"юн"]
["Кухоренко Максим",1985,1]
["Липский Кирилл",1984,2]
["Литвин Кирилл",2002,2]
["Логунов Никита",1999,"КМС"]
["Ложкин Денис",1983,1]
["Лопухов Глеб",2003,2]
["Лысюк Виталий",2001,"юн"]
["Магер Даниил",1998,"юн"]
["Макаренко Виктор",2003,2]
["Максименя Александр",1975,1]
["Максименя Денис",1996,"КМС"]
["Малаховский Александр",1985,"КМС"]
["Миненко Игорь",1982,2]
["Мокеев Алексей",2002,"юн"]
["Морозов Юрий",1992,"КМС"]
["Найденшев Владимир",2002,3]
["Насиров Ренат",2004,"юн"]
["Натрапов Егор",2001,"юн"]
["Нестеренко Егор",2003,"юн"]
["Никипелов Вадим",1998,"юн"]
["Никифоровец Андрей",1974,"МС"]
["Никифоровец Максим",1997,"КМС"]
["Никоноров Дмитрий",1997,"КМС"]
["Оверчук Даниил",2001,"1 юн"]
["Остроухов Егор",1973,1]
["Пагудо Евгений",2002,3]
["Пастухов Никита",2000,"1 юн"]
["Пахомов Александр",1983,"КМС"]
["Пирожков Денис",1998,"1 юн"]
["Писарев Кирилл",2001,1]
["Подплетько Александр ",2001,"юн"]
["Покаместов Илья",1977,1]
["Поляков Александр",1982,2]
["Пристромов Антон",1988,"КМС"]
["Прокопчик Ростислав",2003,"юн"]
["Пуйто Антон",1998,1]
["Раманюга Максим",2003,"юн"]
["Рожнов Владимир",1999,2]
["Рубенок Артем",1985,1]
["Рудавский Никита",1999,2]
["Руденко Вадим",2006,"1 юн"]
["Саунин Кирилл",1989,1]
["Свито Иван",1982,1]
["Сердаков Илья",1999,"КМС"]
["Сивуха Максим",2003,"1 юн"]
["Силков Михаил",1997,2]
["Смирнов Даниил",2002,3]
["Соковых Евгений",1988,"КМС"]
["Соломкин Александр ",2005,"1 юн"]
["Сомов Денис",2003,"1 юн"]
["Сорокин Андрей",1998,2]
["Сосновский Никита",2005,2]
["Стариков Павел",1996,2]
["Степаненко Олег",2001,"1 юн"]
["Стрельский Максим",1998,2]
["Стрижевич Сергей",2006,"юн"]
["Сухотский Дмитрий",1997,3]
["Сычев Николай",1978,1]
["Талдыкин Илья",2000,2]
["Тарасенко Владислав",1995,"КМС"]
["Таршис Иван",1998,1]
["Тэнц Константин",2003,"юн"]
["Федоринчик Антон",2002,"1 юн"]
["Федоров Игорь",1977,1]
["Федотов Сергей",1990,"КМС"]
["Харчик Максим",1998,3]
["Хохлов Евгений",1991,2]
["Циркуно Александр",1988,2]
["Цымбалист Данила",2001,2]
["Ченуша Алексей",1969,1]
["Шелкович Антон",1986,1]
["Шишко Даниил",2002,"юн"]
["Шпиганович Данила",2005,"1 юн"]
["Шпиганович Максим",2001,3]
["Шульпейкин Влад",2004,"юн"]
["Юрковец Евгений",2000,2]
["Юхнюк Вячеслав",1999,3]
["Яковлев Никита",2001,"юн"]
["Янкулин Станислав ",1997,"юн"]
["Яцыно Павел",1986,"КМС"]